Workbook

Sheet Simulador
A1: SIMULADOR DE CREDITOS
AG4: =SUM(AC20:AE379) -> 0.2762215587 | AH4: =MIN(H19:J379) -> 1.818989404e-12 | AK4: =SUM(AC20:AE379) -> 0.2762215587
B5: TEA FIJA | C5: 0.135 | J5: 2 | U5: 18 | Y5: 5000 | AE5: SOLES | AH5: 306.9128431
B8: Seguros e Impuestos | I8: Detalles del Financiamiento | AH8: =Q20+T20+W20 -> 53.04298623
B9: Seguro desgravamen | E9: 0 | I9: Tasa Efectiva Anual (TEA) | N9: =+C5 -> 0.135 | P9: 2018-12-09 | U9: 0 | Z9: 30 | AA9: Días despues del Desembolso | AH9: =Y5*AH10 -> 53.04298623
B10: Seg. Garantía y Otros | I10: =CONCATENATE("Tasa Efectiva ",VLOOKUP(Data!B3,Forma_de_pago,2,0),VLOOKUP(Data!B3,Forma_de_pago,9,0)) -> Tasa Efectiva Mensual(TEM) | N10: =POWER(1+C5,1/VLOOKUP(Data!B3,Forma_de_pago,4,FALSE))-1 -> 0.01060859725 | AH10: 0.01060859725
B11: ITF | E11: 5e-05 | I11: Tasa de Costo Efectivo Anual (TCEA) | N11: =((1+AH10)^(360/G20))-1 -> 0.135 | AH11: =AH9-AH8 -> 0
I12: Fecha Vencimiento | L12: =MAX(E19:F52) -> 2020-06-08 | P12: Total Capital | S12: =SUM(N20:P379) -> 5000 | X12: Total Seguros | AA12: =SUM(T20:Y379) -> 0
B13: LÍNEA CRÉDITO CON DEPÓSITO PLAZO FIJO/CTS | I13: Plazo Total | L13: =L12-P9 -> 547 | N13: días | P13: Total Intereses | S13: =SUM(Q20:S379) -> 524.4311749 | X13: TOTAL A PAGAR | AA13: =SUM(AF19:AH379) -> 5524.707396 | AE13: =IF(AND(B20<>"",C20<>0),$E$9*H19*(1+U9),"") -> 0
A15: =IF(INT(SUM(N20:P379))-H19=0,"NOTA:Las cuotas de la presente simulación han sido calculadas con datos referenciales. ","PARA OBTENER EL CALENDARIO DE PAGOS DEBE PRESIONAR EL BOTON 'GENERAR PLAN DE PAGOS' ") -> NOTA:Las cuotas de la presente simulación han sido calculadas con datos referenciales.
B16: *El Cliente tiene derecho a contratar directamente el seguro de desgravamen y endosarlo a favor de Caja arequipa, por el saldo adeudado,siempre y cuando cumpla con las condiciones requeridas y que se pueden consultar en la pagina web www.cajaarequipa.pe/seccion seguros.
B17: Cuota | C17: Frecuencia | E17: Fecha | G17: Dias | H17: Saldo Capital | K17: Cuota extraordinaria | N17: Capital | Q17: Interés | T17: ="S. Desgravamen * " &TEXT(E9,"0.00%") -> S. Desgravamen * 0.00% | W17: =B10 -> Seg. Garantía y Otros | Z17: Cuota por Financiamiento | AC17: ="I.T.F. " &TEXT(E11,"0.000%") -> I.T.F. 0.005% | AF17: Cuota Total a Pagar
B19: 0 | C19: 0 | E19: =P9 -> 2018-12-09 | H19: =+Y5 -> 5000 | Z19: =-H19 -> -5000 | AF19: 0
B20: =IF(ROW(B20)-19>$U$5,"",ROW(B20)-19) -> 1 | C20: =IFERROR(INDEX(Fechas!$B$7:$U$198,Simulador!B20,Data!$D$3-1),"") -> 1 | E20: =IF($J$5=2,IFERROR(INDEX(Fechas!$B$7:$U$198,Simulador!B20,Data!$D$3),""),IF(B20>$U$5,"",E19+Data!$E$3)) -> 2019-01-08 | G20: =IF(B20="","",E20-E19) -> 30 | H20: =IF(B20="","",H19-N20) -> 4746.130143 | N20: =IF(B20="","",Z20-SUM(Q20:Y20)) -> 253.8698568 | Q20: =IF(B20="","",IF(B19<=$U$5-1,H19*(((1+$N$9)^(G20/360))-1),1/0)) -> 53.04298623 | T20: =IF(AE13<1,IF(E9=0,0,1),AE13) -> 0 | W20: =IF(B20="","",$E$10) -> 0 | Z20: =IF(B20="","",IF(Data!$A$1=1,$AH$5,IF(Data!$A$1=2,$AH$5*IF(K20="",1,K20)))) -> 306.9128431 | AC20: =IF(B20="","",Z20*$E$11) -> 0.01534564215 | AF20: =IF(B20="","",Z20+AC20) -> 306.9281887
B21: 2 | C21: =IFERROR(INDEX(Fechas!$B$7:$U$198,Simulador!B21,Data!$D$3-1),"") -> 2 | E21: =IF($J$5=2,IFERROR(INDEX(Fechas!$B$7:$U$198,Simulador!B21,Data!$D$3),""),IF(B21>$U$5,"",E20+Data!$E$3)) -> 2019-02-08 | G21: 31 | H21: 4491.254577 | N21: 254.875566 | Q21: 52.03727708 | T21: =IF($E$9=0,0,IF(AND(B21<>"",C21<>0),IF($E$9*H20<1,1,$E$9*H20),"")) -> 0 | W21: 0 | Z21: =IF(B21="","",IF(Data!$A$1=1,$AH$5,IF(Data!$A$1=2,$AH$5*IF(K21="",1,K21)))) -> 306.9128431 | AC21: 0.01534564215 | AF21: 306.9281887
B22: 3 | C22: =IFERROR(INDEX(Fechas!$B$7:$U$198,Simulador!B22,Data!$D$3-1),"") -> 3 | E22: =IF($J$5=2,IFERROR(INDEX(Fechas!$B$7:$U$198,Simulador!B22,Data!$D$3),""),IF(B22>$U$5,"",E21+Data!$E$3)) -> 2019-03-08 | G22: 28 | H22: 4228.795585 | N22: 262.4589925 | Q22: 44.45385056 | T22: =IF($E$9=0,0,IF(AND(B22<>"",C22<>0),IF($E$9*H21<1,1,$E$9*H21),"")) -> 0 | W22: 0 | Z22: =IF(B22="","",IF(Data!$A$1=1,$AH$5,IF(Data!$A$1=2,$AH$5*IF(K22="",1,K22)))) -> 306.9128431 | AC22: 0.01534564215 | AF22: 306.9281887
B23: 4 | C23: =IFERROR(INDEX(Fechas!$B$7:$U$198,Simulador!B23,Data!$D$3-1),"") -> 4 | E23: =IF($J$5=2,IFERROR(INDEX(Fechas!$B$7:$U$198,Simulador!B23,Data!$D$3),""),IF(B23>$U$5,"",E22+Data!$E$3)) -> 2019-04-08 | G23: 31 | H23: 3968.247886 | N23: 260.547699 | Q23: 46.36514401 | T23: 0 | W23: 0 | Z23: =IF(B23="","",IF(Data!$A$1=1,$AH$5,IF(Data!$A$1=2,$AH$5*IF(K23="",1,K23)))) -> 306.9128431 | AC23: 0.01534564215 | AF23: 306.9281887
B24: 5 | C24: =IFERROR(INDEX(Fechas!$B$7:$U$198,Simulador!B24,Data!$D$3-1),"") -> 5 | E24: =IF($J$5=2,IFERROR(INDEX(Fechas!$B$7:$U$198,Simulador!B24,Data!$D$3),""),IF(B24>$U$5,"",E23+Data!$E$3)) -> 2019-05-08 | G24: 30 | H24: 3703.432586 | N24: 264.8152995 | Q24: =IF(B24="","",IF(B23<=$U$5-1,H23*(((1+$N$9)^(G24/360))-1),1/0)) -> 42.09754359 | T24: 0 | W24: 0 | Z24: =IF(B24="","",IF(Data!$A$1=1,$AH$5,IF(Data!$A$1=2,$AH$5*IF(K24="",1,K24)))) -> 306.9128431 | AC24: 0.01534564215 | AF24: 306.9281887
B25: 6 | C25: =IFERROR(INDEX(Fechas!$B$7:$U$198,Simulador!B25,Data!$D$3-1),"") -> 6 | E25: =IF($J$5=2,IFERROR(INDEX(Fechas!$B$7:$U$198,Simulador!B25,Data!$D$3),""),IF(B25>$U$5,"",E24+Data!$E$3)) -> 2019-06-08 | G25: 31 | H25: 3437.124729 | N25: 266.3078571 | Q25: 40.60498592 | T25: 0 | W25: 0 | Z25: =IF(B25="","",IF(Data!$A$1=1,$AH$5,IF(Data!$A$1=2,$AH$5*IF(K25="",1,K25)))) -> 306.9128431 | AC25: 0.01534564215 | AF25: 306.9281887
B26: 7 | C26: =IFERROR(INDEX(Fechas!$B$7:$U$198,Simulador!B26,Data!$D$3-1),"") -> 7 | E26: =IF($J$5=2,IFERROR(INDEX(Fechas!$B$7:$U$198,Simulador!B26,Data!$D$3),""),IF(B26>$U$5,"",E25+Data!$E$3)) -> 2019-07-08 | G26: 30 | H26: 3166.674958 | N26: 270.4497711 | Q26: 36.46307194 | T26: 0 | W26: 0 | Z26: =IF(B26="","",IF(Data!$A$1=1,$AH$5,IF(Data!$A$1=2,$AH$5*IF(K26="",1,K26)))) -> 306.9128431 | AC26: 0.01534564215 | AF26: 306.9281887
B27: 8 | C27: =IFERROR(INDEX(Fechas!$B$7:$U$198,Simulador!B27,Data!$D$3-1),"") -> 8 | E27: =IF($J$5=2,IFERROR(INDEX(Fechas!$B$7:$U$198,Simulador!B27,Data!$D$3),""),IF(B27>$U$5,"",E26+Data!$E$3)) -> 2019-08-08 | G27: 31 | H27: 2894.48201 | N27: 272.1929476 | Q27: 34.71989542 | T27: 0 | W27: 0 | Z27: =IF(B27="","",IF(Data!$A$1=1,$AH$5,IF(Data!$A$1=2,$AH$5*IF(K27="",1,K27)))) -> 306.9128431 | AC27: 0.01534564215 | AF27: 306.9281887
B28: 9 | C28: =IFERROR(INDEX(Fechas!$B$7:$U$198,Simulador!B28,Data!$D$3-1),"") -> 9 | E28: =IF($J$5=2,IFERROR(INDEX(Fechas!$B$7:$U$198,Simulador!B28,Data!$D$3),""),IF(B28>$U$5,"",E27+Data!$E$3)) -> 2019-09-08 | G28: 31 | H28: 2619.304699 | N28: 275.1773116 | Q28: 31.73553144 | T28: 0 | W28: 0 | Z28: =IF(B28="","",IF(Data!$A$1=1,$AH$5,IF(Data!$A$1=2,$AH$5*IF(K28="",1,K28)))) -> 306.9128431 | AC28: 0.01534564215 | AF28: 306.9281887
B29: 10 | C29: =IFERROR(INDEX(Fechas!$B$7:$U$198,Simulador!B29,Data!$D$3-1),"") -> 10 | E29: =IF($J$5=2,IFERROR(INDEX(Fechas!$B$7:$U$198,Simulador!B29,Data!$D$3),""),IF(B29>$U$5,"",E28+Data!$E$3)) -> 2019-10-08 | G29: 30 | H29: 2340.179004 | N29: 279.1256944 | Q29: 27.78714861 | T29: 0 | W29: 0 | Z29: =IF(B29="","",IF(Data!$A$1=1,$AH$5,IF(Data!$A$1=2,$AH$5*IF(K29="",1,K29)))) -> 306.9128431 | AC29: 0.01534564215 | AF29: 306.9281887
B30: 11 | C30: =IFERROR(INDEX(Fechas!$B$7:$U$198,Simulador!B30,Data!$D$3-1),"") -> 11 | E30: =IF($J$5=2,IFERROR(INDEX(Fechas!$B$7:$U$198,Simulador!B30,Data!$D$3),""),IF(B30>$U$5,"",E29+Data!$E$3)) -> 2019-11-08 | G30: 31 | H30: 2058.924232 | N30: 281.2547722 | Q30: 25.6580708 | T30: 0 | W30: 0 | Z30: =IF(B30="","",IF(Data!$A$1=1,$AH$5,IF(Data!$A$1=2,$AH$5*IF(K30="",1,K30)))) -> 306.9128431 | AC30: 0.01534564215 | AF30: 306.9281887
B31: 12 | C31: =IFERROR(INDEX(Fechas!$B$7:$U$198,Simulador!B31,Data!$D$3-1),"") -> 12 | E31: =IF($J$5=2,IFERROR(INDEX(Fechas!$B$7:$U$198,Simulador!B31,Data!$D$3),""),IF(B31>$U$5,"",E30+Data!$E$3)) -> 2019-12-08 | G31: 30 | H31: 1773.853687 | N31: 285.0705451 | Q31: 21.84229794 | T31: 0 | W31: 0 | Z31: =IF(B31="","",IF(Data!$A$1=1,$AH$5,IF(Data!$A$1=2,$AH$5*IF(K31="",1,K31)))) -> 306.9128431 | AC31: 0.01534564215 | AF31: 306.9281887
B32: 13 | C32: =IFERROR(INDEX(Fechas!$B$7:$U$198,Simulador!B32,Data!$D$3-1),"") -> 13 | E32: =IF($J$5=2,IFERROR(INDEX(Fechas!$B$7:$U$198,Simulador!B32,Data!$D$3),""),IF(B32>$U$5,"",E31+Data!$E$3)) -> 2020-01-08 | G32: 31 | H32: 1486.38964 | N32: 287.4640473 | Q32: 19.44879576 | T32: 0 | W32: 0 | Z32: =IF(B32="","",IF(Data!$A$1=1,$AH$5,IF(Data!$A$1=2,$AH$5*IF(K32="",1,K32)))) -> 306.9128431 | AC32: 0.01534564215 | AF32: 306.9281887
B33: 14 | C33: =IFERROR(INDEX(Fechas!$B$7:$U$198,Simulador!B33,Data!$D$3-1),"") -> 14 | E33: =IF($J$5=2,IFERROR(INDEX(Fechas!$B$7:$U$198,Simulador!B33,Data!$D$3),""),IF(B33>$U$5,"",E32+Data!$E$3)) -> 2020-02-08 | G33: 31 | H33: 1195.773794 | N33: 290.6158459 | Q33: 16.29699717 | T33: 0 | W33: 0 | Z33: =IF(B33="","",IF(Data!$A$1=1,$AH$5,IF(Data!$A$1=2,$AH$5*IF(K33="",1,K33)))) -> 306.9128431 | AC33: 0.01534564215 | AF33: 306.9281887
B34: 15 | C34: =IFERROR(INDEX(Fechas!$B$7:$U$198,Simulador!B34,Data!$D$3-1),"") -> 15 | E34: =IF($J$5=2,IFERROR(INDEX(Fechas!$B$7:$U$198,Simulador!B34,Data!$D$3),""),IF(B34>$U$5,"",E33+Data!$E$3)) -> 2020-03-08 | G34: 29 | H34: 901.1214236 | N34: 294.6523702 | Q34: 12.26047288 | T34: 0 | W34: 0 | Z34: =IF(B34="","",IF(Data!$A$1=1,$AH$5,IF(Data!$A$1=2,$AH$5*IF(K34="",1,K34)))) -> 306.9128431 | AC34: 0.01534564215 | AF34: 306.9281887
B35: 16 | C35: =IFERROR(INDEX(Fechas!$B$7:$U$198,Simulador!B35,Data!$D$3-1),"") -> 16 | E35: =IF($J$5=2,IFERROR(INDEX(Fechas!$B$7:$U$198,Simulador!B35,Data!$D$3),""),IF(B35>$U$5,"",E34+Data!$E$3)) -> 2020-04-08 | G35: 31 | H35: 604.0886099 | N35: 297.0328137 | Q35: 9.880029369 | T35: 0 | W35: 0 | Z35: =IF(B35="","",IF(Data!$A$1=1,$AH$5,IF(Data!$A$1=2,$AH$5*IF(K35="",1,K35)))) -> 306.9128431 | AC35: 0.01534564215 | AF35: 306.9281887
B36: 17 | C36: =IFERROR(INDEX(Fechas!$B$7:$U$198,Simulador!B36,Data!$D$3-1),"") -> 17 | E36: =IF($J$5=2,IFERROR(INDEX(Fechas!$B$7:$U$198,Simulador!B36,Data!$D$3),""),IF(B36>$U$5,"",E35+Data!$E$3)) -> 2020-05-08 | G36: 30 | H36: 303.5842996 | N36: 300.5043103 | Q36: 6.408532764 | T36: 0 | W36: 0 | Z36: =IF(B36="","",IF(Data!$A$1=1,$AH$5,IF(Data!$A$1=2,$AH$5*IF(K36="",1,K36)))) -> 306.9128431 | AC36: 0.01534564215 | AF36: 306.9281887
B37: 18 | C37: =IFERROR(INDEX(Fechas!$B$7:$U$198,Simulador!B37,Data!$D$3-1),"") -> 18 | E37: =IF($J$5=2,IFERROR(INDEX(Fechas!$B$7:$U$198,Simulador!B37,Data!$D$3),""),IF(B37>$U$5,"",E36+Data!$E$3)) -> 2020-06-08 | G37: 31 | H37: 1.818989404e-12 | N37: 303.5842996 | Q37: 3.328543432 | T37: 0 | W37: 0 | Z37: =IF(B37="","",IF(Data!$A$1=1,$AH$5,IF(Data!$A$1=2,$AH$5*IF(K37="",1,K37)))) -> 306.9128431 | AC37: 0.01534564215 | AF37: 306.9281887
C38: =IFERROR(INDEX(Fechas!$B$7:$U$198,Simulador!B38,Data!$D$3-1),"") ->  | E38: =IF($J$5=2,IFERROR(INDEX(Fechas!$B$7:$U$198,Simulador!B38,Data!$D$3),""),IF(B38>$U$5,"",E37+Data!$E$3)) ->  | T38: 0 | Z38: =IF(B38="","",IF(Data!$A$1=1,$AH$5,IF(Data!$A$1=2,$AH$5*IF(K38="",1,K38)))) -> 
C39: =IFERROR(INDEX(Fechas!$B$7:$U$198,Simulador!B39,Data!$D$3-1),"") ->  | E39: =IF($J$5=2,IFERROR(INDEX(Fechas!$B$7:$U$198,Simulador!B39,Data!$D$3),""),IF(B39>$U$5,"",E38+Data!$E$3)) ->  | T39: 0 | Z39: =IF(B39="","",IF(Data!$A$1=1,$AH$5,IF(Data!$A$1=2,$AH$5*IF(K39="",1,K39)))) -> 
C40: =IFERROR(INDEX(Fechas!$B$7:$U$198,Simulador!B40,Data!$D$3-1),"") ->  | E40: =IF($J$5=2,IFERROR(INDEX(Fechas!$B$7:$U$198,Simulador!B40,Data!$D$3),""),IF(B40>$U$5,"",E39+Data!$E$3)) ->  | T40: 0 | Z40: =IF(B40="","",IF(Data!$A$1=1,$AH$5,IF(Data!$A$1=2,$AH$5*IF(K40="",1,K40)))) -> 
C41: =IFERROR(INDEX(Fechas!$B$7:$U$198,Simulador!B41,Data!$D$3-1),"") ->  | E41: =IF($J$5=2,IFERROR(INDEX(Fechas!$B$7:$U$198,Simulador!B41,Data!$D$3),""),IF(B41>$U$5,"",E40+Data!$E$3)) ->  | T41: 0 | Z41: =IF(B41="","",IF(Data!$A$1=1,$AH$5,IF(Data!$A$1=2,$AH$5*IF(K41="",1,K41)))) -> 
C42: =IFERROR(INDEX(Fechas!$B$7:$U$198,Simulador!B42,Data!$D$3-1),"") ->  | E42: =IF($J$5=2,IFERROR(INDEX(Fechas!$B$7:$U$198,Simulador!B42,Data!$D$3),""),IF(B42>$U$5,"",E41+Data!$E$3)) ->  | T42: 0 | Z42: =IF(B42="","",IF(Data!$A$1=1,$AH$5,IF(Data!$A$1=2,$AH$5*IF(K42="",1,K42)))) -> 
C43: =IFERROR(INDEX(Fechas!$B$7:$U$198,Simulador!B43,Data!$D$3-1),"") ->  | E43: =IF($J$5=2,IFERROR(INDEX(Fechas!$B$7:$U$198,Simulador!B43,Data!$D$3),""),IF(B43>$U$5,"",E42+Data!$E$3)) ->  | T43: 0 | Z43: =IF(B43="","",IF(Data!$A$1=1,$AH$5,IF(Data!$A$1=2,$AH$5*IF(K43="",1,K43)))) -> 
C44: =IFERROR(INDEX(Fechas!$B$7:$U$198,Simulador!B44,Data!$D$3-1),"") ->  | E44: =IF($J$5=2,IFERROR(INDEX(Fechas!$B$7:$U$198,Simulador!B44,Data!$D$3),""),IF(B44>$U$5,"",E43+Data!$E$3)) ->  | T44: 0 | Z44: =IF(B44="","",IF(Data!$A$1=1,$AH$5,IF(Data!$A$1=2,$AH$5*IF(K44="",1,K44)))) -> 
C45: =IFERROR(INDEX(Fechas!$B$7:$U$198,Simulador!B45,Data!$D$3-1),"") ->  | E45: =IF($J$5=2,IFERROR(INDEX(Fechas!$B$7:$U$198,Simulador!B45,Data!$D$3),""),IF(B45>$U$5,"",E44+Data!$E$3)) ->  | T45: 0 | Z45: =IF(B45="","",IF(Data!$A$1=1,$AH$5,IF(Data!$A$1=2,$AH$5*IF(K45="",1,K45)))) -> 
C46: =IFERROR(INDEX(Fechas!$B$7:$U$198,Simulador!B46,Data!$D$3-1),"") ->  | E46: =IF($J$5=2,IFERROR(INDEX(Fechas!$B$7:$U$198,Simulador!B46,Data!$D$3),""),IF(B46>$U$5,"",E45+Data!$E$3)) ->  | T46: 0 | Z46: =IF(B46="","",IF(Data!$A$1=1,$AH$5,IF(Data!$A$1=2,$AH$5*IF(K46="",1,K46)))) -> 
C47: =IFERROR(INDEX(Fechas!$B$7:$U$198,Simulador!B47,Data!$D$3-1),"") ->  | E47: =IF($J$5=2,IFERROR(INDEX(Fechas!$B$7:$U$198,Simulador!B47,Data!$D$3),""),IF(B47>$U$5,"",E46+Data!$E$3)) ->  | T47: 0 | Z47: =IF(B47="","",IF(Data!$A$1=1,$AH$5,IF(Data!$A$1=2,$AH$5*IF(K47="",1,K47)))) -> 
C48: =IFERROR(INDEX(Fechas!$B$7:$U$198,Simulador!B48,Data!$D$3-1),"") ->  | E48: =IF($J$5=2,IFERROR(INDEX(Fechas!$B$7:$U$198,Simulador!B48,Data!$D$3),""),IF(B48>$U$5,"",E47+Data!$E$3)) ->  | T48: 0 | Z48: =IF(B48="","",IF(Data!$A$1=1,$AH$5,IF(Data!$A$1=2,$AH$5*IF(K48="",1,K48)))) -> 
C49: =IFERROR(INDEX(Fechas!$B$7:$U$198,Simulador!B49,Data!$D$3-1),"") ->  | E49: =IF($J$5=2,IFERROR(INDEX(Fechas!$B$7:$U$198,Simulador!B49,Data!$D$3),""),IF(B49>$U$5,"",E48+Data!$E$3)) ->  | T49: 0 | Z49: =IF(B49="","",IF(Data!$A$1=1,$AH$5,IF(Data!$A$1=2,$AH$5*IF(K49="",1,K49)))) -> 
C50: =IFERROR(INDEX(Fechas!$B$7:$U$198,Simulador!B50,Data!$D$3-1),"") ->  | E50: =IF($J$5=2,IFERROR(INDEX(Fechas!$B$7:$U$198,Simulador!B50,Data!$D$3),""),IF(B50>$U$5,"",E49+Data!$E$3)) ->  | T50: 0 | Z50: =IF(B50="","",IF(Data!$A$1=1,$AH$5,IF(Data!$A$1=2,$AH$5*IF(K50="",1,K50)))) -> 
C51: =IFERROR(INDEX(Fechas!$B$7:$U$198,Simulador!B51,Data!$D$3-1),"") ->  | E51: =IF($J$5=2,IFERROR(INDEX(Fechas!$B$7:$U$198,Simulador!B51,Data!$D$3),""),IF(B51>$U$5,"",E50+Data!$E$3)) ->  | T51: 0 | Z51: =IF(B51="","",IF(Data!$A$1=1,$AH$5,IF(Data!$A$1=2,$AH$5*IF(K51="",1,K51)))) -> 
C52: =IFERROR(INDEX(Fechas!$B$7:$U$198,Simulador!B52,Data!$D$3-1),"") ->  | E52: =IF($J$5=2,IFERROR(INDEX(Fechas!$B$7:$U$198,Simulador!B52,Data!$D$3),""),IF(B52>$U$5,"",E51+Data!$E$3)) ->  | T52: 0 | Z52: =IF(B52="","",IF(Data!$A$1=1,$AH$5,IF(Data!$A$1=2,$AH$5*IF(K52="",1,K52)))) -> 
C53: =IFERROR(INDEX(Fechas!$B$7:$U$198,Simulador!B53,Data!$D$3-1),"") ->  | E53: =IF($J$5=2,IFERROR(INDEX(Fechas!$B$7:$U$198,Simulador!B53,Data!$D$3),""),IF(B53>$U$5,"",E52+Data!$E$3)) ->  | T53: 0 | Z53: =IF(B53="","",IF(Data!$A$1=1,$AH$5,IF(Data!$A$1=2,$AH$5*IF(K53="",1,K53)))) -> 
C54: =IFERROR(INDEX(Fechas!$B$7:$U$198,Simulador!B54,Data!$D$3-1),"") ->  | E54: =IF($J$5=2,IFERROR(INDEX(Fechas!$B$7:$U$198,Simulador!B54,Data!$D$3),""),IF(B54>$U$5,"",E53+Data!$E$3)) ->  | T54: 0 | Z54: =IF(B54="","",IF(Data!$A$1=1,$AH$5,IF(Data!$A$1=2,$AH$5*IF(K54="",1,K54)))) -> 
C55: =IFERROR(INDEX(Fechas!$B$7:$U$198,Simulador!B55,Data!$D$3-1),"") ->  | E55: =IF($J$5=2,IFERROR(INDEX(Fechas!$B$7:$U$198,Simulador!B55,Data!$D$3),""),IF(B55>$U$5,"",E54+Data!$E$3)) ->  | T55: 0 | Z55: =IF(B55="","",IF(Data!$A$1=1,$AH$5,IF(Data!$A$1=2,$AH$5*IF(K55="",1,K55)))) -> 
C56: =IFERROR(INDEX(Fechas!$B$7:$U$198,Simulador!B56,Data!$D$3-1),"") ->  | E56: =IF($J$5=2,IFERROR(INDEX(Fechas!$B$7:$U$198,Simulador!B56,Data!$D$3),""),IF(B56>$U$5,"",E55+Data!$E$3)) ->  | T56: 0 | Z56: =IF(B56="","",IF(Data!$A$1=1,$AH$5,IF(Data!$A$1=2,$AH$5*IF(K56="",1,K56)))) -> 
C57: =IFERROR(INDEX(Fechas!$B$7:$U$198,Simulador!B57,Data!$D$3-1),"") ->  | E57: =IF($J$5=2,IFERROR(INDEX(Fechas!$B$7:$U$198,Simulador!B57,Data!$D$3),""),IF(B57>$U$5,"",E56+Data!$E$3)) ->  | T57: 0 | Z57: =IF(B57="","",IF(Data!$A$1=1,$AH$5,IF(Data!$A$1=2,$AH$5*IF(K57="",1,K57)))) -> 
C58: =IFERROR(INDEX(Fechas!$B$7:$U$198,Simulador!B58,Data!$D$3-1),"") ->  | E58: =IF($J$5=2,IFERROR(INDEX(Fechas!$B$7:$U$198,Simulador!B58,Data!$D$3),""),IF(B58>$U$5,"",E57+Data!$E$3)) ->  | T58: 0 | Z58: =IF(B58="","",IF(Data!$A$1=1,$AH$5,IF(Data!$A$1=2,$AH$5*IF(K58="",1,K58)))) -> 
C59: =IFERROR(INDEX(Fechas!$B$7:$U$198,Simulador!B59,Data!$D$3-1),"") ->  | E59: =IF($J$5=2,IFERROR(INDEX(Fechas!$B$7:$U$198,Simulador!B59,Data!$D$3),""),IF(B59>$U$5,"",E58+Data!$E$3)) ->  | T59: 0 | Z59: =IF(B59="","",IF(Data!$A$1=1,$AH$5,IF(Data!$A$1=2,$AH$5*IF(K59="",1,K59)))) -> 
C60: =IFERROR(INDEX(Fechas!$B$7:$U$198,Simulador!B60,Data!$D$3-1),"") ->  | E60: =IF($J$5=2,IFERROR(INDEX(Fechas!$B$7:$U$198,Simulador!B60,Data!$D$3),""),IF(B60>$U$5,"",E59+Data!$E$3)) ->  | T60: 0 | Z60: =IF(B60="","",IF(Data!$A$1=1,$AH$5,IF(Data!$A$1=2,$AH$5*IF(K60="",1,K60)))) -> 
C61: =IFERROR(INDEX(Fechas!$B$7:$U$198,Simulador!B61,Data!$D$3-1),"") ->  | E61: =IF($J$5=2,IFERROR(INDEX(Fechas!$B$7:$U$198,Simulador!B61,Data!$D$3),""),IF(B61>$U$5,"",E60+Data!$E$3)) ->  | T61: 0 | Z61: =IF(B61="","",IF(Data!$A$1=1,$AH$5,IF(Data!$A$1=2,$AH$5*IF(K61="",1,K61)))) -> 
C62: =IFERROR(INDEX(Fechas!$B$7:$U$198,Simulador!B62,Data!$D$3-1),"") ->  | E62: =IF($J$5=2,IFERROR(INDEX(Fechas!$B$7:$U$198,Simulador!B62,Data!$D$3),""),IF(B62>$U$5,"",E61+Data!$E$3)) ->  | T62: 0 | Z62: =IF(B62="","",IF(Data!$A$1=1,$AH$5,IF(Data!$A$1=2,$AH$5*IF(K62="",1,K62)))) -> 
C63: =IFERROR(INDEX(Fechas!$B$7:$U$198,Simulador!B63,Data!$D$3-1),"") ->  | E63: =IF($J$5=2,IFERROR(INDEX(Fechas!$B$7:$U$198,Simulador!B63,Data!$D$3),""),IF(B63>$U$5,"",E62+Data!$E$3)) ->  | T63: 0 | Z63: =IF(B63="","",IF(Data!$A$1=1,$AH$5,IF(Data!$A$1=2,$AH$5*IF(K63="",1,K63)))) -> 
C64: =IFERROR(INDEX(Fechas!$B$7:$U$198,Simulador!B64,Data!$D$3-1),"") ->  | E64: =IF($J$5=2,IFERROR(INDEX(Fechas!$B$7:$U$198,Simulador!B64,Data!$D$3),""),IF(B64>$U$5,"",E63+Data!$E$3)) ->  | T64: 0 | Z64: =IF(B64="","",IF(Data!$A$1=1,$AH$5,IF(Data!$A$1=2,$AH$5*IF(K64="",1,K64)))) -> 
C65: =IFERROR(INDEX(Fechas!$B$7:$U$198,Simulador!B65,Data!$D$3-1),"") ->  | E65: =IF($J$5=2,IFERROR(INDEX(Fechas!$B$7:$U$198,Simulador!B65,Data!$D$3),""),IF(B65>$U$5,"",E64+Data!$E$3)) ->  | T65: 0 | Z65: =IF(B65="","",IF(Data!$A$1=1,$AH$5,IF(Data!$A$1=2,$AH$5*IF(K65="",1,K65)))) -> 
C66: =IFERROR(INDEX(Fechas!$B$7:$U$198,Simulador!B66,Data!$D$3-1),"") ->  | E66: =IF($J$5=2,IFERROR(INDEX(Fechas!$B$7:$U$198,Simulador!B66,Data!$D$3),""),IF(B66>$U$5,"",E65+Data!$E$3)) ->  | T66: 0 | Z66: =IF(B66="","",IF(Data!$A$1=1,$AH$5,IF(Data!$A$1=2,$AH$5*IF(K66="",1,K66)))) -> 
C67: =IFERROR(INDEX(Fechas!$B$7:$U$198,Simulador!B67,Data!$D$3-1),"") ->  | E67: =IF($J$5=2,IFERROR(INDEX(Fechas!$B$7:$U$198,Simulador!B67,Data!$D$3),""),IF(B67>$U$5,"",E66+Data!$E$3)) ->  | T67: 0 | Z67: =IF(B67="","",IF(Data!$A$1=1,$AH$5,IF(Data!$A$1=2,$AH$5*IF(K67="",1,K67)))) -> 
C68: =IFERROR(INDEX(Fechas!$B$7:$U$198,Simulador!B68,Data!$D$3-1),"") ->  | E68: =IF($J$5=2,IFERROR(INDEX(Fechas!$B$7:$U$198,Simulador!B68,Data!$D$3),""),IF(B68>$U$5,"",E67+Data!$E$3)) ->  | T68: 0 | Z68: =IF(B68="","",IF(Data!$A$1=1,$AH$5,IF(Data!$A$1=2,$AH$5*IF(K68="",1,K68)))) -> 
C69: =IFERROR(INDEX(Fechas!$B$7:$U$198,Simulador!B69,Data!$D$3-1),"") ->  | E69: =IF($J$5=2,IFERROR(INDEX(Fechas!$B$7:$U$198,Simulador!B69,Data!$D$3),""),IF(B69>$U$5,"",E68+Data!$E$3)) ->  | T69: 0 | Z69: =IF(B69="","",IF(Data!$A$1=1,$AH$5,IF(Data!$A$1=2,$AH$5*IF(K69="",1,K69)))) -> 
C70: =IFERROR(INDEX(Fechas!$B$7:$U$198,Simulador!B70,Data!$D$3-1),"") ->  | E70: =IF($J$5=2,IFERROR(INDEX(Fechas!$B$7:$U$198,Simulador!B70,Data!$D$3),""),IF(B70>$U$5,"",E69+Data!$E$3)) ->  | T70: 0 | Z70: =IF(B70="","",IF(Data!$A$1=1,$AH$5,IF(Data!$A$1=2,$AH$5*IF(K70="",1,K70)))) -> 
C71: =IFERROR(INDEX(Fechas!$B$7:$U$198,Simulador!B71,Data!$D$3-1),"") ->  | E71: =IF($J$5=2,IFERROR(INDEX(Fechas!$B$7:$U$198,Simulador!B71,Data!$D$3),""),IF(B71>$U$5,"",E70+Data!$E$3)) ->  | T71: 0 | Z71: =IF(B71="","",IF(Data!$A$1=1,$AH$5,IF(Data!$A$1=2,$AH$5*IF(K71="",1,K71)))) -> 
C72: =IFERROR(INDEX(Fechas!$B$7:$U$198,Simulador!B72,Data!$D$3-1),"") ->  | E72: =IF($J$5=2,IFERROR(INDEX(Fechas!$B$7:$U$198,Simulador!B72,Data!$D$3),""),IF(B72>$U$5,"",E71+Data!$E$3)) ->  | T72: 0 | Z72: =IF(B72="","",IF(Data!$A$1=1,$AH$5,IF(Data!$A$1=2,$AH$5*IF(K72="",1,K72)))) -> 
C73: =IFERROR(INDEX(Fechas!$B$7:$U$198,Simulador!B73,Data!$D$3-1),"") ->  | E73: =IF($J$5=2,IFERROR(INDEX(Fechas!$B$7:$U$198,Simulador!B73,Data!$D$3),""),IF(B73>$U$5,"",E72+Data!$E$3)) ->  | T73: 0 | Z73: =IF(B73="","",IF(Data!$A$1=1,$AH$5,IF(Data!$A$1=2,$AH$5*IF(K73="",1,K73)))) -> 
C74: =IFERROR(INDEX(Fechas!$B$7:$U$198,Simulador!B74,Data!$D$3-1),"") ->  | E74: =IF($J$5=2,IFERROR(INDEX(Fechas!$B$7:$U$198,Simulador!B74,Data!$D$3),""),IF(B74>$U$5,"",E73+Data!$E$3)) ->  | T74: 0 | Z74: =IF(B74="","",IF(Data!$A$1=1,$AH$5,IF(Data!$A$1=2,$AH$5*IF(K74="",1,K74)))) -> 
C75: =IFERROR(INDEX(Fechas!$B$7:$U$198,Simulador!B75,Data!$D$3-1),"") ->  | E75: =IF($J$5=2,IFERROR(INDEX(Fechas!$B$7:$U$198,Simulador!B75,Data!$D$3),""),IF(B75>$U$5,"",E74+Data!$E$3)) ->  | T75: 0 | Z75: =IF(B75="","",IF(Data!$A$1=1,$AH$5,IF(Data!$A$1=2,$AH$5*IF(K75="",1,K75)))) -> 
C76: =IFERROR(INDEX(Fechas!$B$7:$U$198,Simulador!B76,Data!$D$3-1),"") ->  | E76: =IF($J$5=2,IFERROR(INDEX(Fechas!$B$7:$U$198,Simulador!B76,Data!$D$3),""),IF(B76>$U$5,"",E75+Data!$E$3)) ->  | T76: 0 | Z76: =IF(B76="","",IF(Data!$A$1=1,$AH$5,IF(Data!$A$1=2,$AH$5*IF(K76="",1,K76)))) -> 
C77: =IFERROR(INDEX(Fechas!$B$7:$U$198,Simulador!B77,Data!$D$3-1),"") ->  | E77: =IF($J$5=2,IFERROR(INDEX(Fechas!$B$7:$U$198,Simulador!B77,Data!$D$3),""),IF(B77>$U$5,"",E76+Data!$E$3)) ->  | T77: 0 | Z77: =IF(B77="","",IF(Data!$A$1=1,$AH$5,IF(Data!$A$1=2,$AH$5*IF(K77="",1,K77)))) -> 
C78: =IFERROR(INDEX(Fechas!$B$7:$U$198,Simulador!B78,Data!$D$3-1),"") ->  | E78: =IF($J$5=2,IFERROR(INDEX(Fechas!$B$7:$U$198,Simulador!B78,Data!$D$3),""),IF(B78>$U$5,"",E77+Data!$E$3)) ->  | T78: 0 | Z78: =IF(B78="","",IF(Data!$A$1=1,$AH$5,IF(Data!$A$1=2,$AH$5*IF(K78="",1,K78)))) -> 
C79: =IFERROR(INDEX(Fechas!$B$7:$U$198,Simulador!B79,Data!$D$3-1),"") ->  | E79: =IF($J$5=2,IFERROR(INDEX(Fechas!$B$7:$U$198,Simulador!B79,Data!$D$3),""),IF(B79>$U$5,"",E78+Data!$E$3)) ->  | T79: 0 | Z79: =IF(B79="","",IF(Data!$A$1=1,$AH$5,IF(Data!$A$1=2,$AH$5*IF(K79="",1,K79)))) -> 
C80: =IFERROR(INDEX(Fechas!$B$7:$U$198,Simulador!B80,Data!$D$3-1),"") ->  | E80: =IF($J$5=2,IFERROR(INDEX(Fechas!$B$7:$U$198,Simulador!B80,Data!$D$3),""),IF(B80>$U$5,"",E79+Data!$E$3)) ->  | T80: 0 | Z80: =IF(B80="","",IF(Data!$A$1=1,$AH$5,IF(Data!$A$1=2,$AH$5*IF(K80="",1,K80)))) -> 
C81: =IFERROR(INDEX(Fechas!$B$7:$U$198,Simulador!B81,Data!$D$3-1),"") ->  | E81: =IF($J$5=2,IFERROR(INDEX(Fechas!$B$7:$U$198,Simulador!B81,Data!$D$3),""),IF(B81>$U$5,"",E80+Data!$E$3)) ->  | T81: 0 | Z81: =IF(B81="","",IF(Data!$A$1=1,$AH$5,IF(Data!$A$1=2,$AH$5*IF(K81="",1,K81)))) -> 
C82: =IFERROR(INDEX(Fechas!$B$7:$U$198,Simulador!B82,Data!$D$3-1),"") ->  | E82: =IF($J$5=2,IFERROR(INDEX(Fechas!$B$7:$U$198,Simulador!B82,Data!$D$3),""),IF(B82>$U$5,"",E81+Data!$E$3)) ->  | T82: 0 | Z82: =IF(B82="","",IF(Data!$A$1=1,$AH$5,IF(Data!$A$1=2,$AH$5*IF(K82="",1,K82)))) -> 
C83: =IFERROR(INDEX(Fechas!$B$7:$U$198,Simulador!B83,Data!$D$3-1),"") ->  | E83: =IF($J$5=2,IFERROR(INDEX(Fechas!$B$7:$U$198,Simulador!B83,Data!$D$3),""),IF(B83>$U$5,"",E82+Data!$E$3)) ->  | T83: 0 | Z83: =IF(B83="","",IF(Data!$A$1=1,$AH$5,IF(Data!$A$1=2,$AH$5*IF(K83="",1,K83)))) -> 
B84: =IF(ROW(B84)-19>$U$5,"",ROW(B84)-19) ->  | C84: =IFERROR(INDEX(Fechas!$B$7:$U$198,Simulador!B84,Data!$D$3-1),"") ->  | E84: =IF($J$5=2,IFERROR(INDEX(Fechas!$B$7:$U$198,Simulador!B84,Data!$D$3),""),IF(B84>$U$5,"",E83+Data!$E$3)) ->  | G84: =IF(B84="","",E84-E83) ->  | H84: =IF(B84="","",H83-N84) ->  | N84: =IF(B84="","",Z84-SUM(Q84:Y84)) ->  | Q84: =IF(B84="","",IF(B83<=$U$5-1,H83*(((1+$N$9)^(G84/360))-1),1/0)) ->  | T84: 0 | W84: =IF(B84="","",$E$10) ->  | Z84: =IF(B84="","",IF(Data!$A$1=1,$AH$5,IF(Data!$A$1=2,$AH$5*IF(K84="",1,K84)))) ->  | AC84: =IF(B84="","",Z84*$E$11) ->  | AF84: =IF(B84="","",Z84+AC84) -> 
C85: =IFERROR(INDEX(Fechas!$B$7:$U$198,Simulador!B85,Data!$D$3-1),"") ->  | E85: =IF($J$5=2,IFERROR(INDEX(Fechas!$B$7:$U$198,Simulador!B85,Data!$D$3),""),IF(B85>$U$5,"",E84+Data!$E$3)) ->  | T85: 0 | Z85: =IF(B85="","",IF(Data!$A$1=1,$AH$5,IF(Data!$A$1=2,$AH$5*IF(K85="",1,K85)))) -> 
C86: =IFERROR(INDEX(Fechas!$B$7:$U$198,Simulador!B86,Data!$D$3-1),"") ->  | E86: =IF($J$5=2,IFERROR(INDEX(Fechas!$B$7:$U$198,Simulador!B86,Data!$D$3),""),IF(B86>$U$5,"",E85+Data!$E$3)) ->  | T86: =IF($E$9=0,0,IF(AND(B86<>"",C86<>0),IF($E$9*H85<1,1,$E$9*H85),"")) -> 0 | Z86: =IF(B86="","",IF(Data!$A$1=1,$AH$5,IF(Data!$A$1=2,$AH$5*IF(K86="",1,K86)))) -> 
C87: =IFERROR(INDEX(Fechas!$B$7:$U$198,Simulador!B87,Data!$D$3-1),"") ->  | E87: =IF($J$5=2,IFERROR(INDEX(Fechas!$B$7:$U$198,Simulador!B87,Data!$D$3),""),IF(B87>$U$5,"",E86+Data!$E$3)) ->  | T87: 0 | Z87: =IF(B87="","",IF(Data!$A$1=1,$AH$5,IF(Data!$A$1=2,$AH$5*IF(K87="",1,K87)))) -> 
C88: =IFERROR(INDEX(Fechas!$B$7:$U$198,Simulador!B88,Data!$D$3-1),"") ->  | E88: =IF($J$5=2,IFERROR(INDEX(Fechas!$B$7:$U$198,Simulador!B88,Data!$D$3),""),IF(B88>$U$5,"",E87+Data!$E$3)) ->  | T88: 0 | Z88: =IF(B88="","",IF(Data!$A$1=1,$AH$5,IF(Data!$A$1=2,$AH$5*IF(K88="",1,K88)))) -> 
C89: =IFERROR(INDEX(Fechas!$B$7:$U$198,Simulador!B89,Data!$D$3-1),"") ->  | E89: =IF($J$5=2,IFERROR(INDEX(Fechas!$B$7:$U$198,Simulador!B89,Data!$D$3),""),IF(B89>$U$5,"",E88+Data!$E$3)) ->  | T89: 0 | Z89: =IF(B89="","",IF(Data!$A$1=1,$AH$5,IF(Data!$A$1=2,$AH$5*IF(K89="",1,K89)))) -> 
C90: =IFERROR(INDEX(Fechas!$B$7:$U$198,Simulador!B90,Data!$D$3-1),"") ->  | E90: =IF($J$5=2,IFERROR(INDEX(Fechas!$B$7:$U$198,Simulador!B90,Data!$D$3),""),IF(B90>$U$5,"",E89+Data!$E$3)) ->  | T90: 0 | Z90: =IF(B90="","",IF(Data!$A$1=1,$AH$5,IF(Data!$A$1=2,$AH$5*IF(K90="",1,K90)))) -> 
C91: =IFERROR(INDEX(Fechas!$B$7:$U$198,Simulador!B91,Data!$D$3-1),"") ->  | E91: =IF($J$5=2,IFERROR(INDEX(Fechas!$B$7:$U$198,Simulador!B91,Data!$D$3),""),IF(B91>$U$5,"",E90+Data!$E$3)) ->  | T91: 0 | Z91: =IF(B91="","",IF(Data!$A$1=1,$AH$5,IF(Data!$A$1=2,$AH$5*IF(K91="",1,K91)))) -> 
C92: =IFERROR(INDEX(Fechas!$B$7:$U$198,Simulador!B92,Data!$D$3-1),"") ->  | E92: =IF($J$5=2,IFERROR(INDEX(Fechas!$B$7:$U$198,Simulador!B92,Data!$D$3),""),IF(B92>$U$5,"",E91+Data!$E$3)) ->  | T92: 0 | Z92: =IF(B92="","",IF(Data!$A$1=1,$AH$5,IF(Data!$A$1=2,$AH$5*IF(K92="",1,K92)))) -> 
C93: =IFERROR(INDEX(Fechas!$B$7:$U$198,Simulador!B93,Data!$D$3-1),"") ->  | E93: =IF($J$5=2,IFERROR(INDEX(Fechas!$B$7:$U$198,Simulador!B93,Data!$D$3),""),IF(B93>$U$5,"",E92+Data!$E$3)) ->  | T93: 0 | Z93: =IF(B93="","",IF(Data!$A$1=1,$AH$5,IF(Data!$A$1=2,$AH$5*IF(K93="",1,K93)))) -> 
C94: =IFERROR(INDEX(Fechas!$B$7:$U$198,Simulador!B94,Data!$D$3-1),"") ->  | E94: =IF($J$5=2,IFERROR(INDEX(Fechas!$B$7:$U$198,Simulador!B94,Data!$D$3),""),IF(B94>$U$5,"",E93+Data!$E$3)) ->  | T94: 0 | Z94: =IF(B94="","",IF(Data!$A$1=1,$AH$5,IF(Data!$A$1=2,$AH$5*IF(K94="",1,K94)))) -> 
C95: =IFERROR(INDEX(Fechas!$B$7:$U$198,Simulador!B95,Data!$D$3-1),"") ->  | E95: =IF($J$5=2,IFERROR(INDEX(Fechas!$B$7:$U$198,Simulador!B95,Data!$D$3),""),IF(B95>$U$5,"",E94+Data!$E$3)) ->  | T95: 0 | Z95: =IF(B95="","",IF(Data!$A$1=1,$AH$5,IF(Data!$A$1=2,$AH$5*IF(K95="",1,K95)))) -> 
C96: =IFERROR(INDEX(Fechas!$B$7:$U$198,Simulador!B96,Data!$D$3-1),"") ->  | E96: =IF($J$5=2,IFERROR(INDEX(Fechas!$B$7:$U$198,Simulador!B96,Data!$D$3),""),IF(B96>$U$5,"",E95+Data!$E$3)) ->  | T96: 0 | Z96: =IF(B96="","",IF(Data!$A$1=1,$AH$5,IF(Data!$A$1=2,$AH$5*IF(K96="",1,K96)))) -> 
C97: =IFERROR(INDEX(Fechas!$B$7:$U$198,Simulador!B97,Data!$D$3-1),"") ->  | E97: =IF($J$5=2,IFERROR(INDEX(Fechas!$B$7:$U$198,Simulador!B97,Data!$D$3),""),IF(B97>$U$5,"",E96+Data!$E$3)) ->  | T97: 0 | Z97: =IF(B97="","",IF(Data!$A$1=1,$AH$5,IF(Data!$A$1=2,$AH$5*IF(K97="",1,K97)))) -> 
C98: =IFERROR(INDEX(Fechas!$B$7:$U$198,Simulador!B98,Data!$D$3-1),"") ->  | E98: =IF($J$5=2,IFERROR(INDEX(Fechas!$B$7:$U$198,Simulador!B98,Data!$D$3),""),IF(B98>$U$5,"",E97+Data!$E$3)) ->  | T98: 0 | Z98: =IF(B98="","",IF(Data!$A$1=1,$AH$5,IF(Data!$A$1=2,$AH$5*IF(K98="",1,K98)))) -> 
C99: =IFERROR(INDEX(Fechas!$B$7:$U$198,Simulador!B99,Data!$D$3-1),"") ->  | E99: =IF($J$5=2,IFERROR(INDEX(Fechas!$B$7:$U$198,Simulador!B99,Data!$D$3),""),IF(B99>$U$5,"",E98+Data!$E$3)) ->  | T99: 0 | Z99: =IF(B99="","",IF(Data!$A$1=1,$AH$5,IF(Data!$A$1=2,$AH$5*IF(K99="",1,K99)))) -> 
C100: =IFERROR(INDEX(Fechas!$B$7:$U$198,Simulador!B100,Data!$D$3-1),"") ->  | E100: =IF($J$5=2,IFERROR(INDEX(Fechas!$B$7:$U$198,Simulador!B100,Data!$D$3),""),IF(B100>$U$5,"",E99+Data!$E$3)) ->  | T100: 0 | Z100: =IF(B100="","",IF(Data!$A$1=1,$AH$5,IF(Data!$A$1=2,$AH$5*IF(K100="",1,K100)))) -> 
C101: =IFERROR(INDEX(Fechas!$B$7:$U$198,Simulador!B101,Data!$D$3-1),"") ->  | E101: =IF($J$5=2,IFERROR(INDEX(Fechas!$B$7:$U$198,Simulador!B101,Data!$D$3),""),IF(B101>$U$5,"",E100+Data!$E$3)) ->  | T101: 0 | Z101: =IF(B101="","",IF(Data!$A$1=1,$AH$5,IF(Data!$A$1=2,$AH$5*IF(K101="",1,K101)))) -> 
C102: =IFERROR(INDEX(Fechas!$B$7:$U$198,Simulador!B102,Data!$D$3-1),"") ->  | E102: =IF($J$5=2,IFERROR(INDEX(Fechas!$B$7:$U$198,Simulador!B102,Data!$D$3),""),IF(B102>$U$5,"",E101+Data!$E$3)) ->  | T102: 0 | Z102: =IF(B102="","",IF(Data!$A$1=1,$AH$5,IF(Data!$A$1=2,$AH$5*IF(K102="",1,K102)))) -> 
C103: =IFERROR(INDEX(Fechas!$B$7:$U$198,Simulador!B103,Data!$D$3-1),"") ->  | E103: =IF($J$5=2,IFERROR(INDEX(Fechas!$B$7:$U$198,Simulador!B103,Data!$D$3),""),IF(B103>$U$5,"",E102+Data!$E$3)) ->  | T103: 0 | Z103: =IF(B103="","",IF(Data!$A$1=1,$AH$5,IF(Data!$A$1=2,$AH$5*IF(K103="",1,K103)))) -> 
C104: =IFERROR(INDEX(Fechas!$B$7:$U$198,Simulador!B104,Data!$D$3-1),"") ->  | E104: =IF($J$5=2,IFERROR(INDEX(Fechas!$B$7:$U$198,Simulador!B104,Data!$D$3),""),IF(B104>$U$5,"",E103+Data!$E$3)) ->  | T104: 0 | Z104: =IF(B104="","",IF(Data!$A$1=1,$AH$5,IF(Data!$A$1=2,$AH$5*IF(K104="",1,K104)))) -> 
C105: =IFERROR(INDEX(Fechas!$B$7:$U$198,Simulador!B105,Data!$D$3-1),"") ->  | E105: =IF($J$5=2,IFERROR(INDEX(Fechas!$B$7:$U$198,Simulador!B105,Data!$D$3),""),IF(B105>$U$5,"",E104+Data!$E$3)) ->  | T105: 0 | Z105: =IF(B105="","",IF(Data!$A$1=1,$AH$5,IF(Data!$A$1=2,$AH$5*IF(K105="",1,K105)))) -> 
C106: =IFERROR(INDEX(Fechas!$B$7:$U$198,Simulador!B106,Data!$D$3-1),"") ->  | E106: =IF($J$5=2,IFERROR(INDEX(Fechas!$B$7:$U$198,Simulador!B106,Data!$D$3),""),IF(B106>$U$5,"",E105+Data!$E$3)) ->  | T106: 0 | Z106: =IF(B106="","",IF(Data!$A$1=1,$AH$5,IF(Data!$A$1=2,$AH$5*IF(K106="",1,K106)))) -> 
C107: =IFERROR(INDEX(Fechas!$B$7:$U$198,Simulador!B107,Data!$D$3-1),"") ->  | E107: =IF($J$5=2,IFERROR(INDEX(Fechas!$B$7:$U$198,Simulador!B107,Data!$D$3),""),IF(B107>$U$5,"",E106+Data!$E$3)) ->  | T107: 0 | Z107: =IF(B107="","",IF(Data!$A$1=1,$AH$5,IF(Data!$A$1=2,$AH$5*IF(K107="",1,K107)))) -> 
C108: =IFERROR(INDEX(Fechas!$B$7:$U$198,Simulador!B108,Data!$D$3-1),"") ->  | E108: =IF($J$5=2,IFERROR(INDEX(Fechas!$B$7:$U$198,Simulador!B108,Data!$D$3),""),IF(B108>$U$5,"",E107+Data!$E$3)) ->  | T108: 0 | Z108: =IF(B108="","",IF(Data!$A$1=1,$AH$5,IF(Data!$A$1=2,$AH$5*IF(K108="",1,K108)))) -> 
C109: =IFERROR(INDEX(Fechas!$B$7:$U$198,Simulador!B109,Data!$D$3-1),"") ->  | E109: =IF($J$5=2,IFERROR(INDEX(Fechas!$B$7:$U$198,Simulador!B109,Data!$D$3),""),IF(B109>$U$5,"",E108+Data!$E$3)) ->  | T109: 0 | Z109: =IF(B109="","",IF(Data!$A$1=1,$AH$5,IF(Data!$A$1=2,$AH$5*IF(K109="",1,K109)))) -> 
C110: =IFERROR(INDEX(Fechas!$B$7:$U$198,Simulador!B110,Data!$D$3-1),"") ->  | E110: =IF($J$5=2,IFERROR(INDEX(Fechas!$B$7:$U$198,Simulador!B110,Data!$D$3),""),IF(B110>$U$5,"",E109+Data!$E$3)) ->  | T110: 0 | Z110: =IF(B110="","",IF(Data!$A$1=1,$AH$5,IF(Data!$A$1=2,$AH$5*IF(K110="",1,K110)))) -> 
C111: =IFERROR(INDEX(Fechas!$B$7:$U$198,Simulador!B111,Data!$D$3-1),"") ->  | E111: =IF($J$5=2,IFERROR(INDEX(Fechas!$B$7:$U$198,Simulador!B111,Data!$D$3),""),IF(B111>$U$5,"",E110+Data!$E$3)) ->  | T111: 0 | Z111: =IF(B111="","",IF(Data!$A$1=1,$AH$5,IF(Data!$A$1=2,$AH$5*IF(K111="",1,K111)))) -> 
C112: =IFERROR(INDEX(Fechas!$B$7:$U$198,Simulador!B112,Data!$D$3-1),"") ->  | E112: =IF($J$5=2,IFERROR(INDEX(Fechas!$B$7:$U$198,Simulador!B112,Data!$D$3),""),IF(B112>$U$5,"",E111+Data!$E$3)) ->  | T112: 0 | Z112: =IF(B112="","",IF(Data!$A$1=1,$AH$5,IF(Data!$A$1=2,$AH$5*IF(K112="",1,K112)))) -> 
C113: =IFERROR(INDEX(Fechas!$B$7:$U$198,Simulador!B113,Data!$D$3-1),"") ->  | E113: =IF($J$5=2,IFERROR(INDEX(Fechas!$B$7:$U$198,Simulador!B113,Data!$D$3),""),IF(B113>$U$5,"",E112+Data!$E$3)) ->  | T113: 0 | Z113: =IF(B113="","",IF(Data!$A$1=1,$AH$5,IF(Data!$A$1=2,$AH$5*IF(K113="",1,K113)))) -> 
C114: =IFERROR(INDEX(Fechas!$B$7:$U$198,Simulador!B114,Data!$D$3-1),"") ->  | E114: =IF($J$5=2,IFERROR(INDEX(Fechas!$B$7:$U$198,Simulador!B114,Data!$D$3),""),IF(B114>$U$5,"",E113+Data!$E$3)) ->  | T114: 0 | Z114: =IF(B114="","",IF(Data!$A$1=1,$AH$5,IF(Data!$A$1=2,$AH$5*IF(K114="",1,K114)))) -> 
C115: =IFERROR(INDEX(Fechas!$B$7:$U$198,Simulador!B115,Data!$D$3-1),"") ->  | E115: =IF($J$5=2,IFERROR(INDEX(Fechas!$B$7:$U$198,Simulador!B115,Data!$D$3),""),IF(B115>$U$5,"",E114+Data!$E$3)) ->  | T115: 0 | Z115: =IF(B115="","",IF(Data!$A$1=1,$AH$5,IF(Data!$A$1=2,$AH$5*IF(K115="",1,K115)))) -> 
C116: =IFERROR(INDEX(Fechas!$B$7:$U$198,Simulador!B116,Data!$D$3-1),"") ->  | E116: =IF($J$5=2,IFERROR(INDEX(Fechas!$B$7:$U$198,Simulador!B116,Data!$D$3),""),IF(B116>$U$5,"",E115+Data!$E$3)) ->  | T116: 0 | Z116: =IF(B116="","",IF(Data!$A$1=1,$AH$5,IF(Data!$A$1=2,$AH$5*IF(K116="",1,K116)))) -> 
C117: =IFERROR(INDEX(Fechas!$B$7:$U$198,Simulador!B117,Data!$D$3-1),"") ->  | E117: =IF($J$5=2,IFERROR(INDEX(Fechas!$B$7:$U$198,Simulador!B117,Data!$D$3),""),IF(B117>$U$5,"",E116+Data!$E$3)) ->  | T117: 0 | Z117: =IF(B117="","",IF(Data!$A$1=1,$AH$5,IF(Data!$A$1=2,$AH$5*IF(K117="",1,K117)))) -> 
C118: =IFERROR(INDEX(Fechas!$B$7:$U$198,Simulador!B118,Data!$D$3-1),"") ->  | E118: =IF($J$5=2,IFERROR(INDEX(Fechas!$B$7:$U$198,Simulador!B118,Data!$D$3),""),IF(B118>$U$5,"",E117+Data!$E$3)) ->  | T118: 0 | Z118: =IF(B118="","",IF(Data!$A$1=1,$AH$5,IF(Data!$A$1=2,$AH$5*IF(K118="",1,K118)))) -> 
C119: =IFERROR(INDEX(Fechas!$B$7:$U$198,Simulador!B119,Data!$D$3-1),"") ->  | E119: =IF($J$5=2,IFERROR(INDEX(Fechas!$B$7:$U$198,Simulador!B119,Data!$D$3),""),IF(B119>$U$5,"",E118+Data!$E$3)) ->  | T119: 0 | Z119: =IF(B119="","",IF(Data!$A$1=1,$AH$5,IF(Data!$A$1=2,$AH$5*IF(K119="",1,K119)))) -> 
C120: =IFERROR(INDEX(Fechas!$B$7:$U$198,Simulador!B120,Data!$D$3-1),"") ->  | E120: =IF($J$5=2,IFERROR(INDEX(Fechas!$B$7:$U$198,Simulador!B120,Data!$D$3),""),IF(B120>$U$5,"",E119+Data!$E$3)) ->  | T120: 0 | Z120: =IF(B120="","",IF(Data!$A$1=1,$AH$5,IF(Data!$A$1=2,$AH$5*IF(K120="",1,K120)))) -> 
C121: =IFERROR(INDEX(Fechas!$B$7:$U$198,Simulador!B121,Data!$D$3-1),"") ->  | E121: =IF($J$5=2,IFERROR(INDEX(Fechas!$B$7:$U$198,Simulador!B121,Data!$D$3),""),IF(B121>$U$5,"",E120+Data!$E$3)) ->  | T121: 0 | Z121: =IF(B121="","",IF(Data!$A$1=1,$AH$5,IF(Data!$A$1=2,$AH$5*IF(K121="",1,K121)))) -> 
C122: =IFERROR(INDEX(Fechas!$B$7:$U$198,Simulador!B122,Data!$D$3-1),"") ->  | E122: =IF($J$5=2,IFERROR(INDEX(Fechas!$B$7:$U$198,Simulador!B122,Data!$D$3),""),IF(B122>$U$5,"",E121+Data!$E$3)) ->  | T122: 0 | Z122: =IF(B122="","",IF(Data!$A$1=1,$AH$5,IF(Data!$A$1=2,$AH$5*IF(K122="",1,K122)))) -> 
C123: =IFERROR(INDEX(Fechas!$B$7:$U$198,Simulador!B123,Data!$D$3-1),"") ->  | E123: =IF($J$5=2,IFERROR(INDEX(Fechas!$B$7:$U$198,Simulador!B123,Data!$D$3),""),IF(B123>$U$5,"",E122+Data!$E$3)) ->  | T123: 0 | Z123: =IF(B123="","",IF(Data!$A$1=1,$AH$5,IF(Data!$A$1=2,$AH$5*IF(K123="",1,K123)))) -> 
C124: =IFERROR(INDEX(Fechas!$B$7:$U$198,Simulador!B124,Data!$D$3-1),"") ->  | E124: =IF($J$5=2,IFERROR(INDEX(Fechas!$B$7:$U$198,Simulador!B124,Data!$D$3),""),IF(B124>$U$5,"",E123+Data!$E$3)) ->  | T124: 0 | Z124: =IF(B124="","",IF(Data!$A$1=1,$AH$5,IF(Data!$A$1=2,$AH$5*IF(K124="",1,K124)))) -> 
C125: =IFERROR(INDEX(Fechas!$B$7:$U$198,Simulador!B125,Data!$D$3-1),"") ->  | E125: =IF($J$5=2,IFERROR(INDEX(Fechas!$B$7:$U$198,Simulador!B125,Data!$D$3),""),IF(B125>$U$5,"",E124+Data!$E$3)) ->  | T125: 0 | Z125: =IF(B125="","",IF(Data!$A$1=1,$AH$5,IF(Data!$A$1=2,$AH$5*IF(K125="",1,K125)))) -> 
C126: =IFERROR(INDEX(Fechas!$B$7:$U$198,Simulador!B126,Data!$D$3-1),"") ->  | E126: =IF($J$5=2,IFERROR(INDEX(Fechas!$B$7:$U$198,Simulador!B126,Data!$D$3),""),IF(B126>$U$5,"",E125+Data!$E$3)) ->  | T126: 0 | Z126: =IF(B126="","",IF(Data!$A$1=1,$AH$5,IF(Data!$A$1=2,$AH$5*IF(K126="",1,K126)))) -> 
C127: =IFERROR(INDEX(Fechas!$B$7:$U$198,Simulador!B127,Data!$D$3-1),"") ->  | E127: =IF($J$5=2,IFERROR(INDEX(Fechas!$B$7:$U$198,Simulador!B127,Data!$D$3),""),IF(B127>$U$5,"",E126+Data!$E$3)) ->  | T127: 0 | Z127: =IF(B127="","",IF(Data!$A$1=1,$AH$5,IF(Data!$A$1=2,$AH$5*IF(K127="",1,K127)))) -> 
C128: =IFERROR(INDEX(Fechas!$B$7:$U$198,Simulador!B128,Data!$D$3-1),"") ->  | E128: =IF($J$5=2,IFERROR(INDEX(Fechas!$B$7:$U$198,Simulador!B128,Data!$D$3),""),IF(B128>$U$5,"",E127+Data!$E$3)) ->  | T128: 0 | Z128: =IF(B128="","",IF(Data!$A$1=1,$AH$5,IF(Data!$A$1=2,$AH$5*IF(K128="",1,K128)))) -> 
C129: =IFERROR(INDEX(Fechas!$B$7:$U$198,Simulador!B129,Data!$D$3-1),"") ->  | E129: =IF($J$5=2,IFERROR(INDEX(Fechas!$B$7:$U$198,Simulador!B129,Data!$D$3),""),IF(B129>$U$5,"",E128+Data!$E$3)) ->  | T129: 0 | Z129: =IF(B129="","",IF(Data!$A$1=1,$AH$5,IF(Data!$A$1=2,$AH$5*IF(K129="",1,K129)))) -> 
C130: =IFERROR(INDEX(Fechas!$B$7:$U$198,Simulador!B130,Data!$D$3-1),"") ->  | E130: =IF($J$5=2,IFERROR(INDEX(Fechas!$B$7:$U$198,Simulador!B130,Data!$D$3),""),IF(B130>$U$5,"",E129+Data!$E$3)) ->  | T130: 0 | Z130: =IF(B130="","",IF(Data!$A$1=1,$AH$5,IF(Data!$A$1=2,$AH$5*IF(K130="",1,K130)))) -> 
C131: =IFERROR(INDEX(Fechas!$B$7:$U$198,Simulador!B131,Data!$D$3-1),"") ->  | E131: =IF($J$5=2,IFERROR(INDEX(Fechas!$B$7:$U$198,Simulador!B131,Data!$D$3),""),IF(B131>$U$5,"",E130+Data!$E$3)) ->  | T131: 0 | Z131: =IF(B131="","",IF(Data!$A$1=1,$AH$5,IF(Data!$A$1=2,$AH$5*IF(K131="",1,K131)))) -> 
C132: =IFERROR(INDEX(Fechas!$B$7:$U$198,Simulador!B132,Data!$D$3-1),"") ->  | E132: =IF($J$5=2,IFERROR(INDEX(Fechas!$B$7:$U$198,Simulador!B132,Data!$D$3),""),IF(B132>$U$5,"",E131+Data!$E$3)) ->  | T132: 0 | Z132: =IF(B132="","",IF(Data!$A$1=1,$AH$5,IF(Data!$A$1=2,$AH$5*IF(K132="",1,K132)))) -> 
C133: =IFERROR(INDEX(Fechas!$B$7:$U$198,Simulador!B133,Data!$D$3-1),"") ->  | E133: =IF($J$5=2,IFERROR(INDEX(Fechas!$B$7:$U$198,Simulador!B133,Data!$D$3),""),IF(B133>$U$5,"",E132+Data!$E$3)) ->  | T133: 0 | Z133: =IF(B133="","",IF(Data!$A$1=1,$AH$5,IF(Data!$A$1=2,$AH$5*IF(K133="",1,K133)))) -> 
C134: =IFERROR(INDEX(Fechas!$B$7:$U$198,Simulador!B134,Data!$D$3-1),"") ->  | E134: =IF($J$5=2,IFERROR(INDEX(Fechas!$B$7:$U$198,Simulador!B134,Data!$D$3),""),IF(B134>$U$5,"",E133+Data!$E$3)) ->  | T134: 0 | Z134: =IF(B134="","",IF(Data!$A$1=1,$AH$5,IF(Data!$A$1=2,$AH$5*IF(K134="",1,K134)))) -> 
C135: =IFERROR(INDEX(Fechas!$B$7:$U$198,Simulador!B135,Data!$D$3-1),"") ->  | E135: =IF($J$5=2,IFERROR(INDEX(Fechas!$B$7:$U$198,Simulador!B135,Data!$D$3),""),IF(B135>$U$5,"",E134+Data!$E$3)) ->  | T135: 0 | Z135: =IF(B135="","",IF(Data!$A$1=1,$AH$5,IF(Data!$A$1=2,$AH$5*IF(K135="",1,K135)))) -> 
C136: =IFERROR(INDEX(Fechas!$B$7:$U$198,Simulador!B136,Data!$D$3-1),"") ->  | E136: =IF($J$5=2,IFERROR(INDEX(Fechas!$B$7:$U$198,Simulador!B136,Data!$D$3),""),IF(B136>$U$5,"",E135+Data!$E$3)) ->  | T136: 0 | Z136: =IF(B136="","",IF(Data!$A$1=1,$AH$5,IF(Data!$A$1=2,$AH$5*IF(K136="",1,K136)))) -> 
C137: =IFERROR(INDEX(Fechas!$B$7:$U$198,Simulador!B137,Data!$D$3-1),"") ->  | E137: =IF($J$5=2,IFERROR(INDEX(Fechas!$B$7:$U$198,Simulador!B137,Data!$D$3),""),IF(B137>$U$5,"",E136+Data!$E$3)) ->  | T137: 0 | Z137: =IF(B137="","",IF(Data!$A$1=1,$AH$5,IF(Data!$A$1=2,$AH$5*IF(K137="",1,K137)))) -> 
C138: =IFERROR(INDEX(Fechas!$B$7:$U$198,Simulador!B138,Data!$D$3-1),"") ->  | E138: =IF($J$5=2,IFERROR(INDEX(Fechas!$B$7:$U$198,Simulador!B138,Data!$D$3),""),IF(B138>$U$5,"",E137+Data!$E$3)) ->  | T138: 0 | Z138: =IF(B138="","",IF(Data!$A$1=1,$AH$5,IF(Data!$A$1=2,$AH$5*IF(K138="",1,K138)))) -> 
C139: =IFERROR(INDEX(Fechas!$B$7:$U$198,Simulador!B139,Data!$D$3-1),"") ->  | E139: =IF($J$5=2,IFERROR(INDEX(Fechas!$B$7:$U$198,Simulador!B139,Data!$D$3),""),IF(B139>$U$5,"",E138+Data!$E$3)) ->  | T139: 0 | Z139: =IF(B139="","",IF(Data!$A$1=1,$AH$5,IF(Data!$A$1=2,$AH$5*IF(K139="",1,K139)))) -> 
C140: =IFERROR(INDEX(Fechas!$B$7:$U$198,Simulador!B140,Data!$D$3-1),"") ->  | E140: =IF($J$5=2,IFERROR(INDEX(Fechas!$B$7:$U$198,Simulador!B140,Data!$D$3),""),IF(B140>$U$5,"",E139+Data!$E$3)) ->  | T140: 0 | Z140: =IF(B140="","",IF(Data!$A$1=1,$AH$5,IF(Data!$A$1=2,$AH$5*IF(K140="",1,K140)))) -> 
C141: =IFERROR(INDEX(Fechas!$B$7:$U$198,Simulador!B141,Data!$D$3-1),"") ->  | E141: =IF($J$5=2,IFERROR(INDEX(Fechas!$B$7:$U$198,Simulador!B141,Data!$D$3),""),IF(B141>$U$5,"",E140+Data!$E$3)) ->  | T141: 0 | Z141: =IF(B141="","",IF(Data!$A$1=1,$AH$5,IF(Data!$A$1=2,$AH$5*IF(K141="",1,K141)))) -> 
C142: =IFERROR(INDEX(Fechas!$B$7:$U$198,Simulador!B142,Data!$D$3-1),"") ->  | E142: =IF($J$5=2,IFERROR(INDEX(Fechas!$B$7:$U$198,Simulador!B142,Data!$D$3),""),IF(B142>$U$5,"",E141+Data!$E$3)) ->  | T142: 0 | Z142: =IF(B142="","",IF(Data!$A$1=1,$AH$5,IF(Data!$A$1=2,$AH$5*IF(K142="",1,K142)))) -> 
C143: =IFERROR(INDEX(Fechas!$B$7:$U$198,Simulador!B143,Data!$D$3-1),"") ->  | E143: =IF($J$5=2,IFERROR(INDEX(Fechas!$B$7:$U$198,Simulador!B143,Data!$D$3),""),IF(B143>$U$5,"",E142+Data!$E$3)) ->  | T143: 0 | Z143: =IF(B143="","",IF(Data!$A$1=1,$AH$5,IF(Data!$A$1=2,$AH$5*IF(K143="",1,K143)))) -> 
C144: =IFERROR(INDEX(Fechas!$B$7:$U$198,Simulador!B144,Data!$D$3-1),"") ->  | E144: =IF($J$5=2,IFERROR(INDEX(Fechas!$B$7:$U$198,Simulador!B144,Data!$D$3),""),IF(B144>$U$5,"",E143+Data!$E$3)) ->  | T144: 0 | Z144: =IF(B144="","",IF(Data!$A$1=1,$AH$5,IF(Data!$A$1=2,$AH$5*IF(K144="",1,K144)))) -> 
C145: =IFERROR(INDEX(Fechas!$B$7:$U$198,Simulador!B145,Data!$D$3-1),"") ->  | E145: =IF($J$5=2,IFERROR(INDEX(Fechas!$B$7:$U$198,Simulador!B145,Data!$D$3),""),IF(B145>$U$5,"",E144+Data!$E$3)) ->  | T145: 0 | Z145: =IF(B145="","",IF(Data!$A$1=1,$AH$5,IF(Data!$A$1=2,$AH$5*IF(K145="",1,K145)))) -> 
C146: =IFERROR(INDEX(Fechas!$B$7:$U$198,Simulador!B146,Data!$D$3-1),"") ->  | E146: =IF($J$5=2,IFERROR(INDEX(Fechas!$B$7:$U$198,Simulador!B146,Data!$D$3),""),IF(B146>$U$5,"",E145+Data!$E$3)) ->  | T146: 0 | Z146: =IF(B146="","",IF(Data!$A$1=1,$AH$5,IF(Data!$A$1=2,$AH$5*IF(K146="",1,K146)))) -> 
C147: =IFERROR(INDEX(Fechas!$B$7:$U$198,Simulador!B147,Data!$D$3-1),"") ->  | E147: =IF($J$5=2,IFERROR(INDEX(Fechas!$B$7:$U$198,Simulador!B147,Data!$D$3),""),IF(B147>$U$5,"",E146+Data!$E$3)) ->  | T147: 0 | Z147: =IF(B147="","",IF(Data!$A$1=1,$AH$5,IF(Data!$A$1=2,$AH$5*IF(K147="",1,K147)))) -> 
B148: =IF(ROW(B148)-19>$U$5,"",ROW(B148)-19) ->  | C148: =IFERROR(INDEX(Fechas!$B$7:$U$198,Simulador!B148,Data!$D$3-1),"") ->  | E148: =IF($J$5=2,IFERROR(INDEX(Fechas!$B$7:$U$198,Simulador!B148,Data!$D$3),""),IF(B148>$U$5,"",E147+Data!$E$3)) ->  | G148: =IF(B148="","",E148-E147) ->  | H148: =IF(B148="","",H147-N148) ->  | N148: =IF(B148="","",Z148-SUM(Q148:Y148)) ->  | Q148: =IF(B148="","",IF(B147<=$U$5-1,H147*(((1+$N$9)^(G148/360))-1),1/0)) ->  | T148: 0 | W148: =IF(B148="","",$E$10) ->  | Z148: =IF(B148="","",IF(Data!$A$1=1,$AH$5,IF(Data!$A$1=2,$AH$5*IF(K148="",1,K148)))) ->  | AC148: =IF(B148="","",Z148*$E$11) ->  | AF148: =IF(B148="","",Z148+AC148) -> 
C149: =IFERROR(INDEX(Fechas!$B$7:$U$198,Simulador!B149,Data!$D$3-1),"") ->  | E149: =IF($J$5=2,IFERROR(INDEX(Fechas!$B$7:$U$198,Simulador!B149,Data!$D$3),""),IF(B149>$U$5,"",E148+Data!$E$3)) ->  | T149: 0 | Z149: =IF(B149="","",IF(Data!$A$1=1,$AH$5,IF(Data!$A$1=2,$AH$5*IF(K149="",1,K149)))) -> 
C150: =IFERROR(INDEX(Fechas!$B$7:$U$198,Simulador!B150,Data!$D$3-1),"") ->  | E150: =IF($J$5=2,IFERROR(INDEX(Fechas!$B$7:$U$198,Simulador!B150,Data!$D$3),""),IF(B150>$U$5,"",E149+Data!$E$3)) ->  | T150: =IF($E$9=0,0,IF(AND(B150<>"",C150<>0),IF($E$9*H149<1,1,$E$9*H149),"")) -> 0 | Z150: =IF(B150="","",IF(Data!$A$1=1,$AH$5,IF(Data!$A$1=2,$AH$5*IF(K150="",1,K150)))) -> 
C151: =IFERROR(INDEX(Fechas!$B$7:$U$198,Simulador!B151,Data!$D$3-1),"") ->  | E151: =IF($J$5=2,IFERROR(INDEX(Fechas!$B$7:$U$198,Simulador!B151,Data!$D$3),""),IF(B151>$U$5,"",E150+Data!$E$3)) ->  | T151: 0 | Z151: =IF(B151="","",IF(Data!$A$1=1,$AH$5,IF(Data!$A$1=2,$AH$5*IF(K151="",1,K151)))) -> 
C152: =IFERROR(INDEX(Fechas!$B$7:$U$198,Simulador!B152,Data!$D$3-1),"") ->  | E152: =IF($J$5=2,IFERROR(INDEX(Fechas!$B$7:$U$198,Simulador!B152,Data!$D$3),""),IF(B152>$U$5,"",E151+Data!$E$3)) ->  | T152: 0 | Z152: =IF(B152="","",IF(Data!$A$1=1,$AH$5,IF(Data!$A$1=2,$AH$5*IF(K152="",1,K152)))) -> 
C153: =IFERROR(INDEX(Fechas!$B$7:$U$198,Simulador!B153,Data!$D$3-1),"") ->  | E153: =IF($J$5=2,IFERROR(INDEX(Fechas!$B$7:$U$198,Simulador!B153,Data!$D$3),""),IF(B153>$U$5,"",E152+Data!$E$3)) ->  | T153: 0 | Z153: =IF(B153="","",IF(Data!$A$1=1,$AH$5,IF(Data!$A$1=2,$AH$5*IF(K153="",1,K153)))) -> 
C154: =IFERROR(INDEX(Fechas!$B$7:$U$198,Simulador!B154,Data!$D$3-1),"") ->  | E154: =IF($J$5=2,IFERROR(INDEX(Fechas!$B$7:$U$198,Simulador!B154,Data!$D$3),""),IF(B154>$U$5,"",E153+Data!$E$3)) ->  | T154: 0 | Z154: =IF(B154="","",IF(Data!$A$1=1,$AH$5,IF(Data!$A$1=2,$AH$5*IF(K154="",1,K154)))) -> 
C155: =IFERROR(INDEX(Fechas!$B$7:$U$198,Simulador!B155,Data!$D$3-1),"") ->  | E155: =IF($J$5=2,IFERROR(INDEX(Fechas!$B$7:$U$198,Simulador!B155,Data!$D$3),""),IF(B155>$U$5,"",E154+Data!$E$3)) ->  | T155: 0 | Z155: =IF(B155="","",IF(Data!$A$1=1,$AH$5,IF(Data!$A$1=2,$AH$5*IF(K155="",1,K155)))) -> 
C156: =IFERROR(INDEX(Fechas!$B$7:$U$198,Simulador!B156,Data!$D$3-1),"") ->  | E156: =IF($J$5=2,IFERROR(INDEX(Fechas!$B$7:$U$198,Simulador!B156,Data!$D$3),""),IF(B156>$U$5,"",E155+Data!$E$3)) ->  | T156: 0 | Z156: =IF(B156="","",IF(Data!$A$1=1,$AH$5,IF(Data!$A$1=2,$AH$5*IF(K156="",1,K156)))) -> 
C157: =IFERROR(INDEX(Fechas!$B$7:$U$198,Simulador!B157,Data!$D$3-1),"") ->  | E157: =IF($J$5=2,IFERROR(INDEX(Fechas!$B$7:$U$198,Simulador!B157,Data!$D$3),""),IF(B157>$U$5,"",E156+Data!$E$3)) ->  | T157: 0 | Z157: =IF(B157="","",IF(Data!$A$1=1,$AH$5,IF(Data!$A$1=2,$AH$5*IF(K157="",1,K157)))) -> 
C158: =IFERROR(INDEX(Fechas!$B$7:$U$198,Simulador!B158,Data!$D$3-1),"") ->  | E158: =IF($J$5=2,IFERROR(INDEX(Fechas!$B$7:$U$198,Simulador!B158,Data!$D$3),""),IF(B158>$U$5,"",E157+Data!$E$3)) ->  | T158: 0 | Z158: =IF(B158="","",IF(Data!$A$1=1,$AH$5,IF(Data!$A$1=2,$AH$5*IF(K158="",1,K158)))) -> 
C159: =IFERROR(INDEX(Fechas!$B$7:$U$198,Simulador!B159,Data!$D$3-1),"") ->  | E159: =IF($J$5=2,IFERROR(INDEX(Fechas!$B$7:$U$198,Simulador!B159,Data!$D$3),""),IF(B159>$U$5,"",E158+Data!$E$3)) ->  | T159: 0 | Z159: =IF(B159="","",IF(Data!$A$1=1,$AH$5,IF(Data!$A$1=2,$AH$5*IF(K159="",1,K159)))) -> 
C160: =IFERROR(INDEX(Fechas!$B$7:$U$198,Simulador!B160,Data!$D$3-1),"") ->  | E160: =IF($J$5=2,IFERROR(INDEX(Fechas!$B$7:$U$198,Simulador!B160,Data!$D$3),""),IF(B160>$U$5,"",E159+Data!$E$3)) ->  | T160: 0 | Z160: =IF(B160="","",IF(Data!$A$1=1,$AH$5,IF(Data!$A$1=2,$AH$5*IF(K160="",1,K160)))) -> 
C161: =IFERROR(INDEX(Fechas!$B$7:$U$198,Simulador!B161,Data!$D$3-1),"") ->  | E161: =IF($J$5=2,IFERROR(INDEX(Fechas!$B$7:$U$198,Simulador!B161,Data!$D$3),""),IF(B161>$U$5,"",E160+Data!$E$3)) ->  | T161: 0 | Z161: =IF(B161="","",IF(Data!$A$1=1,$AH$5,IF(Data!$A$1=2,$AH$5*IF(K161="",1,K161)))) -> 
C162: =IFERROR(INDEX(Fechas!$B$7:$U$198,Simulador!B162,Data!$D$3-1),"") ->  | E162: =IF($J$5=2,IFERROR(INDEX(Fechas!$B$7:$U$198,Simulador!B162,Data!$D$3),""),IF(B162>$U$5,"",E161+Data!$E$3)) ->  | T162: 0 | Z162: =IF(B162="","",IF(Data!$A$1=1,$AH$5,IF(Data!$A$1=2,$AH$5*IF(K162="",1,K162)))) -> 
C163: =IFERROR(INDEX(Fechas!$B$7:$U$198,Simulador!B163,Data!$D$3-1),"") ->  | E163: =IF($J$5=2,IFERROR(INDEX(Fechas!$B$7:$U$198,Simulador!B163,Data!$D$3),""),IF(B163>$U$5,"",E162+Data!$E$3)) ->  | T163: 0 | Z163: =IF(B163="","",IF(Data!$A$1=1,$AH$5,IF(Data!$A$1=2,$AH$5*IF(K163="",1,K163)))) -> 
C164: =IFERROR(INDEX(Fechas!$B$7:$U$198,Simulador!B164,Data!$D$3-1),"") ->  | E164: =IF($J$5=2,IFERROR(INDEX(Fechas!$B$7:$U$198,Simulador!B164,Data!$D$3),""),IF(B164>$U$5,"",E163+Data!$E$3)) ->  | T164: 0 | Z164: =IF(B164="","",IF(Data!$A$1=1,$AH$5,IF(Data!$A$1=2,$AH$5*IF(K164="",1,K164)))) -> 
C165: =IFERROR(INDEX(Fechas!$B$7:$U$198,Simulador!B165,Data!$D$3-1),"") ->  | E165: =IF($J$5=2,IFERROR(INDEX(Fechas!$B$7:$U$198,Simulador!B165,Data!$D$3),""),IF(B165>$U$5,"",E164+Data!$E$3)) ->  | T165: 0 | Z165: =IF(B165="","",IF(Data!$A$1=1,$AH$5,IF(Data!$A$1=2,$AH$5*IF(K165="",1,K165)))) -> 
C166: =IFERROR(INDEX(Fechas!$B$7:$U$198,Simulador!B166,Data!$D$3-1),"") ->  | E166: =IF($J$5=2,IFERROR(INDEX(Fechas!$B$7:$U$198,Simulador!B166,Data!$D$3),""),IF(B166>$U$5,"",E165+Data!$E$3)) ->  | T166: 0 | Z166: =IF(B166="","",IF(Data!$A$1=1,$AH$5,IF(Data!$A$1=2,$AH$5*IF(K166="",1,K166)))) -> 
C167: =IFERROR(INDEX(Fechas!$B$7:$U$198,Simulador!B167,Data!$D$3-1),"") ->  | E167: =IF($J$5=2,IFERROR(INDEX(Fechas!$B$7:$U$198,Simulador!B167,Data!$D$3),""),IF(B167>$U$5,"",E166+Data!$E$3)) ->  | T167: 0 | Z167: =IF(B167="","",IF(Data!$A$1=1,$AH$5,IF(Data!$A$1=2,$AH$5*IF(K167="",1,K167)))) -> 
C168: =IFERROR(INDEX(Fechas!$B$7:$U$198,Simulador!B168,Data!$D$3-1),"") ->  | E168: =IF($J$5=2,IFERROR(INDEX(Fechas!$B$7:$U$198,Simulador!B168,Data!$D$3),""),IF(B168>$U$5,"",E167+Data!$E$3)) ->  | T168: 0 | Z168: =IF(B168="","",IF(Data!$A$1=1,$AH$5,IF(Data!$A$1=2,$AH$5*IF(K168="",1,K168)))) -> 
C169: =IFERROR(INDEX(Fechas!$B$7:$U$198,Simulador!B169,Data!$D$3-1),"") ->  | E169: =IF($J$5=2,IFERROR(INDEX(Fechas!$B$7:$U$198,Simulador!B169,Data!$D$3),""),IF(B169>$U$5,"",E168+Data!$E$3)) ->  | T169: 0 | Z169: =IF(B169="","",IF(Data!$A$1=1,$AH$5,IF(Data!$A$1=2,$AH$5*IF(K169="",1,K169)))) -> 
C170: =IFERROR(INDEX(Fechas!$B$7:$U$198,Simulador!B170,Data!$D$3-1),"") ->  | E170: =IF($J$5=2,IFERROR(INDEX(Fechas!$B$7:$U$198,Simulador!B170,Data!$D$3),""),IF(B170>$U$5,"",E169+Data!$E$3)) ->  | T170: 0 | Z170: =IF(B170="","",IF(Data!$A$1=1,$AH$5,IF(Data!$A$1=2,$AH$5*IF(K170="",1,K170)))) -> 
C171: =IFERROR(INDEX(Fechas!$B$7:$U$198,Simulador!B171,Data!$D$3-1),"") ->  | E171: =IF($J$5=2,IFERROR(INDEX(Fechas!$B$7:$U$198,Simulador!B171,Data!$D$3),""),IF(B171>$U$5,"",E170+Data!$E$3)) ->  | T171: 0 | Z171: =IF(B171="","",IF(Data!$A$1=1,$AH$5,IF(Data!$A$1=2,$AH$5*IF(K171="",1,K171)))) -> 
C172: =IFERROR(INDEX(Fechas!$B$7:$U$198,Simulador!B172,Data!$D$3-1),"") ->  | E172: =IF($J$5=2,IFERROR(INDEX(Fechas!$B$7:$U$198,Simulador!B172,Data!$D$3),""),IF(B172>$U$5,"",E171+Data!$E$3)) ->  | T172: 0 | Z172: =IF(B172="","",IF(Data!$A$1=1,$AH$5,IF(Data!$A$1=2,$AH$5*IF(K172="",1,K172)))) -> 
C173: =IFERROR(INDEX(Fechas!$B$7:$U$198,Simulador!B173,Data!$D$3-1),"") ->  | E173: =IF($J$5=2,IFERROR(INDEX(Fechas!$B$7:$U$198,Simulador!B173,Data!$D$3),""),IF(B173>$U$5,"",E172+Data!$E$3)) ->  | T173: 0 | Z173: =IF(B173="","",IF(Data!$A$1=1,$AH$5,IF(Data!$A$1=2,$AH$5*IF(K173="",1,K173)))) -> 
C174: =IFERROR(INDEX(Fechas!$B$7:$U$198,Simulador!B174,Data!$D$3-1),"") ->  | E174: =IF($J$5=2,IFERROR(INDEX(Fechas!$B$7:$U$198,Simulador!B174,Data!$D$3),""),IF(B174>$U$5,"",E173+Data!$E$3)) ->  | T174: 0 | Z174: =IF(B174="","",IF(Data!$A$1=1,$AH$5,IF(Data!$A$1=2,$AH$5*IF(K174="",1,K174)))) -> 
C175: =IFERROR(INDEX(Fechas!$B$7:$U$198,Simulador!B175,Data!$D$3-1),"") ->  | E175: =IF($J$5=2,IFERROR(INDEX(Fechas!$B$7:$U$198,Simulador!B175,Data!$D$3),""),IF(B175>$U$5,"",E174+Data!$E$3)) ->  | T175: 0 | Z175: =IF(B175="","",IF(Data!$A$1=1,$AH$5,IF(Data!$A$1=2,$AH$5*IF(K175="",1,K175)))) -> 
C176: =IFERROR(INDEX(Fechas!$B$7:$U$198,Simulador!B176,Data!$D$3-1),"") ->  | E176: =IF($J$5=2,IFERROR(INDEX(Fechas!$B$7:$U$198,Simulador!B176,Data!$D$3),""),IF(B176>$U$5,"",E175+Data!$E$3)) ->  | T176: 0 | Z176: =IF(B176="","",IF(Data!$A$1=1,$AH$5,IF(Data!$A$1=2,$AH$5*IF(K176="",1,K176)))) -> 
C177: =IFERROR(INDEX(Fechas!$B$7:$U$198,Simulador!B177,Data!$D$3-1),"") ->  | E177: =IF($J$5=2,IFERROR(INDEX(Fechas!$B$7:$U$198,Simulador!B177,Data!$D$3),""),IF(B177>$U$5,"",E176+Data!$E$3)) ->  | T177: 0 | Z177: =IF(B177="","",IF(Data!$A$1=1,$AH$5,IF(Data!$A$1=2,$AH$5*IF(K177="",1,K177)))) -> 
C178: =IFERROR(INDEX(Fechas!$B$7:$U$198,Simulador!B178,Data!$D$3-1),"") ->  | E178: =IF($J$5=2,IFERROR(INDEX(Fechas!$B$7:$U$198,Simulador!B178,Data!$D$3),""),IF(B178>$U$5,"",E177+Data!$E$3)) ->  | T178: 0 | Z178: =IF(B178="","",IF(Data!$A$1=1,$AH$5,IF(Data!$A$1=2,$AH$5*IF(K178="",1,K178)))) -> 
C179: =IFERROR(INDEX(Fechas!$B$7:$U$198,Simulador!B179,Data!$D$3-1),"") ->  | E179: =IF($J$5=2,IFERROR(INDEX(Fechas!$B$7:$U$198,Simulador!B179,Data!$D$3),""),IF(B179>$U$5,"",E178+Data!$E$3)) ->  | T179: 0 | Z179: =IF(B179="","",IF(Data!$A$1=1,$AH$5,IF(Data!$A$1=2,$AH$5*IF(K179="",1,K179)))) -> 
C180: =IFERROR(INDEX(Fechas!$B$7:$U$198,Simulador!B180,Data!$D$3-1),"") ->  | E180: =IF($J$5=2,IFERROR(INDEX(Fechas!$B$7:$U$198,Simulador!B180,Data!$D$3),""),IF(B180>$U$5,"",E179+Data!$E$3)) ->  | T180: 0 | Z180: =IF(B180="","",IF(Data!$A$1=1,$AH$5,IF(Data!$A$1=2,$AH$5*IF(K180="",1,K180)))) -> 
C181: =IFERROR(INDEX(Fechas!$B$7:$U$198,Simulador!B181,Data!$D$3-1),"") ->  | E181: =IF($J$5=2,IFERROR(INDEX(Fechas!$B$7:$U$198,Simulador!B181,Data!$D$3),""),IF(B181>$U$5,"",E180+Data!$E$3)) ->  | T181: 0 | Z181: =IF(B181="","",IF(Data!$A$1=1,$AH$5,IF(Data!$A$1=2,$AH$5*IF(K181="",1,K181)))) -> 
C182: =IFERROR(INDEX(Fechas!$B$7:$U$198,Simulador!B182,Data!$D$3-1),"") ->  | E182: =IF($J$5=2,IFERROR(INDEX(Fechas!$B$7:$U$198,Simulador!B182,Data!$D$3),""),IF(B182>$U$5,"",E181+Data!$E$3)) ->  | T182: 0 | Z182: =IF(B182="","",IF(Data!$A$1=1,$AH$5,IF(Data!$A$1=2,$AH$5*IF(K182="",1,K182)))) -> 
C183: =IFERROR(INDEX(Fechas!$B$7:$U$198,Simulador!B183,Data!$D$3-1),"") ->  | E183: =IF($J$5=2,IFERROR(INDEX(Fechas!$B$7:$U$198,Simulador!B183,Data!$D$3),""),IF(B183>$U$5,"",E182+Data!$E$3)) ->  | T183: 0 | Z183: =IF(B183="","",IF(Data!$A$1=1,$AH$5,IF(Data!$A$1=2,$AH$5*IF(K183="",1,K183)))) -> 
C184: =IFERROR(INDEX(Fechas!$B$7:$U$198,Simulador!B184,Data!$D$3-1),"") ->  | E184: =IF($J$5=2,IFERROR(INDEX(Fechas!$B$7:$U$198,Simulador!B184,Data!$D$3),""),IF(B184>$U$5,"",E183+Data!$E$3)) ->  | T184: 0 | Z184: =IF(B184="","",IF(Data!$A$1=1,$AH$5,IF(Data!$A$1=2,$AH$5*IF(K184="",1,K184)))) -> 
C185: =IFERROR(INDEX(Fechas!$B$7:$U$198,Simulador!B185,Data!$D$3-1),"") ->  | E185: =IF($J$5=2,IFERROR(INDEX(Fechas!$B$7:$U$198,Simulador!B185,Data!$D$3),""),IF(B185>$U$5,"",E184+Data!$E$3)) ->  | T185: 0 | Z185: =IF(B185="","",IF(Data!$A$1=1,$AH$5,IF(Data!$A$1=2,$AH$5*IF(K185="",1,K185)))) -> 
C186: =IFERROR(INDEX(Fechas!$B$7:$U$198,Simulador!B186,Data!$D$3-1),"") ->  | E186: =IF($J$5=2,IFERROR(INDEX(Fechas!$B$7:$U$198,Simulador!B186,Data!$D$3),""),IF(B186>$U$5,"",E185+Data!$E$3)) ->  | T186: 0 | Z186: =IF(B186="","",IF(Data!$A$1=1,$AH$5,IF(Data!$A$1=2,$AH$5*IF(K186="",1,K186)))) -> 
C187: =IFERROR(INDEX(Fechas!$B$7:$U$198,Simulador!B187,Data!$D$3-1),"") ->  | E187: =IF($J$5=2,IFERROR(INDEX(Fechas!$B$7:$U$198,Simulador!B187,Data!$D$3),""),IF(B187>$U$5,"",E186+Data!$E$3)) ->  | T187: 0 | Z187: =IF(B187="","",IF(Data!$A$1=1,$AH$5,IF(Data!$A$1=2,$AH$5*IF(K187="",1,K187)))) -> 
C188: =IFERROR(INDEX(Fechas!$B$7:$U$198,Simulador!B188,Data!$D$3-1),"") ->  | E188: =IF($J$5=2,IFERROR(INDEX(Fechas!$B$7:$U$198,Simulador!B188,Data!$D$3),""),IF(B188>$U$5,"",E187+Data!$E$3)) ->  | T188: 0 | Z188: =IF(B188="","",IF(Data!$A$1=1,$AH$5,IF(Data!$A$1=2,$AH$5*IF(K188="",1,K188)))) -> 
C189: =IFERROR(INDEX(Fechas!$B$7:$U$198,Simulador!B189,Data!$D$3-1),"") ->  | E189: =IF($J$5=2,IFERROR(INDEX(Fechas!$B$7:$U$198,Simulador!B189,Data!$D$3),""),IF(B189>$U$5,"",E188+Data!$E$3)) ->  | T189: 0 | Z189: =IF(B189="","",IF(Data!$A$1=1,$AH$5,IF(Data!$A$1=2,$AH$5*IF(K189="",1,K189)))) -> 
C190: =IFERROR(INDEX(Fechas!$B$7:$U$198,Simulador!B190,Data!$D$3-1),"") ->  | E190: =IF($J$5=2,IFERROR(INDEX(Fechas!$B$7:$U$198,Simulador!B190,Data!$D$3),""),IF(B190>$U$5,"",E189+Data!$E$3)) ->  | T190: 0 | Z190: =IF(B190="","",IF(Data!$A$1=1,$AH$5,IF(Data!$A$1=2,$AH$5*IF(K190="",1,K190)))) -> 
C191: =IFERROR(INDEX(Fechas!$B$7:$U$198,Simulador!B191,Data!$D$3-1),"") ->  | E191: =IF($J$5=2,IFERROR(INDEX(Fechas!$B$7:$U$198,Simulador!B191,Data!$D$3),""),IF(B191>$U$5,"",E190+Data!$E$3)) ->  | T191: 0 | Z191: =IF(B191="","",IF(Data!$A$1=1,$AH$5,IF(Data!$A$1=2,$AH$5*IF(K191="",1,K191)))) -> 
C192: =IFERROR(INDEX(Fechas!$B$7:$U$198,Simulador!B192,Data!$D$3-1),"") ->  | E192: =IF($J$5=2,IFERROR(INDEX(Fechas!$B$7:$U$198,Simulador!B192,Data!$D$3),""),IF(B192>$U$5,"",E191+Data!$E$3)) ->  | T192: 0 | Z192: =IF(B192="","",IF(Data!$A$1=1,$AH$5,IF(Data!$A$1=2,$AH$5*IF(K192="",1,K192)))) -> 
C193: =IFERROR(INDEX(Fechas!$B$7:$U$198,Simulador!B193,Data!$D$3-1),"") ->  | E193: =IF($J$5=2,IFERROR(INDEX(Fechas!$B$7:$U$198,Simulador!B193,Data!$D$3),""),IF(B193>$U$5,"",E192+Data!$E$3)) ->  | T193: 0 | Z193: =IF(B193="","",IF(Data!$A$1=1,$AH$5,IF(Data!$A$1=2,$AH$5*IF(K193="",1,K193)))) -> 
C194: =IFERROR(INDEX(Fechas!$B$7:$U$198,Simulador!B194,Data!$D$3-1),"") ->  | E194: =IF($J$5=2,IFERROR(INDEX(Fechas!$B$7:$U$198,Simulador!B194,Data!$D$3),""),IF(B194>$U$5,"",E193+Data!$E$3)) ->  | T194: 0 | Z194: =IF(B194="","",IF(Data!$A$1=1,$AH$5,IF(Data!$A$1=2,$AH$5*IF(K194="",1,K194)))) -> 
C195: =IFERROR(INDEX(Fechas!$B$7:$U$198,Simulador!B195,Data!$D$3-1),"") ->  | E195: =IF($J$5=2,IFERROR(INDEX(Fechas!$B$7:$U$198,Simulador!B195,Data!$D$3),""),IF(B195>$U$5,"",E194+Data!$E$3)) ->  | T195: 0 | Z195: =IF(B195="","",IF(Data!$A$1=1,$AH$5,IF(Data!$A$1=2,$AH$5*IF(K195="",1,K195)))) -> 
C196: =IFERROR(INDEX(Fechas!$B$7:$U$198,Simulador!B196,Data!$D$3-1),"") ->  | E196: =IF($J$5=2,IFERROR(INDEX(Fechas!$B$7:$U$198,Simulador!B196,Data!$D$3),""),IF(B196>$U$5,"",E195+Data!$E$3)) ->  | T196: 0 | Z196: =IF(B196="","",IF(Data!$A$1=1,$AH$5,IF(Data!$A$1=2,$AH$5*IF(K196="",1,K196)))) -> 
C197: =IFERROR(INDEX(Fechas!$B$7:$U$198,Simulador!B197,Data!$D$3-1),"") ->  | E197: =IF($J$5=2,IFERROR(INDEX(Fechas!$B$7:$U$198,Simulador!B197,Data!$D$3),""),IF(B197>$U$5,"",E196+Data!$E$3)) ->  | T197: 0 | Z197: =IF(B197="","",IF(Data!$A$1=1,$AH$5,IF(Data!$A$1=2,$AH$5*IF(K197="",1,K197)))) -> 
C198: =IFERROR(INDEX(Fechas!$B$7:$U$198,Simulador!B198,Data!$D$3-1),"") ->  | E198: =IF($J$5=2,IFERROR(INDEX(Fechas!$B$7:$U$198,Simulador!B198,Data!$D$3),""),IF(B198>$U$5,"",E197+Data!$E$3)) ->  | T198: 0 | Z198: =IF(B198="","",IF(Data!$A$1=1,$AH$5,IF(Data!$A$1=2,$AH$5*IF(K198="",1,K198)))) -> 
C199: =IFERROR(INDEX(Fechas!$B$7:$U$198,Simulador!B199,Data!$D$3-1),"") ->  | E199: =IF($J$5=2,IFERROR(INDEX(Fechas!$B$7:$U$198,Simulador!B199,Data!$D$3),""),IF(B199>$U$5,"",E198+Data!$E$3)) ->  | T199: 0 | Z199: =IF(B199="","",IF(Data!$A$1=1,$AH$5,IF(Data!$A$1=2,$AH$5*IF(K199="",1,K199)))) -> 
C200: =IFERROR(INDEX(Fechas!$B$7:$U$198,Simulador!B200,Data!$D$3-1),"") ->  | E200: =IF($J$5=2,IFERROR(INDEX(Fechas!$B$7:$U$198,Simulador!B200,Data!$D$3),""),IF(B200>$U$5,"",E199+Data!$E$3)) ->  | T200: 0 | Z200: =IF(B200="","",IF(Data!$A$1=1,$AH$5,IF(Data!$A$1=2,$AH$5*IF(K200="",1,K200)))) -> 
C201: =IFERROR(INDEX(Fechas!$B$7:$U$198,Simulador!B201,Data!$D$3-1),"") ->  | E201: =IF($J$5=2,IFERROR(INDEX(Fechas!$B$7:$U$198,Simulador!B201,Data!$D$3),""),IF(B201>$U$5,"",E200+Data!$E$3)) ->  | T201: 0 | Z201: =IF(B201="","",IF(Data!$A$1=1,$AH$5,IF(Data!$A$1=2,$AH$5*IF(K201="",1,K201)))) -> 
C202: =IFERROR(INDEX(Fechas!$B$7:$U$198,Simulador!B202,Data!$D$3-1),"") ->  | E202: =IF($J$5=2,IFERROR(INDEX(Fechas!$B$7:$U$198,Simulador!B202,Data!$D$3),""),IF(B202>$U$5,"",E201+Data!$E$3)) ->  | T202: 0 | Z202: =IF(B202="","",IF(Data!$A$1=1,$AH$5,IF(Data!$A$1=2,$AH$5*IF(K202="",1,K202)))) -> 
C203: =IFERROR(INDEX(Fechas!$B$7:$U$198,Simulador!B203,Data!$D$3-1),"") ->  | E203: =IF($J$5=2,IFERROR(INDEX(Fechas!$B$7:$U$198,Simulador!B203,Data!$D$3),""),IF(B203>$U$5,"",E202+Data!$E$3)) ->  | T203: 0 | Z203: =IF(B203="","",IF(Data!$A$1=1,$AH$5,IF(Data!$A$1=2,$AH$5*IF(K203="",1,K203)))) -> 
C204: =IFERROR(INDEX(Fechas!$B$7:$U$198,Simulador!B204,Data!$D$3-1),"") ->  | E204: =IF($J$5=2,IFERROR(INDEX(Fechas!$B$7:$U$198,Simulador!B204,Data!$D$3),""),IF(B204>$U$5,"",E203+Data!$E$3)) ->  | T204: 0 | Z204: =IF(B204="","",IF(Data!$A$1=1,$AH$5,IF(Data!$A$1=2,$AH$5*IF(K204="",1,K204)))) -> 
C205: =IFERROR(INDEX(Fechas!$B$7:$U$198,Simulador!B205,Data!$D$3-1),"") ->  | E205: =IF($J$5=2,IFERROR(INDEX(Fechas!$B$7:$U$198,Simulador!B205,Data!$D$3),""),IF(B205>$U$5,"",E204+Data!$E$3)) ->  | T205: 0 | Z205: =IF(B205="","",IF(Data!$A$1=1,$AH$5,IF(Data!$A$1=2,$AH$5*IF(K205="",1,K205)))) -> 
C206: =IFERROR(INDEX(Fechas!$B$7:$U$198,Simulador!B206,Data!$D$3-1),"") ->  | E206: =IF($J$5=2,IFERROR(INDEX(Fechas!$B$7:$U$198,Simulador!B206,Data!$D$3),""),IF(B206>$U$5,"",E205+Data!$E$3)) ->  | T206: 0 | Z206: =IF(B206="","",IF(Data!$A$1=1,$AH$5,IF(Data!$A$1=2,$AH$5*IF(K206="",1,K206)))) -> 
... 173 more rows

Sheet Data (hidden)
A1: 2 | B1: FF/FC
B3: 3 | C3: FREC | D3: =VLOOKUP(B3,$B$6:$G$15,6,FALSE) -> 6 | E3: =VLOOKUP(B3,$B$6:$G$15,3,FALSE) -> 30
B5: Formas de Pago | D5: Dias | E5: Per x año
B6: 1 | C6: Diario | D6: 1 | E6: 360 | F6: dias
B7: 2 | C7: Semanal | D7: 7 | E7: 51 | F7: semanas | G7: 2 | H7: =1/4 -> 0.25 | I7: SEMANAL | J7: (TES)
B8: 3 | C8: Mensual | D8: 30 | E8: 12 | F8: meses | G8: 6 | H8: 1 | I8: MENSUAL | J8: (TEM)
B9: 4 | C9: Bimestral | D9: 60 | E9: 6 | F9: bimestres | G9: 10 | H9: 2 | I9: BIMENSUAL | J9: (TEB)
B10: 5 | C10: Trimestral | D10: 90 | E10: 4 | F10: trimestres | G10: 12 | H10: 3 | I10: TRIMESTRAL | J10: (TET)
B11: 9 | C11: Tetramestral | D11: 120 | E11: 3 | F11: tetramestres | G11: 14 | H11: 4 | I11: CUATRIMESTRAL | J11: (TEC)
B12: 10 | C12: Semestral | D12: 180 | E12: 2 | F12: semestres | G12: 18 | H12: 6 | I12: SEMESTRAL | J12: (TES)
B13: 6 | C13: Anual | D13: 360 | E13: 1 | F13: Años | G13: 20 | H13: 12 | I13: ANUAL | J13: (TEA)
B14: 7 | C14: Mes y Medio | D14: 45 | E14: 9 | F14: 45 dias | G14: 8 | H14: 1.5 | I14: MES Y MEDIO | J14: (TEMM)
B15: 8 | C15: Quincenal | D15: 15 | E15: 103 | F15: Quincenas | G15: 4 | H15: 0.5 | I15: QUINCENAL | J15: (TEQ)
B21: MODULO | C21: MDNOM
B22: 101 | C22: CAPITAL DE TRABAJO
B23: 102 | C23: ACTIVO – MAQUINARIA Y EQUIPO
B24: 103 | C24: ACTIVO FIJO – LOCAL O VIVIENDA COMERCIAL
B25: 104 | C25: CREDIPUNTUALITO
B26: 105 | C26: PARALELO
B27: 106 | C27: CONVENIO PYME
B28: 107 | C28: CREDIOFICIOS
B29: 109 | C29: AGROPECUARIO
B30: 110 | C30: SUPÉRATE MUJER
B31: 112 | C31: ECOMICRO
B32: 117 | C32: LÍNEA DE CRÉDITO
C33: CARTA FIANZA
C34: PERSONAL DIRECTO
C35: CONVENIO CON DESCUENTO POR PLANILLA
C36: LÍNEA CRÉDITO CON DEPÓSITO PLAZO FIJO/CTS
C37: MICROCONSUMO
C38: CAJA CONSTRUYE
C39: ADMINISTRATIVO
C40: VEHICULAR
C41: QUINTUPLICA TU SUELDO
C42: PRENDARIO
C43: HIPOTECARIO CAJA

Sheet Fechas (hidden)
B1: SEMANAL | D1: QUINCENAL | F1: MENSUAL | H1: MES Y MEDIO | J1: BIMENSUAL | L1: TRIMESTRAL | N1: CUATRIMESTRAL | P1: QUINTUMESTRAL | R1: SEMESTRAL | T1: ANUAL
C2: dias desp desembolso | E2: dias desp desembolso | G2: dias desp desembolso | I2: dias desp desembolso | K2: dias desp desembolso | M2: dias desp desembolso | O2: dias desp desembolso | Q2: dias desp desembolso | S2: dias desp desembolso | U2: dias desp desembolso
C3: =VLOOKUP(Data!B3,Forma_de_pago,3,FALSE)*Simulador!U9+Simulador!Z9 -> 30 | E3: =C3 -> 30 | G3: =E3 -> 30 | I3: =G3 -> 30 | K3: =I3 -> 30 | M3: =K3 -> 30 | O3: =M3 -> 30 | Q3: =O3 -> 30 | S3: =Q3 -> 30 | U3: =S3 -> 30
B4: base de calculo | C4: 30
B5: desembolso | C5: =Simulador!P9 -> 2018-12-09 | D5: desembolso | E5: =$C$5 -> 2018-12-09 | F5: desembolso | G5: =$C$5 -> 2018-12-09 | H5: desembolso | I5: =$C$5 -> 2018-12-09 | J5: desembolso | K5: =$C$5 -> 2018-12-09 | L5: desembolso | M5: 2018-12-09 | N5: desembolso | O5: 2018-12-09 | P5: desembolso | Q5: 2018-12-09 | R5: desembolso | S5: 2018-12-09 | T5: desembolso | U5: 2018-12-09
B6: a | C6: 7 | D6: b | E6: 15 | F6: c | G6: 30 | I6: 45 | K6: 60 | M6: 90 | O6: 120 | Q6: 150 | S6: 180 | U6: 360
A7: 1 | B7: 1 | C7: =C5+C3 -> 2019-01-08 | D7: 1 | E7: =E5+E3 -> 2019-01-08 | F7: 1 | G7: =G5+G3 -> 2019-01-08 | H7: 1 | I7: =I5+I3 -> 2019-01-08 | J7: 1 | K7: =K5+K3 -> 2019-01-08 | L7: 1 | M7: =M5+M3 -> 2019-01-08 | N7: 1 | O7: =O5+O3 -> 2019-01-08 | P7: 1 | Q7: =Q5+Q3 -> 2019-01-08 | R7: 1 | S7: =S5+S3 -> 2019-01-08 | T7: 1 | U7: =U5+U3 -> 2019-01-08
A8: 2 | C8: =C7+7 -> 2019-01-15 | E8: =E7+$C$4/2 -> 2019-01-23 | F8: 2 | G8: =EDATE(G7,1) -> 2019-02-08 | I8: =I7+$C$4*1.5 -> 2019-02-22 | J8: 3 | K8: =EDATE(K7,2) -> 2019-03-08 | L8: =L7+3 -> 4 | M8: =EDATE(M7,3) -> 2019-04-08 | N8: =N7+4 -> 5 | O8: =EDATE(O7,4) -> 2019-05-08 | P8: =P7+5 -> 6 | Q8: =EDATE(Q7,5) -> 2019-06-08 | R8: =R7+6 -> 7 | S8: =EDATE(S7,6) -> 2019-07-08 | T8: =T7+12 -> 13 | U8: =EDATE(U7,12) -> 2020-01-08
A9: 3 | C9: =C8+8 -> 2019-01-23 | D9: 2 | E9: =EDATE(E7,1) -> 2019-02-08 | F9: 3 | G9: =IF(EDATE(G8,1)>EDATE(G7,2),EDATE(G8,1),EDATE(G7,2)) -> 2019-03-08 | H9: =H7+3 -> 4 | I9: =EDATE(I7,3) -> 2019-04-08 | J9: 5 | K9: =IF(EDATE(K8,2)>EDATE(K7,4),EDATE(K8,2),EDATE(K7,4)) -> 2019-05-08 | L9: =L8+3 -> 7 | M9: =IF(EDATE(M8,3)>EDATE(M7,6),EDATE(M8,3),EDATE(M7,6)) -> 2019-07-08 | N9: =N8+4 -> 9 | O9: =IF(EDATE(O8,4)>EDATE(O7,8),EDATE(O8,4),EDATE(O7,8)) -> 2019-09-08 | P9: =P8+5 -> 11 | Q9: =IF(EDATE(Q8,5)>EDATE(Q7,10),EDATE(Q8,5),EDATE(Q7,10)) -> 2019-11-08 | R9: =R8+6 -> 13 | S9: =IF(EDATE(S8,6)>EDATE(S7,12),EDATE(S8,6),EDATE(S7,12)) -> 2020-01-08 | T9: =T8+12 -> 25 | U9: =EDATE(U8,12) -> 2021-01-08
A10: 4 | C10: =C9+7 -> 2019-01-30 | E10: =EDATE(E8,1) -> 2019-02-23 | F10: 4 | G10: =IF(EDATE(G9,1)>EDATE(G8,2),EDATE(G9,1),EDATE(G8,2)) -> 2019-04-08 | I10: =I9+$C$4*1.5 -> 2019-05-23 | J10: 7 | K10: =IF(EDATE(K9,2)>EDATE(K8,4),EDATE(K9,2),EDATE(K8,4)) -> 2019-07-08 | L10: 10 | M10: =IF(EDATE(M9,3)>EDATE(M8,6),EDATE(M9,3),EDATE(M8,6)) -> 2019-10-08 | N10: 13 | O10: =IF(EDATE(O9,4)>EDATE(O8,8),EDATE(O9,4),EDATE(O8,8)) -> 2020-01-08 | P10: 16 | Q10: =IF(EDATE(Q9,5)>EDATE(Q8,10),EDATE(Q9,5),EDATE(Q8,10)) -> 2020-04-08 | R10: 19 | S10: =IF(EDATE(S9,6)>EDATE(S8,12),EDATE(S9,6),EDATE(S8,12)) -> 2020-07-08 | T10: 37 | U10: 2022-01-08
A11: 5 | B11: 2 | C11: =EDATE(C7,1) -> 2019-02-08 | D11: 3 | E11: =IF(EDATE(E9,1)>EDATE(E7,2),EDATE(E9,1),EDATE(E7,2)) -> 2019-03-08 | F11: 5 | G11: 2019-05-08 | H11: =H9+3 -> 7 | I11: =IF(EDATE(I9,3)>EDATE(I7,6),EDATE(I9,3),EDATE(I7,6)) -> 2019-07-08 | J11: 9 | K11: 2019-09-08 | L11: 13 | M11: 2020-01-08 | N11: 17 | O11: 2020-05-08 | P11: 21 | Q11: 2020-09-08 | R11: 25 | S11: 2021-01-08 | T11: 49 | U11: 2023-01-08
A12: 6 | C12: =C11+7 -> 2019-02-15 | E12: =IF(EDATE(E10,1)>EDATE(E8,2),EDATE(E10,1),EDATE(E8,2)) -> 2019-03-23 | F12: 6 | G12: 2019-06-08 | I12: =IF(EDATE(I10,3)>EDATE(I8,6),EDATE(I10,3),EDATE(I8,6)) -> 2019-08-23 | J12: 11 | K12: 2019-11-08 | L12: 16 | M12: 2020-04-08 | N12: 21 | O12: 2020-09-08 | P12: 26 | Q12: 2021-02-08 | R12: 31 | S12: 2021-07-08 | T12: 61 | U12: 2024-01-08
A13: 7 | C13: =C12+8 -> 2019-02-23 | D13: 4 | E13: 2019-04-08 | F13: 7 | G13: 2019-07-08 | H13: =H11+3 -> 10 | I13: 2019-10-08 | J13: 13 | K13: 2020-01-08 | L13: 19 | M13: 2020-07-08 | N13: 25 | O13: 2021-01-08 | P13: 31 | Q13: 2021-07-08 | R13: 37 | S13: 2022-01-08 | T13: 73 | U13: 2025-01-08
A14: 8 | C14: =C13+7 -> 2019-03-02 | E14: 2019-04-23 | F14: 8 | G14: 2019-08-08 | I14: 2019-11-23 | J14: 15 | K14: 2020-03-08 | L14: 22 | M14: 2020-10-08 | N14: 29 | O14: 2021-05-08 | P14: 36 | Q14: 2021-12-08 | R14: 43 | S14: 2022-07-08 | T14: 85 | U14: 2026-01-08
A15: 9 | B15: 3 | C15: =EDATE(C11,1) -> 2019-03-08 | D15: 5 | E15: 2019-05-08 | F15: 9 | G15: 2019-09-08 | H15: =H13+3 -> 13 | I15: 2020-01-08 | J15: 17 | K15: 2020-05-08 | L15: 25 | M15: 2021-01-08 | N15: 33 | O15: 2021-09-08 | P15: 41 | Q15: 2022-05-08 | R15: 49 | S15: 2023-01-08 | T15: 97 | U15: 2027-01-08
A16: 10 | C16: =IF(EDATE(C12,1)>EDATE(C8,2),EDATE(C12,1),EDATE(C8,2)) -> 2019-03-15 | E16: 2019-05-23 | F16: 10 | G16: 2019-10-08 | I16: 2020-02-23 | J16: 19 | K16: 2020-07-08 | L16: 28 | M16: 2021-04-08 | N16: 37 | O16: 2022-01-08 | P16: 46 | Q16: 2022-10-08 | R16: 55 | S16: 2023-07-08 | T16: 109 | U16: 2028-01-08
A17: 11 | C17: =EDATE(C13,1) -> 2019-03-23 | D17: 6 | E17: 2019-06-08 | F17: 11 | G17: 2019-11-08 | H17: =H15+3 -> 16 | I17: 2020-04-08 | J17: 21 | K17: 2020-09-08 | L17: 31 | M17: 2021-07-08 | N17: 41 | O17: 2022-05-08 | P17: 51 | Q17: 2023-03-08 | R17: 61 | S17: 2024-01-08 | T17: 121 | U17: 2029-01-08
A18: 12 | C18: 2019-04-02 | E18: 2019-06-23 | F18: 12 | G18: 2019-12-08 | I18: 2020-05-23 | J18: 23 | K18: 2020-11-08 | L18: 34 | M18: 2021-10-08 | N18: 45 | O18: 2022-09-08 | P18: 56 | Q18: 2023-08-08 | R18: 67 | S18: 2024-07-08 | T18: 133 | U18: 2030-01-08
A19: 13 | B19: 4 | C19: 2019-04-08 | D19: 7 | E19: 2019-07-08 | F19: 13 | G19: 2020-01-08 | H19: =H17+3 -> 19 | I19: 2020-07-08 | J19: 25 | K19: 2021-01-08 | L19: 37 | M19: 2022-01-08 | N19: 49 | O19: 2023-01-08 | P19: 61 | Q19: 2024-01-08 | R19: 73 | S19: 2025-01-08 | T19: 145 | U19: 2031-01-08
A20: 14 | C20: 2019-04-15 | E20: 2019-07-23 | F20: 14 | G20: 2020-02-08 | I20: 2020-08-23 | J20: 27 | K20: 2021-03-08 | L20: 40 | M20: 2022-04-08 | N20: 53 | O20: 2023-05-08 | P20: 66 | Q20: 2024-06-08 | R20: 79 | S20: 2025-07-08 | T20: 157 | U20: 2032-01-08
A21: 15 | C21: 2019-04-23 | D21: 8 | E21: 2019-08-08 | F21: 15 | G21: 2020-03-08 | H21: =H19+3 -> 22 | I21: 2020-10-08 | J21: 29 | K21: 2021-05-08 | L21: 43 | M21: 2022-07-08 | N21: 57 | O21: 2023-09-08 | P21: 71 | Q21: 2024-11-08 | R21: 85 | S21: 2026-01-08 | T21: 169 | U21: 2033-01-08
A22: 16 | C22: 2019-05-02 | E22: 2019-08-23 | F22: 16 | G22: 2020-04-08 | I22: 2020-11-23 | J22: 31 | K22: 2021-07-08 | L22: 46 | M22: 2022-10-08 | N22: 61 | O22: 2024-01-08 | P22: 76 | Q22: 2025-04-08 | R22: 91 | S22: 2026-07-08 | T22: 181 | U22: 2034-01-08
A23: 17 | B23: 5 | C23: 2019-05-08 | D23: 9 | E23: 2019-09-08 | F23: 17 | G23: 2020-05-08 | H23: =H21+3 -> 25 | I23: 2021-01-08 | J23: 33 | K23: 2021-09-08 | L23: 49 | M23: 2023-01-08 | N23: 65 | O23: 2024-05-08 | P23: 81 | Q23: 2025-09-08 | R23: 97 | S23: 2027-01-08 | T23: 193 | U23: 2035-01-08
A24: 18 | C24: 2019-05-15 | E24: 2019-09-23 | F24: 18 | G24: 2020-06-08 | I24: 2021-02-23 | J24: 35 | K24: 2021-11-08 | L24: 52 | M24: 2023-04-08 | N24: 69 | O24: 2024-09-08 | P24: 86 | Q24: 2026-02-08 | R24: 103 | S24: 2027-07-08 | T24: 205 | U24: 2036-01-08
A25: 19 | C25: 2019-05-23 | D25: 10 | E25: 2019-10-08 | F25: 19 | G25: 2020-07-08 | H25: =H23+3 -> 28 | I25: 2021-04-08 | J25: 37 | K25: 2022-01-08 | L25: 55 | M25: 2023-07-08 | N25: 73 | O25: 2025-01-08 | P25: 91 | Q25: 2026-07-08 | R25: 109 | S25: 2028-01-08 | T25: 217 | U25: 2037-01-08
A26: 20 | C26: 2019-06-02 | E26: 2019-10-23 | F26: 20 | G26: 2020-08-08 | I26: 2021-05-23 | J26: 39 | K26: 2022-03-08 | L26: 58 | M26: 2023-10-08 | N26: 77 | O26: 2025-05-08 | P26: 96 | Q26: 2026-12-08 | R26: 115 | S26: 2028-07-08 | T26: 229 | U26: 2038-01-08
A27: 21 | B27: 6 | C27: 2019-06-08 | D27: 11 | E27: 2019-11-08 | F27: 21 | G27: 2020-09-08 | H27: =H25+3 -> 31 | I27: 2021-07-08 | J27: 41 | K27: 2022-05-08 | L27: 61 | M27: 2024-01-08 | N27: 81 | O27: 2025-09-08 | P27: 101 | Q27: 2027-05-08 | R27: 121 | S27: 2029-01-08 | T27: 241 | U27: 2039-01-08
A28: 22 | C28: 2019-06-15 | E28: 2019-11-23 | F28: 22 | G28: 2020-10-08 | I28: 2021-08-23 | J28: 43 | K28: 2022-07-08 | L28: 64 | M28: 2024-04-08 | N28: 85 | O28: 2026-01-08 | P28: 106 | Q28: 2027-10-08 | R28: 127 | S28: 2029-07-08 | T28: 253 | U28: 2040-01-08
A29: 23 | C29: 2019-06-23 | D29: 12 | E29: 2019-12-08 | F29: 23 | G29: 2020-11-08 | H29: =H27+3 -> 34 | I29: 2021-10-08 | J29: 45 | K29: 2022-09-08 | L29: 67 | M29: 2024-07-08 | N29: 89 | O29: 2026-05-08 | P29: 111 | Q29: 2028-03-08 | R29: 133 | S29: 2030-01-08 | T29: 265 | U29: 2041-01-08
A30: 24 | C30: 2019-07-02 | E30: 2019-12-23 | F30: 24 | G30: 2020-12-08 | I30: 2021-11-23 | J30: 47 | K30: 2022-11-08 | L30: 70 | M30: 2024-10-08 | N30: 93 | O30: 2026-09-08 | P30: 116 | Q30: 2028-08-08 | R30: 139 | S30: 2030-07-08 | T30: 277 | U30: 2042-01-08
A31: 25 | B31: 7 | C31: 2019-07-08 | D31: 13 | E31: 2020-01-08 | F31: 25 | G31: 2021-01-08 | H31: =H29+3 -> 37 | I31: 2022-01-08 | J31: 49 | K31: 2023-01-08 | L31: 73 | M31: 2025-01-08 | N31: 97 | O31: 2027-01-08 | P31: 121 | Q31: 2029-01-08 | R31: 145 | S31: 2031-01-08 | T31: 289 | U31: 2043-01-08
A32: 26 | C32: 2019-07-15 | E32: 2020-01-23 | F32: 26 | G32: 2021-02-08 | I32: 2022-02-23 | J32: 51 | K32: 2023-03-08 | L32: 76 | M32: 2025-04-08 | N32: 101 | O32: 2027-05-08 | P32: 126 | Q32: 2029-06-08 | R32: 151 | S32: 2031-07-08 | T32: 301 | U32: 2044-01-08
A33: 27 | C33: 2019-07-23 | D33: 14 | E33: 2020-02-08 | F33: 27 | G33: 2021-03-08 | H33: =H31+3 -> 40 | I33: 2022-04-08 | J33: 53 | K33: 2023-05-08 | L33: 79 | M33: 2025-07-08 | N33: 105 | O33: 2027-09-08 | P33: 131 | Q33: 2029-11-08 | R33: 157 | S33: 2032-01-08 | T33: 313 | U33: 2045-01-08
A34: 28 | C34: 2019-08-02 | E34: 2020-02-23 | F34: 28 | G34: 2021-04-08 | I34: 2022-05-23 | J34: 55 | K34: 2023-07-08 | L34: 82 | M34: 2025-10-08 | N34: 109 | O34: 2028-01-08 | P34: 136 | Q34: 2030-04-08 | R34: 163 | S34: 2032-07-08 | T34: 325 | U34: 2046-01-08
A35: 29 | B35: 8 | C35: 2019-08-08 | D35: 15 | E35: 2020-03-08 | F35: 29 | G35: 2021-05-08 | H35: =H33+3 -> 43 | I35: 2022-07-08 | J35: 57 | K35: 2023-09-08 | L35: 85 | M35: 2026-01-08 | N35: 113 | O35: 2028-05-08 | P35: 141 | Q35: 2030-09-08 | R35: 169 | S35: 2033-01-08 | T35: 337 | U35: 2047-01-08
A36: 30 | C36: 2019-08-15 | E36: 2020-03-23 | F36: 30 | G36: 2021-06-08 | I36: 2022-08-23 | J36: 59 | K36: 2023-11-08 | L36: 88 | M36: 2026-04-08 | N36: 117 | O36: 2028-09-08 | P36: 146 | Q36: 2031-02-08 | R36: 175 | S36: 2033-07-08 | T36: 349 | U36: 2048-01-08
A37: 31 | C37: 2019-08-23 | D37: 16 | E37: 2020-04-08 | F37: 31 | G37: 2021-07-08 | H37: =H35+3 -> 46 | I37: 2022-10-08 | J37: 61 | K37: 2024-01-08 | L37: 91 | M37: 2026-07-08 | N37: 121 | O37: 2029-01-08 | P37: 151 | Q37: 2031-07-08 | R37: 181 | S37: 2034-01-08 | T37: 361 | U37: 2049-01-08
A38: 32 | C38: 2019-09-02 | E38: 2020-04-23 | F38: 32 | G38: 2021-08-08 | I38: 2022-11-23 | J38: 63 | K38: 2024-03-08 | L38: 94 | M38: 2026-10-08 | N38: 125 | O38: 2029-05-08 | P38: 156 | Q38: 2031-12-08 | R38: 187 | S38: 2034-07-08 | T38: 373 | U38: 2050-01-08
A39: 33 | B39: 9 | C39: 2019-09-08 | D39: 17 | E39: 2020-05-08 | F39: 33 | G39: 2021-09-08 | H39: =H37+3 -> 49 | I39: 2023-01-08 | J39: 65 | K39: 2024-05-08 | L39: 97 | M39: 2027-01-08 | N39: 129 | O39: 2029-09-08 | P39: 161 | Q39: 2032-05-08 | R39: 193 | S39: 2035-01-08 | T39: 385 | U39: 2051-01-08
A40: 34 | C40: 2019-09-15 | E40: 2020-05-23 | F40: 34 | G40: 2021-10-08 | I40: 2023-02-23 | J40: 67 | K40: 2024-07-08 | L40: 100 | M40: 2027-04-08 | N40: 133 | O40: 2030-01-08 | P40: 166 | Q40: 2032-10-08 | R40: 199 | S40: 2035-07-08 | T40: 397 | U40: 2052-01-08
A41: 35 | C41: 2019-09-23 | D41: 18 | E41: 2020-06-08 | F41: 35 | G41: 2021-11-08 | H41: =H39+3 -> 52 | I41: 2023-04-08 | J41: 69 | K41: 2024-09-08 | L41: 103 | M41: 2027-07-08 | N41: 137 | O41: 2030-05-08 | P41: 171 | Q41: 2033-03-08 | R41: 205 | S41: 2036-01-08 | T41: 409 | U41: 2053-01-08
A42: 36 | C42: 2019-10-02 | E42: 2020-06-23 | F42: 36 | G42: 2021-12-08 | I42: 2023-05-23 | J42: 71 | K42: 2024-11-08 | L42: 106 | M42: 2027-10-08 | N42: 141 | O42: 2030-09-08 | P42: 176 | Q42: 2033-08-08 | R42: 211 | S42: 2036-07-08 | T42: 421 | U42: 2054-01-08
A43: 37 | B43: 10 | C43: 2019-10-08 | D43: 19 | E43: 2020-07-08 | F43: 37 | G43: 2022-01-08 | H43: =H41+3 -> 55 | I43: 2023-07-08 | J43: 73 | K43: 2025-01-08 | L43: 109 | M43: 2028-01-08 | N43: 145 | O43: 2031-01-08 | P43: 181 | Q43: 2034-01-08 | R43: 217 | S43: 2037-01-08 | T43: 433 | U43: 2055-01-08
A44: 38 | C44: 2019-10-15 | E44: 2020-07-23 | F44: 38 | G44: 2022-02-08 | I44: 2023-08-23 | J44: 75 | K44: 2025-03-08 | L44: 112 | M44: 2028-04-08 | N44: 149 | O44: 2031-05-08 | P44: 186 | Q44: 2034-06-08 | R44: 223 | S44: 2037-07-08 | T44: 445 | U44: 2056-01-08
A45: 39 | C45: 2019-10-23 | D45: 20 | E45: 2020-08-08 | F45: 39 | G45: 2022-03-08 | H45: =H43+3 -> 58 | I45: 2023-10-08 | J45: 77 | K45: 2025-05-08 | L45: 115 | M45: 2028-07-08 | N45: 153 | O45: 2031-09-08 | P45: 191 | Q45: 2034-11-08 | R45: 229 | S45: 2038-01-08 | T45: 457 | U45: 2057-01-08
A46: 40 | C46: 2019-11-02 | E46: 2020-08-23 | F46: 40 | G46: 2022-04-08 | I46: 2023-11-23 | J46: 79 | K46: 2025-07-08 | L46: 118 | M46: 2028-10-08 | N46: 157 | O46: 2032-01-08 | P46: 196 | Q46: 2035-04-08 | R46: 235 | S46: 2038-07-08 | T46: 469 | U46: 2058-01-08
A47: 41 | B47: 11 | C47: 2019-11-08 | D47: 21 | E47: 2020-09-08 | F47: 41 | G47: 2022-05-08 | H47: =H45+3 -> 61 | I47: 2024-01-08 | J47: 81 | K47: 2025-09-08 | L47: 121 | M47: 2029-01-08 | N47: 161 | O47: 2032-05-08 | P47: 201 | Q47: 2035-09-08 | R47: 241 | S47: 2039-01-08 | T47: 481 | U47: 2059-01-08
A48: 42 | C48: 2019-11-15 | E48: 2020-09-23 | F48: 42 | G48: 2022-06-08 | I48: 2024-02-23 | J48: 83 | K48: 2025-11-08 | L48: 124 | M48: 2029-04-08 | N48: 165 | O48: 2032-09-08 | P48: 206 | Q48: 2036-02-08 | R48: 247 | S48: 2039-07-08 | T48: 493 | U48: 2060-01-08
A49: 43 | C49: 2019-11-23 | D49: 22 | E49: 2020-10-08 | F49: 43 | G49: 2022-07-08 | H49: =H47+3 -> 64 | I49: 2024-04-08 | J49: 85 | K49: 2026-01-08 | L49: 127 | M49: 2029-07-08 | N49: 169 | O49: 2033-01-08 | P49: 211 | Q49: 2036-07-08 | R49: 253 | S49: 2040-01-08 | T49: 505 | U49: 2061-01-08
A50: 44 | C50: 2019-12-02 | E50: 2020-10-23 | F50: 44 | G50: 2022-08-08 | I50: 2024-05-23 | J50: 87 | K50: 2026-03-08 | L50: 130 | M50: 2029-10-08 | N50: 173 | O50: 2033-05-08 | P50: 216 | Q50: 2036-12-08 | R50: 259 | S50: 2040-07-08 | T50: 517 | U50: 2062-01-08
A51: 45 | B51: 12 | C51: 2019-12-08 | D51: 23 | E51: 2020-11-08 | F51: 45 | G51: 2022-09-08 | H51: =H49+3 -> 67 | I51: 2024-07-08 | J51: 89 | K51: 2026-05-08 | L51: 133 | M51: 2030-01-08 | N51: 177 | O51: 2033-09-08 | P51: 221 | Q51: 2037-05-08 | R51: 265 | S51: 2041-01-08 | T51: 529 | U51: 2063-01-08
A52: 46 | C52: 2019-12-15 | E52: 2020-11-23 | F52: 46 | G52: 2022-10-08 | I52: 2024-08-23 | J52: 91 | K52: 2026-07-08 | L52: 136 | M52: 2030-04-08 | N52: 181 | O52: 2034-01-08 | P52: 226 | Q52: 2037-10-08 | R52: 271 | S52: 2041-07-08 | T52: 541 | U52: 2064-01-08
A53: 47 | C53: 2019-12-23 | D53: 24 | E53: 2020-12-08 | F53: 47 | G53: 2022-11-08 | H53: =H51+3 -> 70 | I53: 2024-10-08 | J53: 93 | K53: 2026-09-08 | L53: 139 | M53: 2030-07-08 | N53: 185 | O53: 2034-05-08 | P53: 231 | Q53: 2038-03-08 | R53: 277 | S53: 2042-01-08 | T53: 553 | U53: 2065-01-08
A54: 48 | C54: 2020-01-02 | E54: 2020-12-23 | F54: 48 | G54: 2022-12-08 | I54: 2024-11-23 | J54: 95 | K54: 2026-11-08 | L54: 142 | M54: 2030-10-08 | N54: 189 | O54: 2034-09-08 | P54: 236 | Q54: 2038-08-08 | R54: 283 | S54: 2042-07-08 | T54: 565 | U54: 2066-01-08
A55: 49 | B55: 13 | C55: 2020-01-08 | D55: 25 | E55: 2021-01-08 | F55: 49 | G55: 2023-01-08 | H55: =H53+3 -> 73 | I55: 2025-01-08 | J55: 97 | K55: 2027-01-08 | L55: =L54+3 -> 145 | M55: 2031-01-08 | N55: =N54+4 -> 193 | O55: 2035-01-08 | P55: =P54+5 -> 241 | Q55: 2039-01-08 | R55: =R54+6 -> 289 | S55: 2043-01-08 | T55: =T54+12 -> 577 | U55: =EDATE(U54,12) -> 2067-01-08
A56: 50 | C56: 2020-01-15 | E56: 2021-01-23 | F56: 50 | G56: 2023-02-08 | I56: 2025-02-23 | J56: 99 | K56: 2027-03-08 | L56: 148 | M56: 2031-04-08 | N56: 197 | O56: 2035-05-08 | P56: 246 | Q56: 2039-06-08 | R56: 295 | S56: 2043-07-08 | T56: 589 | U56: 2068-01-08
A57: 51 | C57: 2020-01-23 | D57: 26 | E57: 2021-02-08 | F57: 51 | G57: 2023-03-08 | H57: =H55+3 -> 76 | I57: 2025-04-08 | J57: 101 | K57: 2027-05-08 | L57: 151 | M57: 2031-07-08 | N57: 201 | O57: 2035-09-08 | P57: 251 | Q57: 2039-11-08 | R57: 301 | S57: 2044-01-08 | T57: 601 | U57: 2069-01-08
A58: 52 | C58: 2020-02-02 | E58: 2021-02-23 | F58: 52 | G58: 2023-04-08 | I58: 2025-05-23 | J58: 103 | K58: 2027-07-08 | L58: 154 | M58: 2031-10-08 | N58: 205 | O58: 2036-01-08 | P58: 256 | Q58: 2040-04-08 | R58: 307 | S58: 2044-07-08 | T58: 613 | U58: 2070-01-08
A59: 53 | B59: 14 | C59: 2020-02-08 | D59: 27 | E59: 2021-03-08 | F59: 53 | G59: 2023-05-08 | H59: =H57+3 -> 79 | I59: 2025-07-08 | J59: 105 | K59: 2027-09-08 | L59: 157 | M59: 2032-01-08 | N59: 209 | O59: 2036-05-08 | P59: 261 | Q59: 2040-09-08 | R59: 313 | S59: 2045-01-08 | T59: 625 | U59: 2071-01-08
A60: 54 | C60: 2020-02-15 | E60: 2021-03-23 | F60: 54 | G60: 2023-06-08 | I60: 2025-08-23 | J60: 107 | K60: 2027-11-08 | L60: 160 | M60: 2032-04-08 | N60: 213 | O60: 2036-09-08 | P60: 266 | Q60: 2041-02-08 | R60: 319 | S60: 2045-07-08 | T60: 637 | U60: 2072-01-08
A61: 55 | C61: 2020-02-23 | D61: 28 | E61: 2021-04-08 | F61: 55 | G61: 2023-07-08 | H61: =H59+3 -> 82 | I61: 2025-10-08 | J61: 109 | K61: 2028-01-08 | L61: 163 | M61: 2032-07-08 | N61: 217 | O61: 2037-01-08 | P61: 271 | Q61: 2041-07-08 | R61: 325 | S61: 2046-01-08 | T61: 649 | U61: 2073-01-08
A62: 56 | C62: 2020-03-02 | E62: 2021-04-23 | F62: 56 | G62: 2023-08-08 | I62: 2025-11-23 | J62: 111 | K62: 2028-03-08 | L62: 166 | M62: 2032-10-08 | N62: 221 | O62: 2037-05-08 | P62: 276 | Q62: 2041-12-08 | R62: 331 | S62: 2046-07-08 | T62: 661 | U62: 2074-01-08
A63: 57 | B63: 15 | C63: 2020-03-08 | D63: 29 | E63: 2021-05-08 | F63: 57 | G63: 2023-09-08 | H63: =H61+3 -> 85 | I63: 2026-01-08 | J63: 113 | K63: 2028-05-08 | L63: 169 | M63: 2033-01-08 | N63: 225 | O63: 2037-09-08 | P63: 281 | Q63: 2042-05-08 | R63: 337 | S63: 2047-01-08 | T63: 673 | U63: 2075-01-08
A64: 58 | C64: 2020-03-15 | E64: 2021-05-23 | F64: 58 | G64: 2023-10-08 | I64: 2026-02-23 | J64: 115 | K64: 2028-07-08 | L64: 172 | M64: 2033-04-08 | N64: 229 | O64: 2038-01-08 | P64: 286 | Q64: 2042-10-08 | R64: 343 | S64: 2047-07-08 | T64: 685 | U64: 2076-01-08
A65: 59 | C65: 2020-03-23 | D65: 30 | E65: 2021-06-08 | F65: 59 | G65: 2023-11-08 | H65: =H63+3 -> 88 | I65: 2026-04-08 | J65: 117 | K65: 2028-09-08 | L65: 175 | M65: 2033-07-08 | N65: 233 | O65: 2038-05-08 | P65: 291 | Q65: 2043-03-08 | R65: 349 | S65: 2048-01-08 | T65: 697 | U65: 2077-01-08
A66: 60 | C66: 2020-04-02 | E66: 2021-06-23 | F66: 60 | G66: 2023-12-08 | I66: 2026-05-23 | J66: 119 | K66: 2028-11-08 | L66: 178 | M66: 2033-10-08 | N66: 237 | O66: 2038-09-08 | P66: 296 | Q66: 2043-08-08 | R66: 355 | S66: 2048-07-08 | T66: 709 | U66: 2078-01-08
A67: 61 | B67: 16 | C67: 2020-04-08 | D67: 31 | E67: 2021-07-08 | F67: 61 | G67: 2024-01-08 | H67: =H65+3 -> 91 | I67: 2026-07-08 | J67: 121 | K67: 2029-01-08 | L67: 181 | M67: 2034-01-08 | N67: 241 | O67: 2039-01-08 | P67: 301 | Q67: 2044-01-08 | R67: 361 | S67: 2049-01-08 | T67: 721 | U67: 2079-01-08
A68: 62 | C68: 2020-04-15 | E68: 2021-07-23 | F68: 62 | G68: 2024-02-08 | I68: 2026-08-23 | J68: 123 | K68: 2029-03-08 | L68: 184 | M68: 2034-04-08 | N68: 245 | O68: 2039-05-08 | P68: 306 | Q68: 2044-06-08 | R68: 367 | S68: 2049-07-08 | T68: 733 | U68: 2080-01-08
A69: 63 | C69: 2020-04-23 | D69: 32 | E69: 2021-08-08 | F69: 63 | G69: 2024-03-08 | H69: =H67+3 -> 94 | I69: 2026-10-08 | J69: 125 | K69: 2029-05-08 | L69: 187 | M69: 2034-07-08 | N69: 249 | O69: 2039-09-08 | P69: 311 | Q69: 2044-11-08 | R69: 373 | S69: 2050-01-08 | T69: 745 | U69: 2081-01-08
A70: 64 | C70: 2020-05-02 | E70: 2021-08-23 | F70: 64 | G70: 2024-04-08 | I70: 2026-11-23 | J70: 127 | K70: 2029-07-08 | L70: 190 | M70: 2034-10-08 | N70: 253 | O70: 2040-01-08 | P70: 316 | Q70: 2045-04-08 | R70: 379 | S70: 2050-07-08 | T70: 757 | U70: 2082-01-08
A71: 65 | B71: 17 | C71: 2020-05-08 | D71: 33 | E71: 2021-09-08 | F71: 65 | G71: 2024-05-08 | H71: =H69+3 -> 97 | I71: 2027-01-08 | J71: 129 | K71: 2029-09-08 | L71: 193 | M71: 2035-01-08 | N71: 257 | O71: 2040-05-08 | P71: 321 | Q71: 2045-09-08 | R71: 385 | S71: 2051-01-08 | T71: 769 | U71: 2083-01-08
A72: 66 | C72: 2020-05-15 | E72: 2021-09-23 | F72: 66 | G72: 2024-06-08 | I72: 2027-02-23 | J72: 131 | K72: 2029-11-08 | L72: 196 | M72: 2035-04-08 | N72: 261 | O72: 2040-09-08 | P72: 326 | Q72: 2046-02-08 | R72: 391 | S72: 2051-07-08 | T72: 781 | U72: 2084-01-08
A73: 67 | C73: 2020-05-23 | D73: 34 | E73: 2021-10-08 | F73: 67 | G73: 2024-07-08 | H73: =H71+3 -> 100 | I73: 2027-04-08 | J73: 133 | K73: 2030-01-08 | L73: 199 | M73: 2035-07-08 | N73: 265 | O73: 2041-01-08 | P73: 331 | Q73: 2046-07-08 | R73: 397 | S73: 2052-01-08 | T73: 793 | U73: 2085-01-08
A74: 68 | C74: 2020-06-02 | E74: 2021-10-23 | F74: 68 | G74: =IF(EDATE(G73,1)>EDATE(G72,2),EDATE(G73,1),EDATE(G72,2)) -> 2024-08-08 | I74: 2027-05-23 | J74: 135 | K74: =IF(EDATE(K73,2)>EDATE(K72,4),EDATE(K73,2),EDATE(K72,4)) -> 2030-03-08 | L74: 202 | M74: =IF(EDATE(M73,3)>EDATE(M72,6),EDATE(M73,3),EDATE(M72,6)) -> 2035-10-08 | N74: 269 | O74: =IF(EDATE(O73,4)>EDATE(O72,8),EDATE(O73,4),EDATE(O72,8)) -> 2041-05-08 | P74: 336 | Q74: =IF(EDATE(Q73,5)>EDATE(Q72,10),EDATE(Q73,5),EDATE(Q72,10)) -> 2046-12-08 | R74: 403 | S74: =IF(EDATE(S73,6)>EDATE(S72,12),EDATE(S73,6),EDATE(S72,12)) -> 2052-07-08 | T74: 805 | U74: 2086-01-08
A75: 69 | B75: 18 | C75: 2020-06-08 | D75: 35 | E75: 2021-11-08 | F75: 69 | G75: 2024-09-08 | H75: =H73+3 -> 103 | I75: 2027-07-08 | J75: 137 | K75: 2030-05-08 | L75: 205 | M75: 2036-01-08 | N75: 273 | O75: 2041-09-08 | P75: 341 | Q75: 2047-05-08 | R75: 409 | S75: 2053-01-08 | T75: 817 | U75: 2087-01-08
A76: 70 | C76: 2020-06-15 | E76: =IF(EDATE(E74,1)>EDATE(E72,2),EDATE(E74,1),EDATE(E72,2)) -> 2021-11-23 | F76: 70 | G76: 2024-10-08 | I76: =IF(EDATE(I74,3)>EDATE(I72,6),EDATE(I74,3),EDATE(I72,6)) -> 2027-08-23 | J76: 139 | K76: 2030-07-08 | L76: 208 | M76: 2036-04-08 | N76: 277 | O76: 2042-01-08 | P76: 346 | Q76: 2047-10-08 | R76: 415 | S76: 2053-07-08 | T76: 829 | U76: 2088-01-08
A77: 71 | C77: 2020-06-23 | D77: 36 | E77: 2021-12-08 | F77: 71 | G77: 2024-11-08 | H77: =H75+3 -> 106 | I77: 2027-10-08 | J77: 141 | K77: 2030-09-08 | L77: 211 | M77: 2036-07-08 | N77: 281 | O77: 2042-05-08 | P77: 351 | Q77: 2048-03-08 | R77: 421 | S77: 2054-01-08 | T77: 841 | U77: 2089-01-08
A78: 72 | C78: 2020-07-02 | E78: 2021-12-23 | F78: 72 | G78: 2024-12-08 | I78: 2027-11-23 | J78: 143 | K78: 2030-11-08 | L78: 214 | M78: 2036-10-08 | N78: 285 | O78: 2042-09-08 | P78: 356 | Q78: 2048-08-08 | R78: 427 | S78: 2054-07-08 | T78: 853 | U78: 2090-01-08
A79: 73 | B79: 19 | C79: =EDATE(C75,1) -> 2020-07-08 | D79: 37 | E79: 2022-01-08 | F79: 73 | G79: 2025-01-08 | H79: =H77+3 -> 109 | I79: 2028-01-08 | J79: 145 | K79: 2031-01-08 | L79: 217 | M79: 2037-01-08 | N79: 289 | O79: 2043-01-08 | P79: 361 | Q79: 2049-01-08 | R79: 433 | S79: 2055-01-08 | T79: 865 | U79: 2091-01-08
A80: 74 | C80: 2020-07-15 | E80: 2022-01-23 | F80: 74 | G80: 2025-02-08 | I80: 2028-02-23 | J80: 147 | K80: 2031-03-08 | L80: 220 | M80: 2037-04-08 | N80: 293 | O80: 2043-05-08 | P80: 366 | Q80: 2049-06-08 | R80: 439 | S80: 2055-07-08 | T80: 877 | U80: 2092-01-08
A81: 75 | C81: 2020-07-23 | D81: 38 | E81: 2022-02-08 | F81: 75 | G81: 2025-03-08 | H81: =H79+3 -> 112 | I81: 2028-04-08 | J81: 149 | K81: 2031-05-08 | L81: 223 | M81: 2037-07-08 | N81: 297 | O81: 2043-09-08 | P81: 371 | Q81: 2049-11-08 | R81: 445 | S81: 2056-01-08 | T81: 889 | U81: 2093-01-08
A82: 76 | C82: 2020-08-02 | E82: 2022-02-23 | F82: 76 | G82: 2025-04-08 | I82: 2028-05-23 | J82: 151 | K82: 2031-07-08 | L82: 226 | M82: 2037-10-08 | N82: 301 | O82: 2044-01-08 | P82: 376 | Q82: 2050-04-08 | R82: 451 | S82: 2056-07-08 | T82: 901 | U82: 2094-01-08
A83: 77 | B83: 20 | C83: 2020-08-08 | D83: 39 | E83: 2022-03-08 | F83: 77 | G83: 2025-05-08 | H83: =H81+3 -> 115 | I83: 2028-07-08 | J83: 153 | K83: 2031-09-08 | L83: 229 | M83: 2038-01-08 | N83: 305 | O83: 2044-05-08 | P83: 381 | Q83: 2050-09-08 | R83: 457 | S83: 2057-01-08 | T83: 913 | U83: 2095-01-08
A84: 78 | C84: 2020-08-15 | E84: 2022-03-23 | F84: 78 | G84: 2025-06-08 | I84: 2028-08-23 | J84: 155 | K84: 2031-11-08 | L84: 232 | M84: 2038-04-08 | N84: 309 | O84: 2044-09-08 | P84: 386 | Q84: 2051-02-08 | R84: 463 | S84: 2057-07-08 | T84: 925 | U84: 2096-01-08
A85: 79 | C85: 2020-08-23 | D85: 40 | E85: 2022-04-08 | F85: 79 | G85: 2025-07-08 | H85: =H83+3 -> 118 | I85: 2028-10-08 | J85: 157 | K85: 2032-01-08 | L85: 235 | M85: 2038-07-08 | N85: 313 | O85: 2045-01-08 | P85: 391 | Q85: 2051-07-08 | R85: 469 | S85: 2058-01-08 | T85: 937 | U85: 2097-01-08
A86: 80 | C86: 2020-09-02 | E86: 2022-04-23 | F86: 80 | G86: 2025-08-08 | I86: 2028-11-23 | J86: 159 | K86: 2032-03-08 | L86: 238 | M86: 2038-10-08 | N86: 317 | O86: 2045-05-08 | P86: 396 | Q86: 2051-12-08 | R86: 475 | S86: 2058-07-08 | T86: 949 | U86: 2098-01-08
A87: 81 | B87: 21 | C87: 2020-09-08 | D87: 41 | E87: 2022-05-08 | F87: 81 | G87: 2025-09-08 | H87: =H85+3 -> 121 | I87: 2029-01-08 | J87: 161 | K87: 2032-05-08 | L87: 241 | M87: 2039-01-08 | N87: 321 | O87: 2045-09-08 | P87: 401 | Q87: 2052-05-08 | R87: 481 | S87: 2059-01-08 | T87: 961 | U87: 2099-01-08
A88: 82 | C88: 2020-09-15 | E88: 2022-05-23 | F88: 82 | G88: 2025-10-08 | I88: 2029-02-23 | J88: 163 | K88: 2032-07-08 | L88: 244 | M88: 2039-04-08 | N88: 325 | O88: 2046-01-08 | P88: 406 | Q88: 2052-10-08 | R88: 487 | S88: 2059-07-08 | T88: 973 | U88: 2100-01-08
A89: 83 | C89: 2020-09-23 | D89: 42 | E89: 2022-06-08 | F89: 83 | G89: 2025-11-08 | H89: =H87+3 -> 124 | I89: 2029-04-08 | J89: 165 | K89: 2032-09-08 | L89: 247 | M89: 2039-07-08 | N89: 329 | O89: 2046-05-08 | P89: 411 | Q89: 2053-03-08 | R89: 493 | S89: 2060-01-08 | T89: 985 | U89: 2101-01-08
A90: 84 | C90: 2020-10-02 | E90: 2022-06-23 | F90: 84 | G90: 2025-12-08 | I90: 2029-05-23 | J90: 167 | K90: 2032-11-08 | L90: 250 | M90: 2039-10-08 | N90: 333 | O90: 2046-09-08 | P90: 416 | Q90: 2053-08-08 | R90: 499 | S90: 2060-07-08 | T90: 997 | U90: 2102-01-08
A91: 85 | B91: 22 | C91: 2020-10-08 | D91: 43 | E91: 2022-07-08 | F91: 85 | G91: 2026-01-08 | H91: =H89+3 -> 127 | I91: 2029-07-08 | J91: 169 | K91: 2033-01-08 | L91: 253 | M91: 2040-01-08 | N91: 337 | O91: 2047-01-08 | P91: 421 | Q91: 2054-01-08 | R91: 505 | S91: 2061-01-08 | T91: 1009 | U91: 2103-01-08
A92: 86 | C92: 2020-10-15 | E92: 2022-07-23 | F92: 86 | G92: 2026-02-08 | I92: 2029-08-23 | J92: 171 | K92: 2033-03-08 | L92: 256 | M92: 2040-04-08 | N92: 341 | O92: 2047-05-08 | P92: 426 | Q92: 2054-06-08 | R92: 511 | S92: 2061-07-08 | T92: 1021 | U92: 2104-01-08
A93: 87 | C93: 2020-10-23 | D93: 44 | E93: 2022-08-08 | F93: 87 | G93: 2026-03-08 | H93: =H91+3 -> 130 | I93: 2029-10-08 | J93: 173 | K93: 2033-05-08 | L93: 259 | M93: 2040-07-08 | N93: 345 | O93: 2047-09-08 | P93: 431 | Q93: 2054-11-08 | R93: 517 | S93: 2062-01-08 | T93: 1033 | U93: 2105-01-08
A94: 88 | C94: 2020-11-02 | E94: 2022-08-23 | F94: 88 | G94: 2026-04-08 | I94: 2029-11-23 | J94: 175 | K94: 2033-07-08 | L94: 262 | M94: 2040-10-08 | N94: 349 | O94: 2048-01-08 | P94: 436 | Q94: 2055-04-08 | R94: 523 | S94: 2062-07-08 | T94: 1045 | U94: 2106-01-08
A95: 89 | B95: 23 | C95: 2020-11-08 | D95: 45 | E95: 2022-09-08 | F95: 89 | G95: 2026-05-08 | H95: =H93+3 -> 133 | I95: 2030-01-08 | J95: 177 | K95: 2033-09-08 | L95: 265 | M95: 2041-01-08 | N95: 353 | O95: 2048-05-08 | P95: 441 | Q95: 2055-09-08 | R95: 529 | S95: 2063-01-08 | T95: 1057 | U95: 2107-01-08
A96: 90 | C96: 2020-11-15 | E96: 2022-09-23 | F96: 90 | G96: 2026-06-08 | I96: 2030-02-23 | J96: 179 | K96: 2033-11-08 | L96: 268 | M96: 2041-04-08 | N96: 357 | O96: 2048-09-08 | P96: 446 | Q96: 2056-02-08 | R96: 535 | S96: 2063-07-08 | T96: 1069 | U96: 2108-01-08
A97: 91 | C97: 2020-11-23 | D97: 46 | E97: 2022-10-08 | F97: 91 | G97: 2026-07-08 | H97: =H95+3 -> 136 | I97: 2030-04-08 | J97: 181 | K97: 2034-01-08 | L97: 271 | M97: 2041-07-08 | N97: 361 | O97: 2049-01-08 | P97: 451 | Q97: 2056-07-08 | R97: 541 | S97: 2064-01-08 | T97: 1081 | U97: 2109-01-08
A98: 92 | C98: 2020-12-02 | E98: 2022-10-23 | F98: 92 | G98: 2026-08-08 | I98: 2030-05-23 | J98: 183 | K98: 2034-03-08 | L98: 274 | M98: 2041-10-08 | N98: 365 | O98: 2049-05-08 | P98: 456 | Q98: 2056-12-08 | R98: 547 | S98: 2064-07-08 | T98: 1093 | U98: 2110-01-08
A99: 93 | B99: 24 | C99: 2020-12-08 | D99: 47 | E99: 2022-11-08 | F99: 93 | G99: 2026-09-08 | H99: =H97+3 -> 139 | I99: 2030-07-08 | J99: 185 | K99: 2034-05-08 | L99: 277 | M99: 2042-01-08 | N99: 369 | O99: 2049-09-08 | P99: 461 | Q99: 2057-05-08 | R99: 553 | S99: 2065-01-08 | T99: 1105 | U99: 2111-01-08
A100: 94 | C100: 2020-12-15 | E100: 2022-11-23 | F100: 94 | G100: 2026-10-08 | I100: 2030-08-23 | J100: 187 | K100: 2034-07-08 | L100: 280 | M100: 2042-04-08 | N100: 373 | O100: 2050-01-08 | P100: 466 | Q100: 2057-10-08 | R100: 559 | S100: 2065-07-08 | T100: 1117 | U100: 2112-01-08
A101: 95 | C101: 2020-12-23 | D101: 48 | E101: 2022-12-08 | F101: 95 | G101: 2026-11-08 | H101: =H99+3 -> 142 | I101: 2030-10-08 | J101: 189 | K101: 2034-09-08 | L101: 283 | M101: 2042-07-08 | N101: 377 | O101: 2050-05-08 | P101: 471 | Q101: 2058-03-08 | R101: 565 | S101: 2066-01-08 | T101: 1129 | U101: 2113-01-08
A102: 96 | C102: 2021-01-02 | E102: 2022-12-23 | F102: 96 | G102: 2026-12-08 | I102: 2030-11-23 | J102: 191 | K102: 2034-11-08 | L102: 286 | M102: 2042-10-08 | N102: 381 | O102: 2050-09-08 | P102: 476 | Q102: 2058-08-08 | R102: 571 | S102: 2066-07-08 | T102: 1141 | U102: 2114-01-08
A103: 97 | B103: 25 | C103: 2021-01-08 | D103: 49 | E103: 2023-01-08 | F103: 97 | G103: 2027-01-08 | H103: =H101+3 -> 145 | I103: 2031-01-08 | J103: 193 | K103: 2035-01-08 | L103: 289 | M103: 2043-01-08 | N103: 385 | O103: 2051-01-08 | P103: 481 | Q103: 2059-01-08 | R103: 577 | S103: 2067-01-08 | T103: 1153 | U103: 2115-01-08
A104: 98 | C104: 2021-01-15 | E104: 2023-01-23 | F104: 98 | G104: 2027-02-08 | I104: 2031-02-23 | J104: 195 | K104: 2035-03-08 | L104: 292 | M104: 2043-04-08 | N104: 389 | O104: 2051-05-08 | P104: 486 | Q104: 2059-06-08 | R104: 583 | S104: 2067-07-08 | T104: 1165 | U104: 2116-01-08
A105: 99 | C105: 2021-01-23 | D105: 50 | E105: 2023-02-08 | F105: 99 | G105: 2027-03-08 | H105: =H103+3 -> 148 | I105: 2031-04-08 | J105: 197 | K105: 2035-05-08 | L105: 295 | M105: 2043-07-08 | N105: 393 | O105: 2051-09-08 | P105: 491 | Q105: 2059-11-08 | R105: 589 | S105: 2068-01-08 | T105: 1177 | U105: 2117-01-08
A106: 100 | C106: 2021-02-02 | E106: 2023-02-23 | F106: 100 | G106: 2027-04-08 | I106: 2031-05-23 | J106: 199 | K106: 2035-07-08 | L106: 298 | M106: 2043-10-08 | N106: 397 | O106: 2052-01-08 | P106: 496 | Q106: 2060-04-08 | R106: 595 | S106: 2068-07-08 | T106: 1189 | U106: 2118-01-08
A107: 101 | B107: 26 | C107: 2021-02-08 | D107: 51 | E107: 2023-03-08 | F107: 101 | G107: 2027-05-08 | H107: =H105+3 -> 151 | I107: 2031-07-08 | J107: 201 | K107: 2035-09-08 | L107: 301 | M107: 2044-01-08 | N107: 401 | O107: 2052-05-08 | P107: 501 | Q107: 2060-09-08 | R107: 601 | S107: 2069-01-08 | T107: 1201 | U107: 2119-01-08
A108: 102 | C108: 2021-02-15 | E108: 2023-03-23 | F108: 102 | G108: 2027-06-08 | I108: 2031-08-23 | J108: 203 | K108: 2035-11-08 | L108: 304 | M108: 2044-04-08 | N108: 405 | O108: 2052-09-08 | P108: 506 | Q108: 2061-02-08 | R108: 607 | S108: 2069-07-08 | T108: 1213 | U108: 2120-01-08
A109: 103 | C109: 2021-02-23 | D109: 52 | E109: 2023-04-08 | F109: 103 | G109: 2027-07-08 | H109: =H107+3 -> 154 | I109: 2031-10-08 | J109: 205 | K109: 2036-01-08 | L109: 307 | M109: 2044-07-08 | N109: 409 | O109: 2053-01-08 | P109: 511 | Q109: 2061-07-08 | R109: 613 | S109: 2070-01-08 | T109: 1225 | U109: 2121-01-08
A110: 104 | C110: 2021-03-02 | E110: 2023-04-23 | F110: 104 | G110: 2027-08-08 | I110: 2031-11-23 | J110: 207 | K110: 2036-03-08 | L110: 310 | M110: 2044-10-08 | N110: 413 | O110: 2053-05-08 | P110: 516 | Q110: 2061-12-08 | R110: 619 | S110: 2070-07-08 | T110: 1237 | U110: 2122-01-08
A111: 105 | B111: 27 | C111: 2021-03-08 | D111: 53 | E111: 2023-05-08 | F111: 105 | G111: 2027-09-08 | H111: =H109+3 -> 157 | I111: 2032-01-08 | J111: 209 | K111: 2036-05-08 | L111: 313 | M111: 2045-01-08 | N111: 417 | O111: 2053-09-08 | P111: 521 | Q111: 2062-05-08 | R111: 625 | S111: 2071-01-08 | T111: 1249 | U111: 2123-01-08
A112: 106 | C112: 2021-03-15 | E112: 2023-05-23 | F112: 106 | G112: 2027-10-08 | I112: 2032-02-23 | J112: 211 | K112: 2036-07-08 | L112: 316 | M112: 2045-04-08 | N112: 421 | O112: 2054-01-08 | P112: 526 | Q112: 2062-10-08 | R112: 631 | S112: 2071-07-08 | T112: 1261 | U112: 2124-01-08
A113: 107 | C113: 2021-03-23 | D113: 54 | E113: 2023-06-08 | F113: 107 | G113: 2027-11-08 | H113: =H111+3 -> 160 | I113: 2032-04-08 | J113: 213 | K113: 2036-09-08 | L113: 319 | M113: 2045-07-08 | N113: 425 | O113: 2054-05-08 | P113: 531 | Q113: 2063-03-08 | R113: 637 | S113: 2072-01-08 | T113: 1273 | U113: 2125-01-08
A114: 108 | C114: 2021-04-02 | E114: 2023-06-23 | F114: 108 | G114: 2027-12-08 | I114: 2032-05-23 | J114: 215 | K114: 2036-11-08 | L114: 322 | M114: 2045-10-08 | N114: 429 | O114: 2054-09-08 | P114: 536 | Q114: 2063-08-08 | R114: 643 | S114: 2072-07-08 | T114: 1285 | U114: 2126-01-08
A115: 109 | B115: 28 | C115: 2021-04-08 | D115: 55 | E115: 2023-07-08 | F115: 109 | G115: 2028-01-08 | H115: =H113+3 -> 163 | I115: 2032-07-08 | J115: 217 | K115: 2037-01-08 | L115: 325 | M115: 2046-01-08 | N115: 433 | O115: 2055-01-08 | P115: 541 | Q115: 2064-01-08 | R115: 649 | S115: 2073-01-08 | T115: 1297 | U115: 2127-01-08
A116: 110 | C116: 2021-04-15 | E116: 2023-07-23 | F116: 110 | G116: 2028-02-08 | I116: 2032-08-23 | J116: 219 | K116: 2037-03-08 | L116: 328 | M116: 2046-04-08 | N116: 437 | O116: 2055-05-08 | P116: 546 | Q116: 2064-06-08 | R116: 655 | S116: 2073-07-08 | T116: 1309 | U116: 2128-01-08
A117: 111 | C117: 2021-04-23 | D117: 56 | E117: 2023-08-08 | F117: 111 | G117: 2028-03-08 | H117: =H115+3 -> 166 | I117: 2032-10-08 | J117: 221 | K117: 2037-05-08 | L117: 331 | M117: 2046-07-08 | N117: 441 | O117: 2055-09-08 | P117: 551 | Q117: 2064-11-08 | R117: 661 | S117: 2074-01-08 | T117: 1321 | U117: 2129-01-08
A118: 112 | C118: 2021-05-02 | E118: 2023-08-23 | F118: 112 | G118: 2028-04-08 | I118: 2032-11-23 | J118: 223 | K118: 2037-07-08 | L118: 334 | M118: 2046-10-08 | N118: 445 | O118: 2056-01-08 | P118: 556 | Q118: 2065-04-08 | R118: 667 | S118: 2074-07-08 | T118: 1333 | U118: 2130-01-08
A119: 113 | B119: 29 | C119: 2021-05-08 | D119: 57 | E119: 2023-09-08 | F119: 113 | G119: 2028-05-08 | H119: =H117+3 -> 169 | I119: 2033-01-08 | J119: 225 | K119: 2037-09-08 | L119: =L118+3 -> 337 | M119: 2047-01-08 | N119: =N118+4 -> 449 | O119: 2056-05-08 | P119: =P118+5 -> 561 | Q119: 2065-09-08 | R119: =R118+6 -> 673 | S119: 2075-01-08 | T119: =T118+12 -> 1345 | U119: =EDATE(U118,12) -> 2131-01-08
A120: 114 | C120: 2021-05-15 | E120: 2023-09-23 | F120: 114 | G120: 2028-06-08 | I120: 2033-02-23 | J120: 227 | K120: 2037-11-08 | L120: 340 | M120: 2047-04-08 | N120: 453 | O120: 2056-09-08 | P120: 566 | Q120: 2066-02-08 | R120: 679 | S120: 2075-07-08 | T120: 1357 | U120: 2132-01-08
A121: 115 | C121: 2021-05-23 | D121: 58 | E121: 2023-10-08 | F121: 115 | G121: 2028-07-08 | H121: =H119+3 -> 172 | I121: 2033-04-08 | J121: 229 | K121: 2038-01-08 | L121: 343 | M121: 2047-07-08 | N121: 457 | O121: 2057-01-08 | P121: 571 | Q121: 2066-07-08 | R121: 685 | S121: 2076-01-08 | T121: 1369 | U121: 2133-01-08
A122: 116 | C122: 2021-06-02 | E122: 2023-10-23 | F122: 116 | G122: 2028-08-08 | I122: 2033-05-23 | J122: 231 | K122: 2038-03-08 | L122: 346 | M122: 2047-10-08 | N122: 461 | O122: 2057-05-08 | P122: 576 | Q122: 2066-12-08 | R122: 691 | S122: 2076-07-08 | T122: 1381 | U122: 2134-01-08
A123: 117 | B123: 30 | C123: 2021-06-08 | D123: 59 | E123: 2023-11-08 | F123: 117 | G123: 2028-09-08 | H123: =H121+3 -> 175 | I123: 2033-07-08 | J123: 233 | K123: 2038-05-08 | L123: 349 | M123: 2048-01-08 | N123: 465 | O123: 2057-09-08 | P123: 581 | Q123: 2067-05-08 | R123: 697 | S123: 2077-01-08 | T123: 1393 | U123: 2135-01-08
A124: 118 | C124: 2021-06-15 | E124: 2023-11-23 | F124: 118 | G124: 2028-10-08 | I124: 2033-08-23 | J124: 235 | K124: 2038-07-08 | L124: 352 | M124: 2048-04-08 | N124: 469 | O124: 2058-01-08 | P124: 586 | Q124: 2067-10-08 | R124: 703 | S124: 2077-07-08 | T124: 1405 | U124: 2136-01-08
A125: 119 | C125: 2021-06-23 | D125: 60 | E125: 2023-12-08 | F125: 119 | G125: 2028-11-08 | H125: =H123+3 -> 178 | I125: 2033-10-08 | J125: 237 | K125: 2038-09-08 | L125: 355 | M125: 2048-07-08 | N125: 473 | O125: 2058-05-08 | P125: 591 | Q125: 2068-03-08 | R125: 709 | S125: 2078-01-08 | T125: 1417 | U125: 2137-01-08
A126: 120 | C126: 2021-07-02 | E126: 2023-12-23 | F126: 120 | G126: 2028-12-08 | I126: 2033-11-23 | J126: 239 | K126: 2038-11-08 | L126: 358 | M126: 2048-10-08 | N126: 477 | O126: 2058-09-08 | P126: 596 | Q126: 2068-08-08 | R126: 715 | S126: 2078-07-08 | T126: 1429 | U126: 2138-01-08
A127: 121 | B127: 31 | C127: 2021-07-08 | D127: 61 | E127: 2024-01-08 | F127: 121 | G127: 2029-01-08 | H127: =H125+3 -> 181 | I127: 2034-01-08 | J127: 241 | K127: 2039-01-08 | L127: 361 | M127: 2049-01-08 | N127: 481 | O127: 2059-01-08 | P127: 601 | Q127: 2069-01-08 | R127: 721 | S127: 2079-01-08 | T127: 1441 | U127: 2139-01-08
A128: 122 | C128: 2021-07-15 | E128: 2024-01-23 | F128: 122 | G128: 2029-02-08 | I128: 2034-02-23 | J128: 243 | K128: 2039-03-08 | L128: 364 | M128: 2049-04-08 | N128: 485 | O128: 2059-05-08 | P128: 606 | Q128: 2069-06-08 | R128: 727 | S128: 2079-07-08 | T128: 1453 | U128: 2140-01-08
A129: 123 | C129: 2021-07-23 | D129: 62 | E129: 2024-02-08 | F129: 123 | G129: 2029-03-08 | H129: =H127+3 -> 184 | I129: 2034-04-08 | J129: 245 | K129: 2039-05-08 | L129: 367 | M129: 2049-07-08 | N129: 489 | O129: 2059-09-08 | P129: 611 | Q129: 2069-11-08 | R129: 733 | S129: 2080-01-08 | T129: 1465 | U129: 2141-01-08
A130: 124 | C130: 2021-08-02 | E130: 2024-02-23 | F130: 124 | G130: 2029-04-08 | I130: 2034-05-23 | J130: 247 | K130: 2039-07-08 | L130: 370 | M130: 2049-10-08 | N130: 493 | O130: 2060-01-08 | P130: 616 | Q130: 2070-04-08 | R130: 739 | S130: 2080-07-08 | T130: 1477 | U130: 2142-01-08
A131: 125 | B131: 32 | C131: 2021-08-08 | D131: 63 | E131: 2024-03-08 | F131: 125 | G131: 2029-05-08 | H131: =H129+3 -> 187 | I131: 2034-07-08 | J131: 249 | K131: 2039-09-08 | L131: 373 | M131: 2050-01-08 | N131: 497 | O131: 2060-05-08 | P131: 621 | Q131: 2070-09-08 | R131: 745 | S131: 2081-01-08 | T131: 1489 | U131: 2143-01-08
A132: 126 | C132: 2021-08-15 | E132: 2024-03-23 | F132: 126 | G132: 2029-06-08 | I132: 2034-08-23 | J132: 251 | K132: 2039-11-08 | L132: 376 | M132: 2050-04-08 | N132: 501 | O132: 2060-09-08 | P132: 626 | Q132: 2071-02-08 | R132: 751 | S132: 2081-07-08 | T132: 1501 | U132: 2144-01-08
A133: 127 | C133: 2021-08-23 | D133: 64 | E133: 2024-04-08 | F133: 127 | G133: 2029-07-08 | H133: =H131+3 -> 190 | I133: 2034-10-08 | J133: 253 | K133: 2040-01-08 | L133: 379 | M133: 2050-07-08 | N133: 505 | O133: 2061-01-08 | P133: 631 | Q133: 2071-07-08 | R133: 757 | S133: 2082-01-08 | T133: 1513 | U133: 2145-01-08
A134: 128 | C134: 2021-09-02 | E134: 2024-04-23 | F134: 128 | G134: 2029-08-08 | I134: 2034-11-23 | J134: 255 | K134: 2040-03-08 | L134: 382 | M134: 2050-10-08 | N134: 509 | O134: 2061-05-08 | P134: 636 | Q134: 2071-12-08 | R134: 763 | S134: 2082-07-08 | T134: 1525 | U134: 2146-01-08
A135: 129 | B135: 33 | C135: 2021-09-08 | D135: 65 | E135: 2024-05-08 | F135: 129 | G135: 2029-09-08 | H135: =H133+3 -> 193 | I135: 2035-01-08 | J135: 257 | K135: 2040-05-08 | L135: 385 | M135: 2051-01-08 | N135: 513 | O135: 2061-09-08 | P135: 641 | Q135: 2072-05-08 | R135: 769 | S135: 2083-01-08 | T135: 1537 | U135: 2147-01-08
A136: 130 | C136: 2021-09-15 | E136: 2024-05-23 | F136: 130 | G136: 2029-10-08 | I136: 2035-02-23 | J136: 259 | K136: 2040-07-08 | L136: 388 | M136: 2051-04-08 | N136: 517 | O136: 2062-01-08 | P136: 646 | Q136: 2072-10-08 | R136: 775 | S136: 2083-07-08 | T136: 1549 | U136: 2148-01-08
A137: 131 | C137: 2021-09-23 | D137: 66 | E137: 2024-06-08 | F137: 131 | G137: 2029-11-08 | H137: =H135+3 -> 196 | I137: 2035-04-08 | J137: 261 | K137: 2040-09-08 | L137: 391 | M137: 2051-07-08 | N137: 521 | O137: 2062-05-08 | P137: 651 | Q137: 2073-03-08 | R137: 781 | S137: 2084-01-08 | T137: 1561 | U137: 2149-01-08
A138: 132 | C138: 2021-10-02 | E138: 2024-06-23 | F138: 132 | G138: =IF(EDATE(G137,1)>EDATE(G136,2),EDATE(G137,1),EDATE(G136,2)) -> 2029-12-08 | I138: 2035-05-23 | J138: 263 | K138: =IF(EDATE(K137,2)>EDATE(K136,4),EDATE(K137,2),EDATE(K136,4)) -> 2040-11-08 | L138: 394 | M138: =IF(EDATE(M137,3)>EDATE(M136,6),EDATE(M137,3),EDATE(M136,6)) -> 2051-10-08 | N138: 525 | O138: =IF(EDATE(O137,4)>EDATE(O136,8),EDATE(O137,4),EDATE(O136,8)) -> 2062-09-08 | P138: 656 | Q138: =IF(EDATE(Q137,5)>EDATE(Q136,10),EDATE(Q137,5),EDATE(Q136,10)) -> 2073-08-08 | R138: 787 | S138: =IF(EDATE(S137,6)>EDATE(S136,12),EDATE(S137,6),EDATE(S136,12)) -> 2084-07-08 | T138: 1573 | U138: 2150-01-08
A139: 133 | B139: 34 | C139: 2021-10-08 | D139: 67 | E139: 2024-07-08 | F139: 133 | G139: 2030-01-08 | H139: =H137+3 -> 199 | I139: 2035-07-08 | J139: 265 | K139: 2041-01-08 | L139: 397 | M139: 2052-01-08 | N139: 529 | O139: 2063-01-08 | P139: 661 | Q139: 2074-01-08 | R139: 793 | S139: 2085-01-08 | T139: 1585 | U139: 2151-01-08
A140: 134 | C140: 2021-10-15 | E140: =IF(EDATE(E138,1)>EDATE(E136,2),EDATE(E138,1),EDATE(E136,2)) -> 2024-07-23 | F140: 134 | G140: 2030-02-08 | I140: =IF(EDATE(I138,3)>EDATE(I136,6),EDATE(I138,3),EDATE(I136,6)) -> 2035-08-23 | J140: 267 | K140: 2041-03-08 | L140: 400 | M140: 2052-04-08 | N140: 533 | O140: 2063-05-08 | P140: 666 | Q140: 2074-06-08 | R140: 799 | S140: 2085-07-08 | T140: 1597 | U140: 2152-01-08
A141: 135 | C141: 2021-10-23 | D141: 68 | E141: 2024-08-08 | F141: 135 | G141: 2030-03-08 | H141: =H139+3 -> 202 | I141: 2035-10-08 | J141: 269 | K141: 2041-05-08 | L141: 403 | M141: 2052-07-08 | N141: 537 | O141: 2063-09-08 | P141: 671 | Q141: 2074-11-08 | R141: 805 | S141: 2086-01-08 | T141: 1609 | U141: 2153-01-08
A142: 136 | C142: 2021-11-02 | E142: 2024-08-23 | F142: 136 | G142: 2030-04-08 | I142: 2035-11-23 | J142: 271 | K142: 2041-07-08 | L142: 406 | M142: 2052-10-08 | N142: 541 | O142: 2064-01-08 | P142: 676 | Q142: 2075-04-08 | R142: 811 | S142: 2086-07-08 | T142: 1621 | U142: 2154-01-08
A143: 137 | B143: 35 | C143: =EDATE(C139,1) -> 2021-11-08 | D143: 69 | E143: 2024-09-08 | F143: 137 | G143: 2030-05-08 | H143: =H141+3 -> 205 | I143: 2036-01-08 | J143: 273 | K143: 2041-09-08 | L143: 409 | M143: 2053-01-08 | N143: 545 | O143: 2064-05-08 | P143: 681 | Q143: 2075-09-08 | R143: 817 | S143: 2087-01-08 | T143: 1633 | U143: 2155-01-08
A144: 138 | C144: 2021-11-15 | E144: 2024-09-23 | F144: 138 | G144: 2030-06-08 | I144: 2036-02-23 | J144: 275 | K144: 2041-11-08 | L144: 412 | M144: 2053-04-08 | N144: 549 | O144: 2064-09-08 | P144: 686 | Q144: 2076-02-08 | R144: 823 | S144: 2087-07-08 | T144: 1645 | U144: 2156-01-08
A145: 139 | C145: 2021-11-23 | D145: 70 | E145: 2024-10-08 | F145: 139 | G145: 2030-07-08 | H145: =H143+3 -> 208 | I145: 2036-04-08 | J145: 277 | K145: 2042-01-08 | L145: 415 | M145: 2053-07-08 | N145: 553 | O145: 2065-01-08 | P145: 691 | Q145: 2076-07-08 | R145: 829 | S145: 2088-01-08 | T145: 1657 | U145: 2157-01-08
A146: 140 | C146: 2021-12-02 | E146: 2024-10-23 | F146: 140 | G146: 2030-08-08 | I146: 2036-05-23 | J146: 279 | K146: 2042-03-08 | L146: 418 | M146: 2053-10-08 | N146: 557 | O146: 2065-05-08 | P146: 696 | Q146: 2076-12-08 | R146: 835 | S146: 2088-07-08 | T146: 1669 | U146: 2158-01-08
A147: 141 | B147: 36 | C147: 2021-12-08 | D147: 71 | E147: 2024-11-08 | F147: 141 | G147: 2030-09-08 | H147: =H145+3 -> 211 | I147: 2036-07-08 | J147: 281 | K147: 2042-05-08 | L147: 421 | M147: 2054-01-08 | N147: 561 | O147: 2065-09-08 | P147: 701 | Q147: 2077-05-08 | R147: 841 | S147: 2089-01-08 | T147: 1681 | U147: 2159-01-08
A148: 142 | C148: 2021-12-15 | E148: 2024-11-23 | F148: 142 | G148: 2030-10-08 | I148: 2036-08-23 | J148: 283 | K148: 2042-07-08 | L148: 424 | M148: 2054-04-08 | N148: 565 | O148: 2066-01-08 | P148: 706 | Q148: 2077-10-08 | R148: 847 | S148: 2089-07-08 | T148: 1693 | U148: 2160-01-08
A149: 143 | C149: 2021-12-23 | D149: 72 | E149: 2024-12-08 | F149: 143 | G149: 2030-11-08 | H149: =H147+3 -> 214 | I149: 2036-10-08 | J149: 285 | K149: 2042-09-08 | L149: 427 | M149: 2054-07-08 | N149: 569 | O149: 2066-05-08 | P149: 711 | Q149: 2078-03-08 | R149: 853 | S149: 2090-01-08 | T149: 1705 | U149: 2161-01-08
A150: 144 | C150: 2022-01-02 | E150: 2024-12-23 | F150: 144 | G150: 2030-12-08 | I150: 2036-11-23 | J150: 287 | K150: 2042-11-08 | L150: 430 | M150: 2054-10-08 | N150: 573 | O150: 2066-09-08 | P150: 716 | Q150: 2078-08-08 | R150: 859 | S150: 2090-07-08 | T150: 1717 | U150: 2162-01-08
A151: 145 | B151: 37 | C151: 2022-01-08 | D151: 73 | E151: 2025-01-08 | F151: 145 | G151: 2031-01-08 | H151: =H149+3 -> 217 | I151: 2037-01-08 | J151: 289 | K151: 2043-01-08 | L151: 433 | M151: 2055-01-08 | N151: 577 | O151: 2067-01-08 | P151: 721 | Q151: 2079-01-08 | R151: 865 | S151: 2091-01-08 | T151: 1729 | U151: 2163-01-08
A152: 146 | C152: 2022-01-15 | E152: 2025-01-23 | F152: 146 | G152: 2031-02-08 | I152: 2037-02-23 | J152: 291 | K152: 2043-03-08 | L152: 436 | M152: 2055-04-08 | N152: 581 | O152: 2067-05-08 | P152: 726 | Q152: 2079-06-08 | R152: 871 | S152: 2091-07-08 | T152: 1741 | U152: 2164-01-08
A153: 147 | C153: 2022-01-23 | D153: 74 | E153: 2025-02-08 | F153: 147 | G153: 2031-03-08 | H153: =H151+3 -> 220 | I153: 2037-04-08 | J153: 293 | K153: 2043-05-08 | L153: 439 | M153: 2055-07-08 | N153: 585 | O153: 2067-09-08 | P153: 731 | Q153: 2079-11-08 | R153: 877 | S153: 2092-01-08 | T153: 1753 | U153: 2165-01-08
A154: 148 | C154: 2022-02-02 | E154: 2025-02-23 | F154: 148 | G154: 2031-04-08 | I154: 2037-05-23 | J154: 295 | K154: 2043-07-08 | L154: 442 | M154: 2055-10-08 | N154: 589 | O154: 2068-01-08 | P154: 736 | Q154: 2080-04-08 | R154: 883 | S154: 2092-07-08 | T154: 1765 | U154: 2166-01-08
A155: 149 | B155: 38 | C155: 2022-02-08 | D155: 75 | E155: 2025-03-08 | F155: 149 | G155: 2031-05-08 | H155: =H153+3 -> 223 | I155: 2037-07-08 | J155: 297 | K155: 2043-09-08 | L155: 445 | M155: 2056-01-08 | N155: 593 | O155: 2068-05-08 | P155: 741 | Q155: 2080-09-08 | R155: 889 | S155: 2093-01-08 | T155: 1777 | U155: 2167-01-08
A156: 150 | C156: 2022-02-15 | E156: 2025-03-23 | F156: 150 | G156: 2031-06-08 | I156: 2037-08-23 | J156: 299 | K156: 2043-11-08 | L156: 448 | M156: 2056-04-08 | N156: 597 | O156: 2068-09-08 | P156: 746 | Q156: 2081-02-08 | R156: 895 | S156: 2093-07-08 | T156: 1789 | U156: 2168-01-08
A157: 151 | C157: 2022-02-23 | D157: 76 | E157: 2025-04-08 | F157: 151 | G157: 2031-07-08 | H157: =H155+3 -> 226 | I157: 2037-10-08 | J157: 301 | K157: 2044-01-08 | L157: 451 | M157: 2056-07-08 | N157: 601 | O157: 2069-01-08 | P157: 751 | Q157: 2081-07-08 | R157: 901 | S157: 2094-01-08 | T157: 1801 | U157: 2169-01-08
A158: 152 | C158: 2022-03-02 | E158: 2025-04-23 | F158: 152 | G158: 2031-08-08 | I158: 2037-11-23 | J158: 303 | K158: 2044-03-08 | L158: 454 | M158: 2056-10-08 | N158: 605 | O158: 2069-05-08 | P158: 756 | Q158: 2081-12-08 | R158: 907 | S158: 2094-07-08 | T158: 1813 | U158: 2170-01-08
A159: 153 | B159: 39 | C159: 2022-03-08 | D159: 77 | E159: 2025-05-08 | F159: 153 | G159: 2031-09-08 | H159: =H157+3 -> 229 | I159: 2038-01-08 | J159: 305 | K159: 2044-05-08 | L159: 457 | M159: 2057-01-08 | N159: 609 | O159: 2069-09-08 | P159: 761 | Q159: 2082-05-08 | R159: 913 | S159: 2095-01-08 | T159: 1825 | U159: 2171-01-08
A160: 154 | C160: 2022-03-15 | E160: 2025-05-23 | F160: 154 | G160: 2031-10-08 | I160: 2038-02-23 | J160: 307 | K160: 2044-07-08 | L160: 460 | M160: 2057-04-08 | N160: 613 | O160: 2070-01-08 | P160: 766 | Q160: 2082-10-08 | R160: 919 | S160: 2095-07-08 | T160: 1837 | U160: 2172-01-08
A161: 155 | C161: 2022-03-23 | D161: 78 | E161: 2025-06-08 | F161: 155 | G161: 2031-11-08 | H161: =H159+3 -> 232 | I161: 2038-04-08 | J161: 309 | K161: 2044-09-08 | L161: 463 | M161: 2057-07-08 | N161: 617 | O161: 2070-05-08 | P161: 771 | Q161: 2083-03-08 | R161: 925 | S161: 2096-01-08 | T161: 1849 | U161: 2173-01-08
A162: 156 | C162: 2022-04-02 | E162: 2025-06-23 | F162: 156 | G162: 2031-12-08 | I162: 2038-05-23 | J162: 311 | K162: 2044-11-08 | L162: 466 | M162: 2057-10-08 | N162: 621 | O162: 2070-09-08 | P162: 776 | Q162: 2083-08-08 | R162: 931 | S162: 2096-07-08 | T162: 1861 | U162: 2174-01-08
A163: 157 | B163: 40 | C163: 2022-04-08 | D163: 79 | E163: 2025-07-08 | F163: 157 | G163: 2032-01-08 | H163: =H161+3 -> 235 | I163: 2038-07-08 | J163: 313 | K163: 2045-01-08 | L163: 469 | M163: 2058-01-08 | N163: 625 | O163: 2071-01-08 | P163: 781 | Q163: 2084-01-08 | R163: 937 | S163: 2097-01-08 | T163: 1873 | U163: 2175-01-08
A164: 158 | C164: 2022-04-15 | E164: 2025-07-23 | F164: 158 | G164: 2032-02-08 | I164: 2038-08-23 | J164: 315 | K164: 2045-03-08 | L164: 472 | M164: 2058-04-08 | N164: 629 | O164: 2071-05-08 | P164: 786 | Q164: 2084-06-08 | R164: 943 | S164: 2097-07-08 | T164: 1885 | U164: 2176-01-08
A165: 159 | C165: 2022-04-23 | D165: 80 | E165: 2025-08-08 | F165: 159 | G165: 2032-03-08 | H165: =H163+3 -> 238 | I165: 2038-10-08 | J165: 317 | K165: 2045-05-08 | L165: 475 | M165: 2058-07-08 | N165: 633 | O165: 2071-09-08 | P165: 791 | Q165: 2084-11-08 | R165: 949 | S165: 2098-01-08 | T165: 1897 | U165: 2177-01-08
A166: 160 | C166: 2022-05-02 | E166: 2025-08-23 | F166: 160 | G166: 2032-04-08 | I166: 2038-11-23 | J166: 319 | K166: 2045-07-08 | L166: 478 | M166: 2058-10-08 | N166: 637 | O166: 2072-01-08 | P166: 796 | Q166: 2085-04-08 | R166: 955 | S166: 2098-07-08 | T166: 1909 | U166: 2178-01-08
A167: 161 | B167: 41 | C167: 2022-05-08 | D167: 81 | E167: 2025-09-08 | F167: 161 | G167: 2032-05-08 | H167: =H165+3 -> 241 | I167: 2039-01-08 | J167: 321 | K167: 2045-09-08 | L167: 481 | M167: 2059-01-08 | N167: 641 | O167: 2072-05-08 | P167: 801 | Q167: 2085-09-08 | R167: 961 | S167: 2099-01-08 | T167: 1921 | U167: 2179-01-08
A168: 162 | C168: 2022-05-15 | E168: 2025-09-23 | F168: 162 | G168: 2032-06-08 | I168: 2039-02-23 | J168: 323 | K168: 2045-11-08 | L168: 484 | M168: 2059-04-08 | N168: 645 | O168: 2072-09-08 | P168: 806 | Q168: 2086-02-08 | R168: 967 | S168: 2099-07-08 | T168: 1933 | U168: 2180-01-08
A169: 163 | C169: 2022-05-23 | D169: 82 | E169: 2025-10-08 | F169: 163 | G169: 2032-07-08 | H169: =H167+3 -> 244 | I169: 2039-04-08 | J169: 325 | K169: 2046-01-08 | L169: 487 | M169: 2059-07-08 | N169: 649 | O169: 2073-01-08 | P169: 811 | Q169: 2086-07-08 | R169: 973 | S169: 2100-01-08 | T169: 1945 | U169: 2181-01-08
A170: 164 | C170: 2022-06-02 | E170: 2025-10-23 | F170: 164 | G170: 2032-08-08 | I170: 2039-05-23 | J170: 327 | K170: 2046-03-08 | L170: 490 | M170: 2059-10-08 | N170: 653 | O170: 2073-05-08 | P170: 816 | Q170: 2086-12-08 | R170: 979 | S170: 2100-07-08 | T170: 1957 | U170: 2182-01-08
A171: 165 | B171: 42 | C171: 2022-06-08 | D171: 83 | E171: 2025-11-08 | F171: 165 | G171: 2032-09-08 | H171: =H169+3 -> 247 | I171: 2039-07-08 | J171: 329 | K171: 2046-05-08 | L171: 493 | M171: 2060-01-08 | N171: 657 | O171: 2073-09-08 | P171: 821 | Q171: 2087-05-08 | R171: 985 | S171: 2101-01-08 | T171: 1969 | U171: 2183-01-08
A172: 166 | C172: 2022-06-15 | E172: 2025-11-23 | F172: 166 | G172: 2032-10-08 | I172: 2039-08-23 | J172: 331 | K172: 2046-07-08 | L172: 496 | M172: 2060-04-08 | N172: 661 | O172: 2074-01-08 | P172: 826 | Q172: 2087-10-08 | R172: 991 | S172: 2101-07-08 | T172: 1981 | U172: 2184-01-08
A173: 167 | C173: 2022-06-23 | D173: 84 | E173: 2025-12-08 | F173: 167 | G173: 2032-11-08 | H173: =H171+3 -> 250 | I173: 2039-10-08 | J173: 333 | K173: 2046-09-08 | L173: 499 | M173: 2060-07-08 | N173: 665 | O173: 2074-05-08 | P173: 831 | Q173: 2088-03-08 | R173: 997 | S173: 2102-01-08 | T173: 1993 | U173: 2185-01-08
A174: 168 | C174: 2022-07-02 | E174: 2025-12-23 | F174: 168 | G174: 2032-12-08 | I174: 2039-11-23 | J174: 335 | K174: 2046-11-08 | L174: 502 | M174: 2060-10-08 | N174: 669 | O174: 2074-09-08 | P174: 836 | Q174: 2088-08-08 | R174: 1003 | S174: 2102-07-08 | T174: 2005 | U174: 2186-01-08
A175: 169 | B175: 43 | C175: 2022-07-08 | D175: 85 | E175: 2026-01-08 | F175: 169 | G175: 2033-01-08 | H175: =H173+3 -> 253 | I175: 2040-01-08 | J175: 337 | K175: 2047-01-08 | L175: 505 | M175: 2061-01-08 | N175: 673 | O175: 2075-01-08 | P175: 841 | Q175: 2089-01-08 | R175: 1009 | S175: 2103-01-08 | T175: 2017 | U175: 2187-01-08
A176: 170 | C176: 2022-07-15 | E176: 2026-01-23 | F176: 170 | G176: 2033-02-08 | I176: 2040-02-23 | J176: 339 | K176: 2047-03-08 | L176: 508 | M176: 2061-04-08 | N176: 677 | O176: 2075-05-08 | P176: 846 | Q176: 2089-06-08 | R176: 1015 | S176: 2103-07-08 | T176: 2029 | U176: 2188-01-08
A177: 171 | C177: 2022-07-23 | D177: 86 | E177: 2026-02-08 | F177: 171 | G177: 2033-03-08 | H177: =H175+3 -> 256 | I177: 2040-04-08 | J177: 341 | K177: 2047-05-08 | L177: 511 | M177: 2061-07-08 | N177: 681 | O177: 2075-09-08 | P177: 851 | Q177: 2089-11-08 | R177: 1021 | S177: 2104-01-08 | T177: 2041 | U177: 2189-01-08
A178: 172 | C178: 2022-08-02 | E178: 2026-02-23 | F178: 172 | G178: 2033-04-08 | I178: 2040-05-23 | J178: 343 | K178: 2047-07-08 | L178: 514 | M178: 2061-10-08 | N178: 685 | O178: 2076-01-08 | P178: 856 | Q178: 2090-04-08 | R178: 1027 | S178: 2104-07-08 | T178: 2053 | U178: 2190-01-08
A179: 173 | B179: 44 | C179: 2022-08-08 | D179: 87 | E179: 2026-03-08 | F179: 173 | G179: 2033-05-08 | H179: =H177+3 -> 259 | I179: 2040-07-08 | J179: 345 | K179: 2047-09-08 | L179: 517 | M179: 2062-01-08 | N179: 689 | O179: 2076-05-08 | P179: 861 | Q179: 2090-09-08 | R179: 1033 | S179: 2105-01-08 | T179: 2065 | U179: 2191-01-08
A180: 174 | C180: 2022-08-15 | E180: 2026-03-23 | F180: 174 | G180: 2033-06-08 | I180: 2040-08-23 | J180: 347 | K180: 2047-11-08 | L180: 520 | M180: 2062-04-08 | N180: 693 | O180: 2076-09-08 | P180: 866 | Q180: 2091-02-08 | R180: 1039 | S180: 2105-07-08 | T180: 2077 | U180: 2192-01-08
A181: 175 | C181: 2022-08-23 | D181: 88 | E181: 2026-04-08 | F181: 175 | G181: 2033-07-08 | H181: =H179+3 -> 262 | I181: 2040-10-08 | J181: 349 | K181: 2048-01-08 | L181: 523 | M181: 2062-07-08 | N181: 697 | O181: 2077-01-08 | P181: 871 | Q181: 2091-07-08 | R181: 1045 | S181: 2106-01-08 | T181: 2089 | U181: 2193-01-08
A182: 176 | C182: 2022-09-02 | E182: 2026-04-23 | F182: 176 | G182: 2033-08-08 | I182: 2040-11-23 | J182: 351 | K182: 2048-03-08 | L182: 526 | M182: 2062-10-08 | N182: 701 | O182: 2077-05-08 | P182: 876 | Q182: 2091-12-08 | R182: 1051 | S182: 2106-07-08 | T182: 2101 | U182: 2194-01-08
A183: 177 | B183: 45 | C183: 2022-09-08 | D183: 89 | E183: 2026-05-08 | F183: 177 | G183: 2033-09-08 | H183: =H181+3 -> 265 | I183: 2041-01-08 | J183: 353 | K183: 2048-05-08 | L183: =L182+3 -> 529 | M183: 2063-01-08 | N183: =N182+4 -> 705 | O183: 2077-09-08 | P183: =P182+5 -> 881 | Q183: 2092-05-08 | R183: =R182+6 -> 1057 | S183: 2107-01-08 | T183: =T182+12 -> 2113 | U183: =EDATE(U182,12) -> 2195-01-08
A184: 178 | C184: 2022-09-15 | E184: 2026-05-23 | F184: 178 | G184: 2033-10-08 | I184: 2041-02-23 | J184: 355 | K184: 2048-07-08 | L184: 532 | M184: 2063-04-08 | N184: 709 | O184: 2078-01-08 | P184: 886 | Q184: 2092-10-08 | R184: 1063 | S184: 2107-07-08 | T184: 2125 | U184: 2196-01-08
A185: 179 | C185: 2022-09-23 | D185: 90 | E185: 2026-06-08 | F185: 179 | G185: 2033-11-08 | H185: =H183+3 -> 268 | I185: 2041-04-08 | J185: 357 | K185: 2048-09-08 | L185: 535 | M185: 2063-07-08 | N185: 713 | O185: 2078-05-08 | P185: 891 | Q185: 2093-03-08 | R185: 1069 | S185: 2108-01-08 | T185: 2137 | U185: 2197-01-08
A186: 180 | C186: 2022-10-02 | E186: 2026-06-23 | F186: 180 | G186: 2033-12-08 | I186: 2041-05-23 | J186: 359 | K186: 2048-11-08 | L186: 538 | M186: 2063-10-08 | N186: 717 | O186: 2078-09-08 | P186: 896 | Q186: 2093-08-08 | R186: 1075 | S186: 2108-07-08 | T186: 2149 | U186: 2198-01-08
A187: 181 | B187: 46 | C187: 2022-10-08 | D187: 91 | E187: 2026-07-08 | F187: 181 | G187: 2034-01-08 | H187: =H185+3 -> 271 | I187: 2041-07-08 | J187: 361 | K187: 2049-01-08 | L187: 541 | M187: 2064-01-08 | N187: 721 | O187: 2079-01-08 | P187: 901 | Q187: 2094-01-08 | R187: 1081 | S187: 2109-01-08 | T187: 2161 | U187: 2199-01-08
A188: 182 | C188: 2022-10-15 | E188: 2026-07-23 | F188: 182 | G188: 2034-02-08 | I188: 2041-08-23 | J188: 363 | K188: 2049-03-08 | L188: 544 | M188: 2064-04-08 | N188: 725 | O188: 2079-05-08 | P188: 906 | Q188: 2094-06-08 | R188: 1087 | S188: 2109-07-08 | T188: 2173 | U188: 2200-01-08
A189: 183 | C189: 2022-10-23 | D189: 92 | E189: 2026-08-08 | F189: 183 | G189: 2034-03-08 | H189: =H187+3 -> 274 | I189: 2041-10-08 | J189: 365 | K189: 2049-05-08 | L189: 547 | M189: 2064-07-08 | N189: 729 | O189: 2079-09-08 | P189: 911 | Q189: 2094-11-08 | R189: 1093 | S189: 2110-01-08 | T189: 2185 | U189: 2201-01-08
A190: 184 | C190: 2022-11-02 | E190: 2026-08-23 | F190: 184 | G190: 2034-04-08 | I190: 2041-11-23 | J190: 367 | K190: 2049-07-08 | L190: 550 | M190: 2064-10-08 | N190: 733 | O190: 2080-01-08 | P190: 916 | Q190: 2095-04-08 | R190: 1099 | S190: 2110-07-08 | T190: 2197 | U190: 2202-01-08
A191: 185 | B191: 47 | C191: 2022-11-08 | D191: 93 | E191: 2026-09-08 | F191: 185 | G191: 2034-05-08 | H191: =H189+3 -> 277 | I191: 2042-01-08 | J191: 369 | K191: 2049-09-08 | L191: 553 | M191: 2065-01-08 | N191: 737 | O191: 2080-05-08 | P191: 921 | Q191: 2095-09-08 | R191: 1105 | S191: 2111-01-08 | T191: 2209 | U191: 2203-01-08
A192: 186 | C192: 2022-11-15 | E192: 2026-09-23 | F192: 186 | G192: 2034-06-08 | I192: 2042-02-23 | J192: 371 | K192: 2049-11-08 | L192: 556 | M192: 2065-04-08 | N192: 741 | O192: 2080-09-08 | P192: 926 | Q192: 2096-02-08 | R192: 1111 | S192: 2111-07-08 | T192: 2221 | U192: 2204-01-08
A193: 187 | C193: 2022-11-23 | D193: 94 | E193: 2026-10-08 | F193: 187 | G193: 2034-07-08 | H193: =H191+3 -> 280 | I193: 2042-04-08 | J193: 373 | K193: 2050-01-08 | L193: 559 | M193: 2065-07-08 | N193: 745 | O193: 2081-01-08 | P193: 931 | Q193: 2096-07-08 | R193: 1117 | S193: 2112-01-08 | T193: 2233 | U193: 2205-01-08
A194: 188 | C194: 2022-12-02 | E194: 2026-10-23 | F194: 188 | G194: 2034-08-08 | I194: 2042-05-23 | J194: 375 | K194: 2050-03-08 | L194: 562 | M194: 2065-10-08 | N194: 749 | O194: 2081-05-08 | P194: 936 | Q194: 2096-12-08 | R194: 1123 | S194: 2112-07-08 | T194: 2245 | U194: 2206-01-08
A195: 189 | B195: 48 | C195: 2022-12-08 | D195: 95 | E195: 2026-11-08 | F195: 189 | G195: 2034-09-08 | H195: =H193+3 -> 283 | I195: 2042-07-08 | J195: 377 | K195: 2050-05-08 | L195: 565 | M195: 2066-01-08 | N195: 753 | O195: 2081-09-08 | P195: 941 | Q195: 2097-05-08 | R195: 1129 | S195: 2113-01-08 | T195: 2257 | U195: 2207-01-08
A196: 190 | C196: 2022-12-15 | E196: 2026-11-23 | F196: 190 | G196: 2034-10-08 | I196: 2042-08-23 | J196: 379 | K196: 2050-07-08 | L196: 568 | M196: 2066-04-08 | N196: 757 | O196: 2082-01-08 | P196: 946 | Q196: 2097-10-08 | R196: 1135 | S196: 2113-07-08 | T196: 2269 | U196: 2208-01-08
A197: 191 | C197: 2022-12-23 | D197: 96 | E197: 2026-12-08 | F197: 191 | G197: 2034-11-08 | H197: =H195+3 -> 286 | I197: 2042-10-08 | J197: 381 | K197: 2050-09-08 | L197: 571 | M197: 2066-07-08 | N197: 761 | O197: 2082-05-08 | P197: 951 | Q197: 2098-03-08 | R197: 1141 | S197: 2114-01-08 | T197: 2281 | U197: 2209-01-08
A198: 192 | C198: 2023-01-02 | E198: 2026-12-23 | F198: 192 | G198: 2034-12-08 | I198: 2042-11-23 | J198: 383 | K198: 2050-11-08 | L198: 574 | M198: 2066-10-08 | N198: 765 | O198: 2082-09-08 | P198: 956 | Q198: 2098-08-08 | R198: 1147 | S198: 2114-07-08 | T198: 2293 | U198: 2210-01-08

Sheet Hoja3 (hidden)

Sheet Hoja2 (hidden)

Sheet Hoja1 (hidden)
